﻿Department family,Entity,Date of payment,Expense type,Expense area,Supplier,Transaction number,Amount in Sterling,Supplier VAT Registration Number
Department of Health,Guys and St Thomas NHS Foundation Trust,13/08/2021,(83610) IT Costs,(id:3601419) TAP,PROBRAND LIMITED,id:14318336,2119.50
Department of Health,Guys and St Thomas NHS Foundation Trust,13/08/2021,(81200) Medical Surgical Supplies & Equipment,(id:4621419) TAP,NHS SUPPLY CHAIN (MAIDSTONE),id:14279840    ,  25.06
Department of Health,Guys and St Thomas NHS Foundation Trust,24/08/2021,(50202) Consultants,(id:41909) TAP,PRICEWATERHOUSECOOPERS LLP,id:14349234    ,2891.99
Department of Health,Guys and St Thomas NHS Foundation Trust,13/08/2021,(81200) Medical Surgical Supplies & Equipment,(id:41907) TAP,NHS SUPPLY CHAIN (MAIDSTONE),id:14245807 ,1812.12
Department of Health,Guys and St Thomas NHS Foundation Trust,27/08/2021,(81200) Medical Surgical Supplies & Equipment,(id:41907) TAP,ZOLL MEDICAL UK LTD,id:14343774, 532.68
Department of Health,Guys and St Thomas NHS Foundation Trust,13/08/2021,(81100) Dressings,(id:41907) TAP,NHS SUPPLY CHAIN (MAIDSTONE),id:14279840    ,  89.38
Department of Health,Guys and St Thomas NHS Foundation Trust,20/08/2021,(81100) Dressings,(id:41907) TAP,NHS SUPPLY CHAIN (MAIDSTONE),id:14342661    ,  37.24
Department of Health,Guys and St Thomas NHS Foundation Trust,13/08/2021,(81230) Medical Surgical Supplies & Equipment,(id:41907) TAP,NHS SUPPLY CHAIN (MAIDSTONE),id:14245807 ,1438.66
Department of Health,Guys and St Thomas NHS Foundation Trust,13/08/2021,(81200) Medical Surgical Supplies & Equipment,(id:41906) TAP,NHS SUPPLY CHAIN (MAIDSTONE),id:14279840 ,3050.32
Department of Health,Guys and St Thomas NHS Foundation Trust,13/08/2021,(82600) Uniforms & Clothing,(id:41906) TAP,NHS SUPPLY CHAIN (MAIDSTONE),id:14245807    , 231.27
Department of Health,Guys and St Thomas NHS Foundation Trust,20/08/2021,(82600) Uniforms & Clothing,(id:41906) TAP,NHS SUPPLY CHAIN (MAIDSTONE),id:14342661    ,  42.81
Department of Health,Guys and St Thomas NHS Foundation Trust,20/08/2021,(82600) Uniforms & Clothing,(id:41905) TAP,NHS SUPPLY CHAIN (MAIDSTONE),id:14342661    ,  45.79
Department of Health,Guys and St Thomas NHS Foundation Trust,13/08/2021,(82000) Provisions & Kitchens,(id:41918) TAP,NHS SUPPLY CHAIN (MAIDSTONE),id:14279840  ,  94.89
Department of Health,Guys and St Thomas NHS Foundation Trust,06/08/2021,(83500) Furniture & Fittings,(id:41918) TAP,AGILE MEDICAL,id:14293014   ,2664.00
Department of Health,Guys and St Thomas NHS Foundation Trust,13/08/2021,(81200) Medical Surgical Supplies & Equipment,(id:41918) TAP,JOHNSON & JOHNSON MEDICAL LTD,id:14277591, 229.38
Department of Health,Guys and St Thomas NHS Foundation Trust,20/08/2021,(81200) Medical Surgical Supplies & Equipment,(id:41918) TAP,NHS SUPPLY CHAIN (MAIDSTONE),id:14342661 , 189.81
Department of Health,Guys and St Thomas NHS Foundation Trust,20/08/2021,(81200) Medical Surgical Supplies & Equipment,(id:41918) TAP,STRYKER UK LTD,id:14337400, 806.40
Department of Health,Guys and St Thomas NHS Foundation Trust,13/08/2021,(81100) Dressings,(id:41918) TAP,ELIS UK LIMITED,id:14311634  , 765.90
Department of Health,Guys and St Thomas NHS Foundation Trust,13/08/2021,(83410) Office Equipment,(id:41918) TAP,RICOH UK LTD,id:14301837   , 162.87
Department of Health,Guys and St Thomas NHS Foundation Trust,13/08/2021,(82800) Bedding & Linen,(id:41916) TAP,NHS SUPPLY CHAIN (MAIDSTONE),id:14260687   ,  49.54
Department of Health,Guys and St Thomas NHS Foundation Trust,20/08/2021,(83400) Office Equipment,(id:41916) TAP,NHS SUPPLY CHAIN (MAIDSTONE),id:14342661  , 258.49
Department of Health,Guys and St Thomas NHS Foundation Trust,13/08/2021,(81700) Lab Equipment Purchase,(id:41916) TAP,NHS SUPPLY CHAIN (MAIDSTONE),id:14279840 ,   5.34
Department of Health,Guys and St Thomas NHS Foundation Trust,20/08/2021,(81700) Lab Equipment Purchase,(id:4851419) TAP,NHS SUPPLY CHAIN (MAIDSTONE),id:14342661    ,  59.30
Department of Health,Guys and St Thomas NHS Foundation Trust,13/08/2021,(83410) Office Equipment,(id:41890) TAP,RICOH UK LTD,id:14301778   , 151.42
Department of Health,Guys and St Thomas NHS Foundation Trust,13/08/2021,(83410) Office Equipment,(id:41890) TAP,RICOH UK LTD,id:14302184   , 177.57
Department of Health,Guys and St Thomas NHS Foundation Trust,20/08/2021,(81225) Medical Surgical Supplies & Equipment,(id:41883) TAP,NHS SUPPLY CHAIN (MAIDSTONE),id:14342661 ,  77.06
Department of Health,Guys and St Thomas NHS Foundation Trust,06/08/2021,(81200) Medical Surgical Supplies & Equipment,(id:41883) TAP,JOHNSON & JOHNSON MEDICAL LTD,id:14263864, 465.37
Department of Health,Guys and St Thomas NHS Foundation Trust,27/08/2021,(81200) Medical Surgical Supplies & Equipment,(id:41883) TAP,AGILE MEDICAL,id:14349354 ,4430.88
Department of Health,Guys and St Thomas NHS Foundation Trust,13/08/2021,(83410) Office Equipment,(id:41883) TAP,RICOH UK LTD,id:14302184   , 104.50
Department of Health,Guys and St Thomas NHS Foundation Trust,20/08/2021,(82000) Provisions & Kitchens,(id:41883) TAP,NHS SUPPLY CHAIN (MAIDSTONE),id:14342661  ,  26.04
Department of Health,Guys and St Thomas NHS Foundation Trust,06/08/2021,(50562) Qualified Nursing Staff,(id:41883) TAP,CONTINENTAL NURSE LTD,id:14303151  , 252.25
Department of Health,Guys and St Thomas NHS Foundation Trust,13/08/2021,(50562) Qualified Nursing Staff,(id:41883) TAP,STAFFING PROFESSIONALS LTD,id:14322881  , 556.92
Department of Health,Guys and St Thomas NHS Foundation Trust,13/08/2021,(82800) Bedding & Linen,(id:41897) TAP,NHS SUPPLY CHAIN (MAIDSTONE),id:14279840   , 105.23
Department of Health,Guys and St Thomas NHS Foundation Trust,13/08/2021,(81200) Medical Surgical Supplies & Equipment,(id:41897) TAP,BARD LTD,id:14277652 , 703.44
Department of Health,Guys and St Thomas NHS Foundation Trust,27/08/2021,(81200) Medical Surgical Supplies & Equipment,(id:41897) TAP,JOHNSON & JOHNSON MEDICAL LTD,id:14307594,1016.47
Department of Health,Guys and St Thomas NHS Foundation Trust,13/08/2021,(81100) Dressings,(id:41897) TAP,ELIS UK LIMITED,id:14311614  , 430.56
Department of Health,Guys and St Thomas NHS Foundation Trust,20/08/2021,(81100) Dressings,(id:41897) TAP,NHS SUPPLY CHAIN (MAIDSTONE),id:14342661    , 390.69
Department of Health,Guys and St Thomas NHS Foundation Trust,13/08/2021,(81230) Medical Surgical Supplies & Equipment,(id:41897) TAP,NHS SUPPLY CHAIN (MAIDSTONE),id:14245807 ,  13.20
Department of Health,Guys and St Thomas NHS Foundation Trust,13/08/2021,(81100) Dressings,(id:41894) TAP,NHS SUPPLY CHAIN (MAIDSTONE),id:14260687    , 562.69
Department of Health,Guys and St Thomas NHS Foundation Trust,13/08/2021,(82800) Bedding & Linen,(id:41894) TAP,NHS SUPPLY CHAIN (MAIDSTONE),id:14279840   ,  28.08
Department of Health,Guys and St Thomas NHS Foundation Trust,13/08/2021,(82600) Uniforms & Clothing,(id:41894) TAP,NHS SUPPLY CHAIN (MAIDSTONE),id:14279840    ,  18.72
Department of Health,Guys and St Thomas NHS Foundation Trust,20/08/2021,(83400) Office Equipment,(id:41894) TAP,NHS SUPPLY CHAIN (MAIDSTONE),id:14342661  ,  40.83
Department of Health,Guys and St Thomas NHS Foundation Trust,13/08/2021,(82000) Provisions & Kitchens,(id:41894) TAP,NHS SUPPLY CHAIN (MAIDSTONE),id:14279840  ,  31.24
Department of Health,Guys and St Thomas NHS Foundation Trust,13/08/2021,(81200) Medical Surgical Supplies & Equipment,(id:41894) TAP,NHS SUPPLY CHAIN (MAIDSTONE),id:14245807 ,1655.90
Department of Health,Guys and St Thomas NHS Foundation Trust,13/08/2021,(81200) Medical Surgical Supplies & Equipment,(id:41894) TAP,CONMED LINVATEC UK,id:14309474 , 568.80
Department of Health,Guys and St Thomas NHS Foundation Trust,20/08/2021,(81200) Medical Surgical Supplies & Equipment,(id:41892) TAP,NHS SUPPLY CHAIN (MAIDSTONE),id:14342661 ,   4.10
Department of Health,Guys and St Thomas NHS Foundation Trust,13/08/2021,(81200) Medical Surgical Supplies & Equipment,(id:5182419) Gastrointestinal Medicine & Surgery,INTUITIVE SURGICAL LTD,id:14320846   ,1800.00
Department of Health,Guys and St Thomas NHS Foundation Trust,13/08/2021,(83410) Office Equipment,(id:41959) Gastrointestinal Medicine & Surgery,RICOH UK LTD,id:14301778 ,  32.37
Department of Health,Guys and St Thomas NHS Foundation Trust,13/08/2021,(82700) Uniforms & Clothing,(id:41958) Gastrointestinal Medicine & Surgery,NHS SUPPLY CHAIN (MAIDSTONE),id:14245807  ,  75.36
Department of Health,Guys and St Thomas NHS Foundation Trust,13/08/2021,(82800) Bedding & Linen,(id:41958) Gastrointestinal Medicine & Surgery,NHS SUPPLY CHAIN (MAIDSTONE),id:14260687 ,  58.26
Department of Health,Guys and St Thomas NHS Foundation Trust,20/08/2021,(81225) Medical Surgical Supplies & Equipment,(id:41958) Gastrointestinal Medicine & Surgery,NHS SUPPLY CHAIN (MAIDSTONE),id:14342661    ,   4.85
Department of Health,Guys and St Thomas NHS Foundation Trust,13/08/2021,(81700) Lab Equipment Purchase,(id:41958) Gastrointestinal Medicine & Surgery,NHS SUPPLY CHAIN (MAIDSTONE),id:14245807    ,  59.27
Department of Health,Guys and St Thomas NHS Foundation Trust,13/08/2021,(80010) Drug Costs,(id:41958) Gastrointestinal Medicine & Surgery,NHS SUPPLY CHAIN (MAIDSTONE),id:14260687 ,  52.80
Department of Health,Guys and St Thomas NHS Foundation Trust,13/08/2021,(82700) Uniforms & Clothing,(id:41954) Gastrointestinal Medicine & Surgery,NHS SUPPLY CHAIN (MAIDSTONE),id:14279840  ,  52.97
Department of Health,Guys and St Thomas NHS Foundation Trust,13/08/2021,(83400) Office Equipment,(id:41954) Gastrointestinal Medicine & Surgery,NHS SUPPLY CHAIN (MAIDSTONE),id:14260687, 105.17
Department of Health,Guys and St Thomas NHS Foundation Trust,13/08/2021,(83400) Office Equipment,(id:41954) Gastrointestinal Medicine & Surgery,NHS SUPPLY CHAIN (MAIDSTONE),id:14279840,  69.21
Department of Health,Guys and St Thomas NHS Foundation Trust,13/08/2021,(82800) Bedding & Linen,(id:41954) Gastrointestinal Medicine & Surgery,NHS SUPPLY CHAIN (MAIDSTONE),id:14245807 ,  26.93
Department of Health,Guys and St Thomas NHS Foundation Trust,20/08/2021,(81200) Medical Surgical Supplies & Equipment,(id:41954) Gastrointestinal Medicine & Surgery,NHS SUPPLY CHAIN (MAIDSTONE),id:14342661    , 131.53
Department of Health,Guys and St Thomas NHS Foundation Trust,13/08/2021,(81255) Medical Surgical Supplies & Equipment,(id:41954) Gastrointestinal Medicine & Surgery,NHS SUPPLY CHAIN (MAIDSTONE),id:14260687    ,   4.68
Department of Health,Guys and St Thomas NHS Foundation Trust,13/08/2021,(81700) Lab Equipment Purchase,(id:41954) Gastrointestinal Medicine & Surgery,NHS SUPPLY CHAIN (MAIDSTONE),id:14245807    , 137.41
Department of Health,Guys and St Thomas NHS Foundation Trust,06/08/2021,(81200) Medical Surgical Supplies & Equipment,(id:41949) Gastrointestinal Medicine & Surgery,JOHNSON & JOHNSON MEDICAL LTD,id:14259381   , 638.93
Department of Health,Guys and St Thomas NHS Foundation Trust,06/08/2021,(81200) Medical Surgical Supplies & Equipment,(id:41949) Gastrointestinal Medicine & Surgery,JOHNSON & JOHNSON MEDICAL LTD,id:14248970   ,1714.71
Department of Health,Guys and St Thomas NHS Foundation Trust,06/08/2021,(81200) Medical Surgical Supplies & Equipment,(id:41949) Gastrointestinal Medicine & Surgery,JOHNSON & JOHNSON MEDICAL LTD,id:14265769   ,1529.21
Department of Health,Guys and St Thomas NHS Foundation Trust,20/08/2021,(81200) Medical Surgical Supplies & Equipment,(id:41949) Gastrointestinal Medicine & Surgery,JOHNSON & JOHNSON MEDICAL LTD,id:14291998   , 157.15
Department of Health,Guys and St Thomas NHS Foundation Trust,27/08/2021,(81200) Medical Surgical Supplies & Equipment,(id:41949) Gastrointestinal Medicine & Surgery,JOHNSON & JOHNSON MEDICAL LTD,id:14303875   ,3926.88
Department of Health,Guys and St Thomas NHS Foundation Trust,13/08/2021,(82800) Bedding & Linen,(id:2367419) Gastrointestinal Medicine & Surgery,NHS SUPPLY CHAIN (MAIDSTONE),id:14260687    ,  91.33
Department of Health,Guys and St Thomas NHS Foundation Trust,20/08/2021,(81200) Medical Surgical Supplies & Equipment,(id:2367419) Gastrointestinal Medicine & Surgery,NHS SUPPLY CHAIN (MAIDSTONE),id:14342661  , 464.59
Department of Health,Guys and St Thomas NHS Foundation Trust,13/08/2021,(83400) Office Equipment,(id:2367419) Gastrointestinal Medicine & Surgery,NHS SUPPLY CHAIN (MAIDSTONE),id:14245807   ,  68.75
Department of Health,Guys and St Thomas NHS Foundation Trust,13/08/2021,(81225) Medical Surgical Supplies & Equipment,(id:2367419) Gastrointestinal Medicine & Surgery,NHS SUPPLY CHAIN (MAIDSTONE),id:14279840  ,  29.09
Department of Health,Guys and St Thomas NHS Foundation Trust,13/08/2021,(83410) Office Equipment,(id:1064419) Gastrointestinal Medicine & Surgery,RICOH UK LTD,id:14301956    ,  94.84
Department of Health,Guys and St Thomas NHS Foundation Trust,13/08/2021,(83400) Office Equipment,(id:41942) Gastrointestinal Medicine & Surgery,NHS SUPPLY CHAIN (MAIDSTONE),id:14260687, 139.99
Department of Health,Guys and St Thomas NHS Foundation Trust,13/08/2021,(83400) Office Equipment,(id:41917) Gastrointestinal Medicine & Surgery,NHS SUPPLY CHAIN (MAIDSTONE),id:14245807, 607.59
Department of Health,Guys and St Thomas NHS Foundation Trust,06/08/2021,(81235) Medical Surgical Supplies & Equipment,(id:41917) Gastrointestinal Medicine & Surgery,BOSTON SCIENTIFIC LTD,id:14253988 , 910.68
Department of Health,Guys and St Thomas NHS Foundation Trust,13/08/2021,(81200) Medical Surgical Supplies & Equipment,(id:41917) Gastrointestinal Medicine & Surgery,GETINGE LTD,id:14306945 ,    10374.00
Department of Health,Guys and St Thomas NHS Foundation Trust,27/08/2021,(81200) Medical Surgical Supplies & Equipment,(id:41917) Gastrointestinal Medicine & Surgery,BOSTON SCIENTIFIC LTD,id:14318984 ,2975.12
Department of Health,Guys and St Thomas NHS Foundation Trust,27/08/2021,(81200) Medical Surgical Supplies & Equipment,(id:41917) Gastrointestinal Medicine & Surgery,FRESENIUS KABI LTD,id:14319035    , 504.72
Department of Health,Guys and St Thomas NHS Foundation Trust,06/08/2021,(81200) Medical Surgical Supplies & Equipment,(id:41917) Gastrointestinal Medicine & Surgery,BOSTON SCIENTIFIC LTD,id:14253991 ,4154.70
Department of Health,Guys and St Thomas NHS Foundation Trust,06/08/2021,(81200) Medical Surgical Supplies & Equipment,(id:41917) Gastrointestinal Medicine & Surgery,BOSTON SCIENTIFIC LTD,id:14253983 ,3642.62
Department of Health,Guys and St Thomas NHS Foundation Trust,13/08/2021,(81100) Dressings,(id:41917) Gastrointestinal Medicine & Surgery,NHS SUPPLY CHAIN (MAIDSTONE),id:14245807  ,  92.40
Department of Health,Guys and St Thomas NHS Foundation Trust,13/08/2021,(82700) Uniforms & Clothing,(id:42419) Transplant Renal and Urology,NHS SUPPLY CHAIN (MAIDSTONE),id:14260687    ,  31.68
Department of Health,Guys and St Thomas NHS Foundation Trust,20/08/2021,(82800) Bedding & Linen,(id:42419) Transplant Renal and Urology,NHS SUPPLY CHAIN (MAIDSTONE),id:14342661   , 180.04
Department of Health,Guys and St Thomas NHS Foundation Trust,13/08/2021,(82800) Bedding & Linen,(id:42419) Transplant Renal and Urology,NHS SUPPLY CHAIN (MAIDSTONE),id:14260687   , 122.36
Department of Health,Guys and St Thomas NHS Foundation Trust,20/08/2021,(50522) Unqualified Nursing Staff,(id:42419) Transplant Renal and Urology,MSI GROUP LTD,id:14342871   , 252.93
Department of Health,Guys and St Thomas NHS Foundation Trust,13/08/2021,(81100) Dressings,(id:42419) Transplant Renal and Urology,NHS SUPPLY CHAIN (MAIDSTONE),id:14279840    , 262.57
Department of Health,Guys and St Thomas NHS Foundation Trust,20/08/2021,(81100) Dressings,(id:42419) Transplant Renal and Urology,NHS SUPPLY CHAIN (MAIDSTONE),id:14342661    , 200.52
Department of Health,Guys and St Thomas NHS Foundation Trust,13/08/2021,(83410) Office Equipment,(id:42419) Transplant Renal and Urology,RICOH UK LTD,id:14301956   , 162.89
Department of Health,Guys and St Thomas NHS Foundation Trust,13/08/2021,(83410) Office Equipment,(id:42419) Transplant Renal and Urology,RICOH UK LTD,id:14301837   , 162.89
Department of Health,Guys and St Thomas NHS Foundation Trust,20/08/2021,(81255) Medical Surgical Supplies & Equipment,(id:42419) Transplant Renal and Urology,NHS SUPPLY CHAIN (MAIDSTONE),id:14342661 ,  13.32
Department of Health,Guys and St Thomas NHS Foundation Trust,13/08/2021,(81100) Dressings,(id:969419) Transplant Renal and Urology,NHS SUPPLY CHAIN (MAIDSTONE),id:14279840   ,   8.48
Department of Health,Guys and St Thomas NHS Foundation Trust,06/08/2021,(81200) Medical Surgical Supplies & Equipment,(id:42450) Transplant Renal and Urology,JOHNSON & JOHNSON MEDICAL LTD,id:14254008, 292.97
Department of Health,Guys and St Thomas NHS Foundation Trust,20/08/2021,(81200) Medical Surgical Supplies & Equipment,(id:42450) Transplant Renal and Urology,STRYKER UK LTD,id:14338399, 613.87
Department of Health,Guys and St Thomas NHS Foundation Trust,13/08/2021,(81200) Medical Surgical Supplies & Equipment,(id:42449) Transplant Renal and Urology,NHS SUPPLY CHAIN (MAIDSTONE),id:14279840 ,1703.76
Department of Health,Guys and St Thomas NHS Foundation Trust,13/08/2021,(81200) Medical Surgical Supplies & Equipment,(id:42449) Transplant Renal and Urology,BXTACCELYON LIMITED,id:14293654,  54.00
Department of Health,Guys and St Thomas NHS Foundation Trust,06/08/2021,(81230) Medical Surgical Supplies & Equipment,(id:42449) Transplant Renal and Urology,DIGITIMER LTD,id:14294968 , 828.00
Department of Health,Guys and St Thomas NHS Foundation Trust,27/08/2021,(50552) Qualified Nursing Staff,(id:42449) Transplant Renal and Urology,CONTINENTAL NURSE LTD,id:14356750  ,1157.56
Department of Health,Guys and St Thomas NHS Foundation Trust,13/08/2021,(82000) Provisions & Kitchens,(id:42447) Transplant Renal and Urology,NHS SUPPLY CHAIN (MAIDSTONE),id:14245807  ,   4.45
Department of Health,Guys and St Thomas NHS Foundation Trust,06/08/2021,(83400) Office Equipment,(id:42447) Transplant Renal and Urology,DICT8 LIMITED,id:14298183  ,4164.96
Department of Health,Guys and St Thomas NHS Foundation Trust,13/08/2021,(82800) Bedding & Linen,(id:42447) Transplant Renal and Urology,NHS SUPPLY CHAIN (MAIDSTONE),id:14260687   ,  81.79
Department of Health,Guys and St Thomas NHS Foundation Trust,13/08/2021,(81700) Lab Equipment Purchase,(id:42447) Transplant Renal and Urology,NHS SUPPLY CHAIN (MAIDSTONE),id:14260687 , 119.29
Department of Health,Guys and St Thomas NHS Foundation Trust,13/08/2021,(81100) Dressings,(id:42447) Transplant Renal and Urology,NHS SUPPLY CHAIN (MAIDSTONE),id:14260687    ,  79.25
Department of Health,Guys and St Thomas NHS Foundation Trust,06/08/2021,(50200) Consultants,(id:42447) Transplant Renal and Urology,KING'S COLLEGE HOSPITAL NHS FOUNDATION TRUST,id:14278469 ,    -4932.14
Department of Health,Guys and St Thomas NHS Foundation Trust,27/08/2021,(50200) Consultants,(id:42447) Transplant Renal and Urology,KING'S COLLEGE HOSPITAL NHS FOUNDATION TRUST,id:14322103 ,4871.22
Department of Health,Guys and St Thomas NHS Foundation Trust,20/08/2021,(81200) Medical Surgical Supplies & Equipment,(id:42444) Transplant Renal and Urology,BOSTON SCIENTIFIC LTD,id:14291982   ,2250.12
Department of Health,Guys and St Thomas NHS Foundation Trust,20/08/2021,(81200) Medical Surgical Supplies & Equipment,(id:42444) Transplant Renal and Urology,STRYKER UK LTD,id:14337406, 504.00
Department of Health,Guys and St Thomas NHS Foundation Trust,20/08/2021,(81200) Medical Surgical Supplies & Equipment,(id:42444) Transplant Renal and Urology,STRYKER UK LTD,id:14323695, 504.00
Department of Health,Guys and St Thomas NHS Foundation Trust,13/08/2021,(81200) Medical Surgical Supplies & Equipment,(id:42444) Transplant Renal and Urology,NHS SUPPLY CHAIN (MAIDSTONE),id:14279840 ,  15.60
Department of Health,Guys and St Thomas NHS Foundation Trust,13/08/2021,(82800) Bedding & Linen,(id:42443) Transplant Renal and Urology,NHS SUPPLY CHAIN (MAIDSTONE),id:14245807   , 164.20
Department of Health,Guys and St Thomas NHS Foundation Trust,13/08/2021,(81100) Dressings,(id:42443) Transplant Renal and Urology,NHS SUPPLY CHAIN (MAIDSTONE),id:14260687    , 265.26
Department of Health,Guys and St Thomas NHS Foundation Trust,13/08/2021,(82000) Provisions & Kitchens,(id:42442) Transplant Renal and Urology,NHS SUPPLY CHAIN (MAIDSTONE),id:14260687  ,  65.87
Department of Health,Guys and St Thomas NHS Foundation Trust,20/08/2021,(82000) Provisions & Kitchens,(id:42442) Transplant Renal and Urology,NHS SUPPLY CHAIN (MAIDSTONE),id:14342661  ,   5.86
Department of Health,Guys and St Thomas NHS Foundation Trust,20/08/2021,(83400) Office Equipment,(id:42442) Transplant Renal and Urology,NHS SUPPLY CHAIN (MAIDSTONE),id:14342661  , 117.56
Department of Health,Guys and St Thomas NHS Foundation Trust,13/08/2021,(81700) Lab Equipment Purchase,(id:42442) Transplant Renal and Urology,NHS SUPPLY CHAIN (MAIDSTONE),id:14245807 ,  51.46
Department of Health,Guys and St Thomas NHS Foundation Trust,13/08/2021,(81255) Medical Surgical Supplies & Equipment,(id:42442) Transplant Renal and Urology,NHS SUPPLY CHAIN (MAIDSTONE),id:14279840 ,   4.99
Department of Health,Guys and St Thomas NHS Foundation Trust,20/08/2021,(81255) Medical Surgical Supplies & Equipment,(id:42442) Transplant Renal and Urology,NHS SUPPLY CHAIN (MAIDSTONE),id:14342661 ,   3.74
Department of Health,Guys and St Thomas NHS Foundation Trust,20/08/2021,(81200) Medical Surgical Supplies & Equipment,(id:42439) Transplant Renal and Urology,JOHNSON & JOHNSON MEDICAL LTD,id:14292038,2251.12
Department of Health,Guys and St Thomas NHS Foundation Trust,13/08/2021,(83400) Office Equipment,(id:2653419) Transplant Renal and Urology,NHS SUPPLY CHAIN (MAIDSTONE),id:14260687, 703.36
Department of Health,Guys and St Thomas NHS Foundation Trust,13/08/2021,(81100) Dressings,(id:2653419) Transplant Renal and Urology,3M UNITED KINGDOM PLC,id:14305960    , 543.46
Department of Health,Guys and St Thomas NHS Foundation Trust,13/08/2021,(82800) Bedding & Linen,(id:42435) Transplant Renal and Urology,NHS SUPPLY CHAIN (MAIDSTONE),id:14279840   , 167.84
Department of Health,Guys and St Thomas NHS Foundation Trust,27/08/2021,(50522) Unqualified Nursing Staff,(id:42435) Transplant Renal and Urology,GLOBE LOCUMS LTD,id:14356652, 198.42
Department of Health,Guys and St Thomas NHS Foundation Trust,27/08/2021,(50522) Unqualified Nursing Staff,(id:42435) Transplant Renal and Urology,GLOBE LOCUMS LTD,id:14356501, 227.16
Department of Health,Guys and St Thomas NHS Foundation Trust,13/08/2021,(81100) Dressings,(id:42435) Transplant Renal and Urology,NHS SUPPLY CHAIN (MAIDSTONE),id:14260687    , 244.69
Department of Health,Guys and St Thomas NHS Foundation Trust,13/08/2021,(81255) Medical Surgical Supplies & Equipment,(id:42435) Transplant Renal and Urology,NHS SUPPLY CHAIN (MAIDSTONE),id:14260687 ,   4.32
Department of Health,Guys and St Thomas NHS Foundation Trust,13/08/2021,(81200) Medical Surgical Supplies & Equipment,(id:42433) Transplant Renal and Urology,TELEFLEX MEDICAL,id:14272642   ,1361.70
Department of Health,Guys and St Thomas NHS Foundation Trust,27/08/2021,(81200) Medical Surgical Supplies & Equipment,(id:42420) Transplant Renal and Urology,LINC MEDICAL SYSTEMS  LTD,id:14350979    ,2280.00
Department of Health,Guys and St Thomas NHS Foundation Trust,13/08/2021,(81200) Medical Surgical Supplies & Equipment,(id:42420) Transplant Renal and Urology,NHS SUPPLY CHAIN (MAIDSTONE),id:14279840 ,3593.04
Department of Health,Guys and St Thomas NHS Foundation Trust,20/08/2021,(81200) Medical Surgical Supplies & Equipment,(id:42420) Transplant Renal and Urology,FRESENIUS MEDICAL CARE UK LTD,id:14327534,2255.76
Department of Health,Guys and St Thomas NHS Foundation Trust,13/08/2021,(81100) Dressings,(id:42420) Transplant Renal and Urology,NHS SUPPLY CHAIN (MAIDSTONE),id:14260687    , 266.69
Department of Health,Guys and St Thomas NHS Foundation Trust,20/08/2021,(81100) Dressings,(id:42420) Transplant Renal and Urology,NHS SUPPLY CHAIN (MAIDSTONE),id:14342661    , 298.96
Department of Health,Guys and St Thomas NHS Foundation Trust,13/08/2021,(82000) Provisions & Kitchens,(id:42420) Transplant Renal and Urology,NHS SUPPLY CHAIN (MAIDSTONE),id:14279840  , 181.41
Department of Health,Guys and St Thomas NHS Foundation Trust,13/08/2021,(81200) Medical Surgical Supplies & Equipment,(id:42438) Transplant Renal and Urology,NHS SUPPLY CHAIN (MAIDSTONE),id:14260687 , 187.54
Department of Health,Guys and St Thomas NHS Foundation Trust,13/08/2021,(83410) Office Equipment,(id:42432) Transplant Renal and Urology,RICOH UK LTD,id:14301956   , 112.22
Department of Health,Guys and St Thomas NHS Foundation Trust,06/08/2021,(86300) Healthcare from non-NHS bodies,(id:42424) Transplant Renal and Urology,DIAVERUM UK LTD,id:14261528 ,    55496.62
Department of Health,Guys and St Thomas NHS Foundation Trust,20/08/2021,(81200) Medical Surgical Supplies & Equipment,(id:42422) Transplant Renal and Urology,NXSTAGE MEDICAL UK LIMITED,id:14298914   ,1116.00
Department of Health,Guys and St Thomas NHS Foundation Trust,27/08/2021,(81200) Medical Surgical Supplies & Equipment,(id:42422) Transplant Renal and Urology,NXSTAGE MEDICAL UK LIMITED,id:14354753   ,1084.98
Department of Health,Guys and St Thomas NHS Foundation Trust,06/08/2021,(81200) Medical Surgical Supplies & Equipment,(id:42422) Transplant Renal and Urology,NXSTAGE MEDICAL UK LIMITED,id:14193326   , 982.08
Department of Health,Guys and St Thomas NHS Foundation Trust,06/08/2021,(81200) Medical Surgical Supplies & Equipment,(id:42422) Transplant Renal and Urology,NXSTAGE MEDICAL UK LIMITED,id:14189874   ,1013.16
Department of Health,Guys and St Thomas NHS Foundation Trust,06/08/2021,(81200) Medical Surgical Supplies & Equipment,(id:42422) Transplant Renal and Urology,NXSTAGE MEDICAL UK LIMITED,id:14278067   ,1964.16
Department of Health,Guys and St Thomas NHS Foundation Trust,06/08/2021,(81200) Medical Surgical Supplies & Equipment,(id:42422) Transplant Renal and Urology,NXSTAGE MEDICAL UK LIMITED,id:14293854   ,-785.66
Department of Health,Guys and St Thomas NHS Foundation Trust,06/08/2021,(81200) Medical Surgical Supplies & Equipment,(id:42422) Transplant Renal and Urology,NXSTAGE MEDICAL UK LIMITED,id:14294204   ,-785.66
Department of Health,Guys and St Thomas NHS Foundation Trust,13/08/2021,(81200) Medical Surgical Supplies & Equipment,(id:42422) Transplant Renal and Urology,NXSTAGE MEDICAL UK LIMITED,id:14051154   ,1954.25
Department of Health,Guys and St Thomas NHS Foundation Trust,13/08/2021,(81200) Medical Surgical Supplies & Equipment,(id:42422) Transplant Renal and Urology,NXSTAGE MEDICAL UK LIMITED,id:14306634   ,1346.64
Department of Health,Guys and St Thomas NHS Foundation Trust,13/08/2021,(81100) Dressings,(id:42422) Transplant Renal and Urology,NHS SUPPLY CHAIN (MAIDSTONE),id:14245807    ,  55.16
Department of Health,Guys and St Thomas NHS Foundation Trust,20/08/2021,(81700) Lab Equipment Purchase,(id:42421) Transplant Renal and Urology,NHS SUPPLY CHAIN (MAIDSTONE),id:14342661 ,  13.56
Department of Health,Guys and St Thomas NHS Foundation Trust,13/08/2021,(82800) Bedding & Linen,(id:884419) Surgery,NHS SUPPLY CHAIN (MAIDSTONE),id:14279840   ,  10.15
Department of Health,Guys and St Thomas NHS Foundation Trust,13/08/2021,(83400) Office Equipment,(id:42485) Surgery,NHS SUPPLY CHAIN (MAIDSTONE),id:14245807   , 200.84
Department of Health,Guys and St Thomas NHS Foundation Trust,20/08/2021,(83400) Office Equipment,(id:42485) Surgery,NHS SUPPLY CHAIN (MAIDSTONE),id:14342661   ,  23.93
Department of Health,Guys and St Thomas NHS Foundation Trust,27/08/2021,(81000) Surgical Appliances,(id:42485) Surgery,TALAR MADE ORTHOTICS LTD,id:14348099    ,  43.80
Department of Health,Guys and St Thomas NHS Foundation Trust,27/08/2021,(81000) Surgical Appliances,(id:42485) Surgery,TALAR MADE ORTHOTICS LTD,id:14348035    , 560.50
Department of Health,Guys and St Thomas NHS Foundation Trust,13/08/2021,(81100) Dressings,(id:42485) Surgery,NHS SUPPLY CHAIN (MAIDSTONE),id:14279840, 394.05
Department of Health,Guys and St Thomas NHS Foundation Trust,20/08/2021,(81100) Dressings,(id:42485) Surgery,NHS SUPPLY CHAIN (MAIDSTONE),id:14342661, 147.40
Department of Health,Guys and St Thomas NHS Foundation Trust,13/08/2021,(81200) Medical Surgical Supplies & Equipment,(id:42485) Surgery,NHS SUPPLY CHAIN (MAIDSTONE),id:14279840  , 334.24
Department of Health,Guys and St Thomas NHS Foundation Trust,13/08/2021,(81200) Medical Surgical Supplies & Equipment,(id:42484) Surgery,MERCIAN SURGICAL SUPPLY CO LTD,id:14277069, 912.00
Department of Health,Guys and St Thomas NHS Foundation Trust,20/08/2021,(81200) Medical Surgical Supplies & Equipment,(id:42484) Surgery,HUNTLEIGH HEALTHCARE (LUTON) LTD,id:14288555   ,2308.68
Department of Health,Guys and St Thomas NHS Foundation Trust,20/08/2021,(81200) Medical Surgical Supplies & Equipment,(id:42484) Surgery,Q MEDICAL TECHNOLOGIES LTD,id:14331308    ,2538.48
Department of Health,Guys and St Thomas NHS Foundation Trust,13/08/2021,(83400) Office Equipment,(id:42484) Surgery,NHS SUPPLY CHAIN (MAIDSTONE),id:14245807   ,   2.38
Department of Health,Guys and St Thomas NHS Foundation Trust,13/08/2021,(81200) Medical Surgical Supplies & Equipment,(id:42483) Surgery,NHS SUPPLY CHAIN (MAIDSTONE),id:14245807  , 117.93
Department of Health,Guys and St Thomas NHS Foundation Trust,13/08/2021,(81200) Medical Surgical Supplies & Equipment,(id:42483) Surgery,MERCIAN SURGICAL SUPPLY CO LTD,id:14312515,1032.00
Department of Health,Guys and St Thomas NHS Foundation Trust,06/08/2021,(81200) Medical Surgical Supplies & Equipment,(id:42467) Surgery,JOHNSON & JOHNSON MEDICAL LTD,id:14265780 , 742.74
Department of Health,Guys and St Thomas NHS Foundation Trust,13/08/2021,(81200) Medical Surgical Supplies & Equipment,(id:42467) Surgery,NHS SUPPLY CHAIN (MAIDSTONE),id:14260687  ,1123.96
Department of Health,Guys and St Thomas NHS Foundation Trust,13/08/2021,(81200) Medical Surgical Supplies & Equipment,(id:42467) Surgery,ACUMED LTD,id:14279909, 695.16
Department of Health,Guys and St Thomas NHS Foundation Trust,27/08/2021,(81200) Medical Surgical Supplies & Equipment,(id:42467) Surgery,JOHNSON & JOHNSON MEDICAL LTD,id:14001034 ,1584.27
Department of Health,Guys and St Thomas NHS Foundation Trust,27/08/2021,(81200) Medical Surgical Supplies & Equipment,(id:42467) Surgery,JOHNSON & JOHNSON MEDICAL LTD,id:14324148 ,1037.73
Department of Health,Guys and St Thomas NHS Foundation Trust,27/08/2021,(81200) Medical Surgical Supplies & Equipment,(id:42467) Surgery,JOHNSON & JOHNSON MEDICAL LTD,id:14000614 ,1189.18
Department of Health,Guys and St Thomas NHS Foundation Trust,06/08/2021,(81200) Medical Surgical Supplies & Equipment,(id:42467) Surgery,T J SMITH & NEPHEW LTD,id:14290994   , 744.05
Department of Health,Guys and St Thomas NHS Foundation Trust,13/08/2021,(83400) Office Equipment,(id:42467) Surgery,NHS SUPPLY CHAIN (MAIDSTONE),id:14260687   , 581.82
Department of Health,Guys and St Thomas NHS Foundation Trust,13/08/2021,(83400) Office Equipment,(id:42466) Surgery,NHS SUPPLY CHAIN (MAIDSTONE),id:14260687   ,   4.81
Department of Health,Guys and St Thomas NHS Foundation Trust,13/08/2021,(81100) Dressings,(id:42466) Surgery,NHS SUPPLY CHAIN (MAIDSTONE),id:14260687, 691.16
Department of Health,Guys and St Thomas NHS Foundation Trust,20/08/2021,(82000) Provisions & Kitchens,(id:42465) Surgery,NHS SUPPLY CHAIN (MAIDSTONE),id:14342661   ,   4.86
Department of Health,Guys and St Thomas NHS Foundation Trust,13/08/2021,(82800) Bedding & Linen,(id:42465) Surgery,NHS SUPPLY CHAIN (MAIDSTONE),id:14245807    , 244.70
Department of Health,Guys and St Thomas NHS Foundation Trust,13/08/2021,(82800) Bedding & Linen,(id:42465) Surgery,NHS SUPPLY CHAIN (MAIDSTONE),id:14260687    ,  61.92
Department of Health,Guys and St Thomas NHS Foundation Trust,13/08/2021,(81100) Dressings,(id:42465) Surgery,NHS SUPPLY CHAIN (MAIDSTONE),id:14260687, 405.36
Department of Health,Guys and St Thomas NHS Foundation Trust,13/08/2021,(81100) Dressings,(id:42465) Surgery,NHS SUPPLY CHAIN (MAIDSTONE),id:14279840, 374.01
Department of Health,Guys and St Thomas NHS Foundation Trust,13/08/2021,(81700) Lab Equipment Purchase,(id:42465) Surgery,NHS SUPPLY CHAIN (MAIDSTONE),id:14260687  ,  92.98
Department of Health,Guys and St Thomas NHS Foundation Trust,13/08/2021,(81700) Lab Equipment Purchase,(id:42465) Surgery,NHS SUPPLY CHAIN (MAIDSTONE),id:14245807  , 142.42
Department of Health,Guys and St Thomas NHS Foundation Trust,13/08/2021,(86300) Healthcare from non-NHS bodies,(id:42464) Surgery,JOHNSON & JOHNSON FINANCE LIMITED,id:14283434    ,  1908501.00
Department of Health,Guys and St Thomas NHS Foundation Trust,13/08/2021,(81700) Lab Equipment Purchase,(id:42464) Surgery,NHS SUPPLY CHAIN (MAIDSTONE),id:14260687  ,  15.23
Department of Health,Guys and St Thomas NHS Foundation Trust,20/08/2021,(83400) Office Equipment,(id:42463) Surgery,NHS SUPPLY CHAIN (MAIDSTONE),id:14342661   , 414.80
Department of Health,Guys and St Thomas NHS Foundation Trust,13/08/2021,(81000) Surgical Appliances,(id:42461) Surgery,TALAR MADE ORTHOTICS LTD,id:14317794    , 649.56
Department of Health,Guys and St Thomas NHS Foundation Trust,13/08/2021,(81000) Surgical Appliances,(id:42461) Surgery,TALAR MADE ORTHOTICS LTD,id:14317474    , 660.04
Department of Health,Guys and St Thomas NHS Foundation Trust,13/08/2021,(81000) Surgical Appliances,(id:42461) Surgery,TALAR MADE ORTHOTICS LTD,id:14317494    , 524.39
Department of Health,Guys and St Thomas NHS Foundation Trust,27/08/2021,(81000) Surgical Appliances,(id:42461) Surgery,TALAR MADE ORTHOTICS LTD,id:14353974    , 203.06
Department of Health,Guys and St Thomas NHS Foundation Trust,20/08/2021,(82700) Uniforms & Clothing,(id:42459) Surgery,NHS SUPPLY CHAIN (MAIDSTONE),id:14342661,  31.68
Department of Health,Guys and St Thomas NHS Foundation Trust,13/08/2021,(81100) Dressings,(id:42459) Surgery,NHS SUPPLY CHAIN (MAIDSTONE),id:14279840,   7.48
Department of Health,Guys and St Thomas NHS Foundation Trust,13/08/2021,(81000) Surgical Appliances,(id:42459) Surgery,TALAR MADE ORTHOTICS LTD,id:14315775    ,  29.40
Department of Health,Guys and St Thomas NHS Foundation Trust,13/08/2021,(83400) Office Equipment,(id:42459) Surgery,NHS SUPPLY CHAIN (MAIDSTONE),id:14245807   , 203.25
Department of Health,Guys and St Thomas NHS Foundation Trust,13/08/2021,(81225) Medical Surgical Supplies & Equipment,(id:42459) Surgery,NHS SUPPLY CHAIN (MAIDSTONE),id:14260687  ,  29.09
Department of Health,Guys and St Thomas NHS Foundation Trust,13/08/2021,(82000) Provisions & Kitchens,(id:42458) Surgery,NHS SUPPLY CHAIN (MAIDSTONE),id:14279840   ,   7.80
Department of Health,Guys and St Thomas NHS Foundation Trust,20/08/2021,(81700) Lab Equipment Purchase,(id:42458) Surgery,NHS SUPPLY CHAIN (MAIDSTONE),id:14342661  ,  19.87
Department of Health,Guys and St Thomas NHS Foundation Trust,13/08/2021,(81700) Lab Equipment Purchase,(id:42458) Surgery,NHS SUPPLY CHAIN (MAIDSTONE),id:14260687  ,  10.15
Department of Health,Guys and St Thomas NHS Foundation Trust,13/08/2021,(83410) Office Equipment,(id:42276) Haematology Cellular Pathology and Supporting Services,RICOH UK LTD,id:14301837  , 159.10
Department of Health,Guys and St Thomas NHS Foundation Trust,13/08/2021,(81200) Medical Surgical Supplies & Equipment,(id:42270) Haematology Cellular Pathology and Supporting Services,NHS SUPPLY CHAIN (MAIDSTONE),id:14279840,3121.94
Department of Health,Guys and St Thomas NHS Foundation Trust,20/08/2021,(82800) Bedding & Linen,(id:42270) Haematology Cellular Pathology and Supporting Services,NHS SUPPLY CHAIN (MAIDSTONE),id:14342661  ,  46.82
Department of Health,Guys and St Thomas NHS Foundation Trust,06/08/2021,(81000) Surgical Appliances,(id:42268) Haematology Cellular Pathology and Supporting Services,MEDI UK LTD,id:14291736, 154.72
Department of Health,Guys and St Thomas NHS Foundation Trust,06/08/2021,(81000) Surgical Appliances,(id:42268) Haematology Cellular Pathology and Supporting Services,MEDI UK LTD,id:14291766, 424.62
Department of Health,Guys and St Thomas NHS Foundation Trust,10/08/2021,(50470) Medical Training Grades,(id:42267) Haematology Cellular Pathology and Supporting Services,KINGS COLLEGE LONDON:03529700,id:14217026   , 770.49
Department of Health,Guys and St Thomas NHS Foundation Trust,13/08/2021,(82700) Uniforms & Clothing,(id:42265) Haematology Cellular Pathology and Supporting Services,NHS SUPPLY CHAIN (MAIDSTONE),id:14279840   ,  31.68
Department of Health,Guys and St Thomas NHS Foundation Trust,13/08/2021,(82000) Provisions & Kitchens,(id:42265) Haematology Cellular Pathology and Supporting Services,NHS SUPPLY CHAIN (MAIDSTONE),id:14260687 , 145.01
Department of Health,Guys and St Thomas NHS Foundation Trust,13/08/2021,(83400) Office Equipment,(id:42265) Haematology Cellular Pathology and Supporting Services,NHS SUPPLY CHAIN (MAIDSTONE),id:14260687 , 195.70
Department of Health,Guys and St Thomas NHS Foundation Trust,13/08/2021,(83400) Office Equipment,(id:42265) Haematology Cellular Pathology and Supporting Services,NHS SUPPLY CHAIN (MAIDSTONE),id:14279840 , 176.06
Department of Health,Guys and St Thomas NHS Foundation Trust,06/08/2021,(84500) Establishment,(id:42272) Haematology Cellular Pathology and Supporting Services,OFFICE DEPOT UK LTD,id:14254346   , 119.52
Department of Health,Guys and St Thomas NHS Foundation Trust,16/08/2021,(80205) Drug Costs,(id:42273) Haematology Cellular Pathology and Supporting Services,ALCURA UK LIMITED,id:14299594   ,2750.00
Department of Health,Guys and St Thomas NHS Foundation Trust,26/08/2021,(80205) Drug Costs,(id:42273) Haematology Cellular Pathology and Supporting Services,HEALTHCARE AT HOME LTD,id:14353235   ,1583.67
Department of Health,Guys and St Thomas NHS Foundation Trust,26/08/2021,(80205) Drug Costs,(id:42273) Haematology Cellular Pathology and Supporting Services,HEALTHCARE AT HOME LTD,id:14353262   ,2068.17
Department of Health,Guys and St Thomas NHS Foundation Trust,26/08/2021,(80205) Drug Costs,(id:42273) Haematology Cellular Pathology and Supporting Services,HEALTHCARE AT HOME LTD,id:14353376   ,4930.17
Department of Health,Guys and St Thomas NHS Foundation Trust,26/08/2021,(80205) Drug Costs,(id:42273) Haematology Cellular Pathology and Supporting Services,HEALTHCARE AT HOME LTD,id:14353357   ,6530.17
Department of Health,Guys and St Thomas NHS Foundation Trust,26/08/2021,(80205) Drug Costs,(id:42273) Haematology Cellular Pathology and Supporting Services,HEALTHCARE AT HOME LTD,id:14353350   ,    14130.17
Department of Health,Guys and St Thomas NHS Foundation Trust,27/08/2021,(80205) Drug Costs,(id:42273) Haematology Cellular Pathology and Supporting Services,HEALTHCARE AT HOME LTD,id:14353416   ,5098.92
Department of Health,Guys and St Thomas NHS Foundation Trust,06/08/2021,(80205) Drug Costs,(id:42273) Haematology Cellular Pathology and Supporting Services,HEALTHCARE AT HOME LTD,id:14300014   ,5130.17
Department of Health,Guys and St Thomas NHS Foundation Trust,06/08/2021,(80205) Drug Costs,(id:42273) Haematology Cellular Pathology and Supporting Services,HEALTHCARE AT HOME LTD,id:14299694   ,3550.17
Department of Health,Guys and St Thomas NHS Foundation Trust,13/08/2021,(80205) Drug Costs,(id:42273) Haematology Cellular Pathology and Supporting Services,HEALTHCARE AT HOME LTD,id:14316434   ,6127.00
Department of Health,Guys and St Thomas NHS Foundation Trust,13/08/2021,(80205) Drug Costs,(id:42273) Haematology Cellular Pathology and Supporting Services,HEALTHCARE AT HOME LTD,id:14316774   ,8227.00
Department of Health,Guys and St Thomas NHS Foundation Trust,13/08/2021,(80205) Drug Costs,(id:42273) Haematology Cellular Pathology and Supporting Services,HEALTHCARE AT HOME LTD,id:14316134   ,    17587.00
Department of Health,Guys and St Thomas NHS Foundation Trust,13/08/2021,(80205) Drug Costs,(id:42273) Haematology Cellular Pathology and Supporting Services,HEALTHCARE AT HOME LTD,id:14316675   ,    19007.00
Department of Health,Guys and St Thomas NHS Foundation Trust,13/08/2021,(80205) Drug Costs,(id:42273) Haematology Cellular Pathology and Supporting Services,HEALTHCARE AT HOME LTD,id:14316137   ,    19527.00
Department of Health,Guys and St Thomas NHS Foundation Trust,13/08/2021,(80205) Drug Costs,(id:42273) Haematology Cellular Pathology and Supporting Services,HEALTHCARE AT HOME LTD,id:14316474   ,    20650.40
Department of Health,Guys and St Thomas NHS Foundation Trust,20/08/2021,(80205) Drug Costs,(id:42273) Haematology Cellular Pathology and Supporting Services,HEALTHCARE AT HOME LTD,id:14342537   ,5098.92
Department of Health,Guys and St Thomas NHS Foundation Trust,20/08/2021,(80205) Drug Costs,(id:42273) Haematology Cellular Pathology and Supporting Services,HEALTHCARE AT HOME LTD,id:14342535   ,9130.17
Department of Health,Guys and St Thomas NHS Foundation Trust,13/08/2021,(83410) Office Equipment,(id:42128) Haematology Cellular Pathology and Supporting Services,RICOH UK LTD,id:14301837  , 143.81
Department of Health,Guys and St Thomas NHS Foundation Trust,13/08/2021,(54052) Technical Officers,(id:42128) Haematology Cellular Pathology and Supporting Services,TOTAL ASSIST RECRUITMENT LTD,id:14322730    ,1280.70
Department of Health,Guys and St Thomas NHS Foundation Trust,06/08/2021,(54052) Technical Officers,(id:42128) Haematology Cellular Pathology and Supporting Services,TOTAL ASSIST RECRUITMENT LTD,id:14303159    , 990.41
Department of Health,Guys and St Thomas NHS Foundation Trust,06/08/2021,(81500) X Ray Equipment Purchase,(id:5204419) Oncology Services,BXTACCELYON LIMITED,id:14293735  ,    10054.00
Department of Health,Guys and St Thomas NHS Foundation Trust,20/08/2021,(82800) Bedding & Linen,(id:42258) Oncology Services,NHS SUPPLY CHAIN (MAIDSTONE),id:14342661    ,  46.82
Department of Health,Guys and St Thomas NHS Foundation Trust,27/08/2021,(89595) Non-Healthcare from Foundation Trusts,(id:42258) Oncology Services,OXLEAS NHS FOUNDATION TRUST,id:14354540   ,2480.32
Department of Health,Guys and St Thomas NHS Foundation Trust,27/08/2021,(89595) Non-Healthcare from Foundation Trusts,(id:42258) Oncology Services,OXLEAS NHS FOUNDATION TRUST,id:14354537   ,    19537.72
Department of Health,Guys and St Thomas NHS Foundation Trust,13/08/2021,(81100) Dressings,(id:42258) Oncology Services,NHS SUPPLY CHAIN (MAIDSTONE),id:14260687, 278.36
Department of Health,Guys and St Thomas NHS Foundation Trust,27/08/2021,(81000) Surgical Appliances,(id:42257) Oncology Services,TALAR MADE ORTHOTICS LTD,id:14348081    ,  42.28
Department of Health,Guys and St Thomas NHS Foundation Trust,27/08/2021,(83610) IT Costs,(id:42261) Oncology Services,PROBRAND LIMITED,id:14354495   , 642.00
Department of Health,Guys and St Thomas NHS Foundation Trust,06/08/2021,(83410) Office Equipment,(id:42261) Oncology Services,RICOH UK LTD,id:14302157    , 502.32
Department of Health,Guys and St Thomas NHS Foundation Trust,13/08/2021,(81000) Surgical Appliances,(id:42261) Oncology Services,TALAR MADE ORTHOTICS LTD,id:14315658    ,  25.22
Department of Health,Guys and St Thomas NHS Foundation Trust,13/08/2021,(82600) Uniforms & Clothing,(id:42260) Oncology Services,NHS SUPPLY CHAIN (MAIDSTONE),id:14245807,  58.64
Department of Health,Guys and St Thomas NHS Foundation Trust,13/08/2021,(81200) Medical Surgical Supplies & Equipment,(id:42260) Oncology Services,NHS SUPPLY CHAIN (MAIDSTONE),id:14279840  ,9799.93
Department of Health,Guys and St Thomas NHS Foundation Trust,20/08/2021,(81200) Medical Surgical Supplies & Equipment,(id:42260) Oncology Services,NHS SUPPLY CHAIN (MAIDSTONE),id:14342661  ,2421.81
Department of Health,Guys and St Thomas NHS Foundation Trust,06/08/2021,(81200) Medical Surgical Supplies & Equipment,(id:42260) Oncology Services,KIMAL PLC,id:14302568 ,    -4492.20
Department of Health,Guys and St Thomas NHS Foundation Trust,13/08/2021,(82800) Bedding & Linen,(id:42260) Oncology Services,NHS SUPPLY CHAIN (MAIDSTONE),id:14245807    , 338.20
Department of Health,Guys and St Thomas NHS Foundation Trust,13/08/2021,(83410) Office Equipment,(id:42260) Oncology Services,RICOH UK LTD,id:14302184    , 375.58
Department of Health,Guys and St Thomas NHS Foundation Trust,20/08/2021,(81400) Medical Surgical Supplies & Equipment,(id:42260) Oncology Services,CAMELOT FURNITURE LTD,id:14333975    , 499.00
Department of Health,Guys and St Thomas NHS Foundation Trust,13/08/2021,(83400) Office Equipment,(id:42260) Oncology Services,NHS SUPPLY CHAIN (MAIDSTONE),id:14260687   , 186.27
Department of Health,Guys and St Thomas NHS Foundation Trust,20/08/2021,(81700) Lab Equipment Purchase,(id:42260) Oncology Services,NHS SUPPLY CHAIN (MAIDSTONE),id:14342661  ,  66.87
Department of Health,Guys and St Thomas NHS Foundation Trust,13/08/2021,(82000) Provisions & Kitchens,(id:42260) Oncology Services,NHS SUPPLY CHAIN (MAIDSTONE),id:14245807   , 119.34
Department of Health,Guys and St Thomas NHS Foundation Trust,13/08/2021,(82000) Provisions & Kitchens,(id:42259) Oncology Services,NHS SUPPLY CHAIN (MAIDSTONE),id:14260687   , 397.56
Department of Health,Guys and St Thomas NHS Foundation Trust,13/08/2021,(82000) Provisions & Kitchens,(id:42259) Oncology Services,NHS SUPPLY CHAIN (MAIDSTONE),id:14245807   , 117.51
Department of Health,Guys and St Thomas NHS Foundation Trust,20/08/2021,(82000) Provisions & Kitchens,(id:42259) Oncology Services,NHS SUPPLY CHAIN (MAIDSTONE),id:14342661   ,  44.43
Department of Health,Guys and St Thomas NHS Foundation Trust,13/08/2021,(82600) Uniforms & Clothing,(id:42259) Oncology Services,NHS SUPPLY CHAIN (MAIDSTONE),id:14245807,  42.12
Department of Health,Guys and St Thomas NHS Foundation Trust,13/08/2021,(81100) Dressings,(id:42259) Oncology Services,NHS SUPPLY CHAIN (MAIDSTONE),id:14245807, 113.94
Department of Health,Guys and St Thomas NHS Foundation Trust,20/08/2021,(81200) Medical Surgical Supplies & Equipment,(id:42259) Oncology Services,NHS SUPPLY CHAIN (MAIDSTONE),id:14342661  , 391.19
Department of Health,Guys and St Thomas NHS Foundation Trust,20/08/2021,(83400) Office Equipment,(id:42259) Oncology Services,NHS SUPPLY CHAIN (MAIDSTONE),id:14342661   ,  13.98
Department of Health,Guys and St Thomas NHS Foundation Trust,17/08/2021,(81215) Medical Surgical Supplies & Equipment,(id:43029) Surgical Oncology,WOLTERS KLUWER (UK) LTD:69086400,id:14327383   ,2424.46
Department of Health,Guys and St Thomas NHS Foundation Trust,06/08/2021,(81200) Medical Surgical Supplies & Equipment,(id:42280) Surgical Oncology,Q MEDICAL TECHNOLOGIES LTD,id:14287588    ,2650.80
Department of Health,Guys and St Thomas NHS Foundation Trust,13/08/2021,(81200) Medical Surgical Supplies & Equipment,(id:42280) Surgical Oncology,JOHNSON & JOHNSON MEDICAL LTD,id:14318768 , 984.71
Department of Health,Guys and St Thomas NHS Foundation Trust,13/08/2021,(81200) Medical Surgical Supplies & Equipment,(id:42280) Surgical Oncology,JOHNSON & JOHNSON MEDICAL LTD,id:14318769 ,1412.83
Department of Health,Guys and St Thomas NHS Foundation Trust,13/08/2021,(81700) Lab Equipment Purchase,(id:42280) Surgical Oncology,NHS SUPPLY CHAIN (MAIDSTONE),id:14279840  ,   6.55
Department of Health,Guys and St Thomas NHS Foundation Trust,13/08/2021,(81700) Lab Equipment Purchase,(id:243406) Surgical Oncology,NHS SUPPLY CHAIN (MAIDSTONE),id:14279840 ,  27.64
Department of Health,Guys and St Thomas NHS Foundation Trust,13/08/2021,(81100) Dressings,(id:243406) Surgical Oncology,NHS SUPPLY CHAIN (MAIDSTONE),id:14260687    ,  80.26
Department of Health,Guys and St Thomas NHS Foundation Trust,27/08/2021,(81000) Surgical Appliances,(id:42477) Surgical Oncology,TALAR MADE ORTHOTICS LTD,id:14348116    , 186.00
Department of Health,Guys and St Thomas NHS Foundation Trust,13/08/2021,(81200) Medical Surgical Supplies & Equipment,(id:42474) Surgical Oncology,MEDTRONIC LTD,id:14285867  , 672.00
Department of Health,Guys and St Thomas NHS Foundation Trust,13/08/2021,(83400) Office Equipment,(id:42474) Surgical Oncology,NHS SUPPLY CHAIN (MAIDSTONE),id:14245807   ,  75.36
Department of Health,Guys and St Thomas NHS Foundation Trust,13/08/2021,(81000) Surgical Appliances,(id:42474) Surgical Oncology,TALAR MADE ORTHOTICS LTD,id:14315815    ,  38.04
Department of Health,Guys and St Thomas NHS Foundation Trust,13/08/2021,(81200) Medical Surgical Supplies & Equipment,(id:42473) Surgical Oncology,NHS SUPPLY CHAIN (MAIDSTONE),id:14245807  ,9089.29
Department of Health,Guys and St Thomas NHS Foundation Trust,20/08/2021,(81200) Medical Surgical Supplies & Equipment,(id:42473) Surgical Oncology,MEDTRONIC LTD,id:14289676  , 648.00
Department of Health,Guys and St Thomas NHS Foundation Trust,27/08/2021,(81200) Medical Surgical Supplies & Equipment,(id:42473) Surgical Oncology,CCMED LTD,id:14341311 , 538.20
Department of Health,Guys and St Thomas NHS Foundation Trust,06/08/2021,(81200) Medical Surgical Supplies & Equipment,(id:42473) Surgical Oncology,JOHNSON & JOHNSON MEDICAL LTD,id:14263896 , 590.80
Department of Health,Guys and St Thomas NHS Foundation Trust,06/08/2021,(81200) Medical Surgical Supplies & Equipment,(id:42473) Surgical Oncology,MEDTRONIC LTD,id:14254048  , 601.20
Department of Health,Guys and St Thomas NHS Foundation Trust,06/08/2021,(81400) Medical Surgical Supplies & Equipment,(id:42473) Surgical Oncology,KARL STORZ ENDOSCOPY UK LTD,id:14294651   , 771.80
Department of Health,Guys and St Thomas NHS Foundation Trust,06/08/2021,(81200) Medical Surgical Supplies & Equipment,(id:42475) Surgical Oncology,LJA MIERS & CO LTD,id:14288465  , 766.80
Department of Health,Guys and St Thomas NHS Foundation Trust,13/08/2021,(83400) Office Equipment,(id:42475) Surgical Oncology,NHS SUPPLY CHAIN (MAIDSTONE),id:14260687   ,  30.96
Department of Health,Guys and St Thomas NHS Foundation Trust,24/08/2021,(54052) Technical Officers,(id:42475) Surgical Oncology,PRICEWATERHOUSECOOPERS LLP,id:14349735   , 393.62
Department of Health,Guys and St Thomas NHS Foundation Trust,24/08/2021,(54062) Technical Officers,(id:42475) Surgical Oncology,PRICEWATERHOUSECOOPERS LLP,id:14349735   , 605.20
Department of Health,Guys and St Thomas NHS Foundation Trust,13/08/2021,(81215) Medical Surgical Supplies & Equipment,(id:42475) Surgical Oncology,NHS SUPPLY CHAIN (MAIDSTONE),id:14279840  ,6909.43
Department of Health,Guys and St Thomas NHS Foundation Trust,13/08/2021,(81215) Medical Surgical Supplies & Equipment,(id:42475) Surgical Oncology,COCHLEAR EUROPE LTD,id:14322439 ,4758.00
Department of Health,Guys and St Thomas NHS Foundation Trust,13/08/2021,(81215) Medical Surgical Supplies & Equipment,(id:42475) Surgical Oncology,COCHLEAR EUROPE LTD,id:14319575 ,5394.00
Department of Health,Guys and St Thomas NHS Foundation Trust,13/08/2021,(81215) Medical Surgical Supplies & Equipment,(id:42475) Surgical Oncology,COCHLEAR EUROPE LTD,id:14319557 ,5394.00
Department of Health,Guys and St Thomas NHS Foundation Trust,13/08/2021,(81215) Medical Surgical Supplies & Equipment,(id:42475) Surgical Oncology,ADVANCED BIONICS SARL (AND UK LTD),id:14319355 ,7318.80
Department of Health,Guys and St Thomas NHS Foundation Trust,20/08/2021,(81215) Medical Surgical Supplies & Equipment,(id:42475) Surgical Oncology,NHS SUPPLY CHAIN (MAIDSTONE),id:14342661  ,    19057.68
Department of Health,Guys and St Thomas NHS Foundation Trust,13/08/2021,(81225) Medical Surgical Supplies & Equipment,(id:42475) Surgical Oncology,COCHLEAR EUROPE LTD,id:14324024 , 831.60
Department of Health,Guys and St Thomas NHS Foundation Trust,13/08/2021,(81225) Medical Surgical Supplies & Equipment,(id:42475) Surgical Oncology,COCHLEAR EUROPE LTD,id:14323277 , 513.60
Department of Health,Guys and St Thomas NHS Foundation Trust,20/08/2021,(81225) Medical Surgical Supplies & Equipment,(id:42475) Surgical Oncology,COCHLEAR EUROPE LTD,id:14341473 ,1452.00
Department of Health,Guys and St Thomas NHS Foundation Trust,20/08/2021,(81225) Medical Surgical Supplies & Equipment,(id:42475) Surgical Oncology,COCHLEAR EUROPE LTD,id:14328258 , 690.00
Department of Health,Guys and St Thomas NHS Foundation Trust,20/08/2021,(81225) Medical Surgical Supplies & Equipment,(id:42475) Surgical Oncology,COCHLEAR EUROPE LTD,id:14328280 ,1828.80
Department of Health,Guys and St Thomas NHS Foundation Trust,20/08/2021,(81225) Medical Surgical Supplies & Equipment,(id:42475) Surgical Oncology,COCHLEAR EUROPE LTD,id:14328275 ,5499.60
Department of Health,Guys and St Thomas NHS Foundation Trust,20/08/2021,(81200) Medical Surgical Supplies & Equipment,(id:42472) Surgical Oncology,STARKEY LABS LTD,id:14296894    ,7466.14
Department of Health,Guys and St Thomas NHS Foundation Trust,27/08/2021,(81000) Surgical Appliances,(id:42286) Surgical Oncology,CONMED LINVATEC UK,id:14350415,1382.64
Department of Health,Guys and St Thomas NHS Foundation Trust,27/08/2021,(81235) Medical Surgical Supplies & Equipment,(id:42286) Surgical Oncology,BOSTON SCIENTIFIC LTD,id:14307540    , 147.98
Department of Health,Guys and St Thomas NHS Foundation Trust,13/08/2021,(81235) Medical Surgical Supplies & Equipment,(id:42286) Surgical Oncology,NHS SUPPLY CHAIN (MAIDSTONE),id:14260687  , 159.12
Department of Health,Guys and St Thomas NHS Foundation Trust,13/08/2021,(81200) Medical Surgical Supplies & Equipment,(id:42286) Surgical Oncology,MEDTRONIC LTD,id:14320376  ,2160.22
Department of Health,Guys and St Thomas NHS Foundation Trust,13/08/2021,(81200) Medical Surgical Supplies & Equipment,(id:42286) Surgical Oncology,NHS SUPPLY CHAIN (MAIDSTONE),id:14260687  ,    13779.60
Department of Health,Guys and St Thomas NHS Foundation Trust,13/08/2021,(81200) Medical Surgical Supplies & Equipment,(id:42286) Surgical Oncology,BAXTER HEALTHCARE LTD,id:14253414    ,1880.10
Department of Health,Guys and St Thomas NHS Foundation Trust,27/08/2021,(81200) Medical Surgical Supplies & Equipment,(id:42286) Surgical Oncology,BOSTON SCIENTIFIC LTD,id:14307540    , 796.82
Department of Health,Guys and St Thomas NHS Foundation Trust,27/08/2021,(81200) Medical Surgical Supplies & Equipment,(id:42286) Surgical Oncology,MEDTRONIC LTD,id:14319049  ,2959.06
Department of Health,Guys and St Thomas NHS Foundation Trust,06/08/2021,(81200) Medical Surgical Supplies & Equipment,(id:42286) Surgical Oncology,MEDTRONIC LTD,id:14248979  , 986.54
Department of Health,Guys and St Thomas NHS Foundation Trust,06/08/2021,(81200) Medical Surgical Supplies & Equipment,(id:42286) Surgical Oncology,KAPITEX HEALTHCARE LTD,id:14305498   , 986.89
Department of Health,Guys and St Thomas NHS Foundation Trust,13/08/2021,(81100) Dressings,(id:42284) Surgical Oncology,NHS SUPPLY CHAIN (MAIDSTONE),id:14279840, 214.54
Department of Health,Guys and St Thomas NHS Foundation Trust,13/08/2021,(81100) Dressings,(id:42284) Surgical Oncology,NHS SUPPLY CHAIN (MAIDSTONE),id:14245807, 187.26
Department of Health,Guys and St Thomas NHS Foundation Trust,13/08/2021,(81255) Medical Surgical Supplies & Equipment,(id:42284) Surgical Oncology,NHS SUPPLY CHAIN (MAIDSTONE),id:14279840  ,   3.12
Department of Health,Guys and St Thomas NHS Foundation Trust,13/08/2021,(81100) Dressings,(id:42470) Surgical Oncology,NHS SUPPLY CHAIN (MAIDSTONE),id:14260687, 836.62
Department of Health,Guys and St Thomas NHS Foundation Trust,13/08/2021,(81200) Medical Surgical Supplies & Equipment,(id:42470) Surgical Oncology,NHS SUPPLY CHAIN (MAIDSTONE),id:14279840  , 950.34
Department of Health,Guys and St Thomas NHS Foundation Trust,13/08/2021,(81200) Medical Surgical Supplies & Equipment,(id:42508) Surgical Oncology,NHS SUPPLY CHAIN (MAIDSTONE),id:14279840  , 140.10
Department of Health,Guys and St Thomas NHS Foundation Trust,13/08/2021,(81700) Lab Equipment Purchase,(id:2182419) Acute & General Medicine,NHS SUPPLY CHAIN (MAIDSTONE),id:14260687   , 158.25
Department of Health,Guys and St Thomas NHS Foundation Trust,13/08/2021,(81200) Medical Surgical Supplies & Equipment,(id:2182419) Acute & General Medicine,NHS SUPPLY CHAIN (MAIDSTONE),id:14245807   ,1862.98
Department of Health,Guys and St Thomas NHS Foundation Trust,27/08/2021,(50552) Qualified Nursing Staff,(id:2182419) Acute & General Medicine,GLOBE LOCUMS LTD,id:14359686    , 330.82
Department of Health,Guys and St Thomas NHS Foundation Trust,13/08/2021,(50522) Unqualified Nursing Staff,(id:2182419) Acute & General Medicine,CARE PROVIDERS HEALTHCARE,id:14325177   , 520.49
Department of Health,Guys and St Thomas NHS Foundation Trust,13/08/2021,(50522) Unqualified Nursing Staff,(id:2182419) Acute & General Medicine,MSI GROUP LTD,id:14322599, 252.93
Department of Health,Guys and St Thomas NHS Foundation Trust,13/08/2021,(82000) Provisions & Kitchens,(id:2182419) Acute & General Medicine,NHS SUPPLY CHAIN (MAIDSTONE),id:14279840    , 468.18
Department of Health,Guys and St Thomas NHS Foundation Trust,13/08/2021,(82000) Provisions & Kitchens,(id:2182419) Acute & General Medicine,NHS SUPPLY CHAIN (MAIDSTONE),id:14260687    , 146.39
Department of Health,Guys and St Thomas NHS Foundation Trust,13/08/2021,(82000) Provisions & Kitchens,(id:41860) Acute & General Medicine,NHS SUPPLY CHAIN (MAIDSTONE),id:14279840 , 607.23
Department of Health,Guys and St Thomas NHS Foundation Trust,13/08/2021,(83400) Office Equipment,(id:41860) Acute & General Medicine,NHS SUPPLY CHAIN (MAIDSTONE),id:14279840 , 103.47
Department of Health,Guys and St Thomas NHS Foundation Trust,20/08/2021,(83400) Office Equipment,(id:41860) Acute & General Medicine,NHS SUPPLY CHAIN (MAIDSTONE),id:14342661 ,  98.14
Department of Health,Guys and St Thomas NHS Foundation Trust,20/08/2021,(82800) Bedding & Linen,(id:41860) Acute & General Medicine,NHS SUPPLY CHAIN (MAIDSTONE),id:14342661  ,  37.94
Department of Health,Guys and St Thomas NHS Foundation Trust,13/08/2021,(50552) Qualified Nursing Staff,(id:41860) Acute & General Medicine,CONTINENTAL NURSE LTD,id:14322607 ,2143.89
Department of Health,Guys and St Thomas NHS Foundation Trust,13/08/2021,(81255) Medical Surgical Supplies & Equipment,(id:41860) Acute & General Medicine,NHS SUPPLY CHAIN (MAIDSTONE),id:14279840,  22.59
Department of Health,Guys and St Thomas NHS Foundation Trust,20/08/2021,(81255) Medical Surgical Supplies & Equipment,(id:41860) Acute & General Medicine,NHS SUPPLY CHAIN (MAIDSTONE),id:14342661,   4.67
Department of Health,Guys and St Thomas NHS Foundation Trust,06/08/2021,(50522) Unqualified Nursing Staff,(id:41860) Acute & General Medicine,MSI GROUP LTD,id:14302761  , 261.01
Department of Health,Guys and St Thomas NHS Foundation Trust,27/08/2021,(50522) Unqualified Nursing Staff,(id:41860) Acute & General Medicine,GLOBE LOCUMS LTD,id:14359641    , 229.51
Department of Health,Guys and St Thomas NHS Foundation Trust,27/08/2021,(50522) Unqualified Nursing Staff,(id:41860) Acute & General Medicine,GLOBE LOCUMS LTD,id:14356502    , 305.76
Department of Health,Guys and St Thomas NHS Foundation Trust,13/08/2021,(81200) Medical Surgical Supplies & Equipment,(id:41860) Acute & General Medicine,NHS SUPPLY CHAIN (MAIDSTONE),id:14279840, 671.51
Department of Health,Guys and St Thomas NHS Foundation Trust,13/08/2021,(81225) Medical Surgical Supplies & Equipment,(id:41860) Acute & General Medicine,NHS SUPPLY CHAIN (MAIDSTONE),id:14279840,  25.35
Department of Health,Guys and St Thomas NHS Foundation Trust,13/08/2021,(81700) Lab Equipment Purchase,(id:41860) Acute & General Medicine,NHS SUPPLY CHAIN (MAIDSTONE),id:14260687,  50.33
Department of Health,Guys and St Thomas NHS Foundation Trust,13/08/2021,(83400) Office Equipment,(id:41859) Acute & General Medicine,NHS SUPPLY CHAIN (MAIDSTONE),id:14260687 , 162.06
Department of Health,Guys and St Thomas NHS Foundation Trust,13/08/2021,(50552) Qualified Nursing Staff,(id:41859) Acute & General Medicine,CARE PROVIDERS HEALTHCARE,id:14322882  , 621.92
Department of Health,Guys and St Thomas NHS Foundation Trust,13/08/2021,(50552) Qualified Nursing Staff,(id:41859) Acute & General Medicine,CARE PROVIDERS HEALTHCARE,id:14322954  , 636.42
Department of Health,Guys and St Thomas NHS Foundation Trust,13/08/2021,(83410) Office Equipment,(id:41859) Acute & General Medicine,RICOH UK LTD,id:14302184  , 177.79
Department of Health,Guys and St Thomas NHS Foundation Trust,13/08/2021,(81255) Medical Surgical Supplies & Equipment,(id:41859) Acute & General Medicine,NHS SUPPLY CHAIN (MAIDSTONE),id:14279840,  10.11
Department of Health,Guys and St Thomas NHS Foundation Trust,06/08/2021,(50522) Unqualified Nursing Staff,(id:41859) Acute & General Medicine,GLOBE LOCUMS LTD,id:14302927    , 404.08
Department of Health,Guys and St Thomas NHS Foundation Trust,06/08/2021,(50522) Unqualified Nursing Staff,(id:41859) Acute & General Medicine,MSI GROUP LTD,id:14302764  , 767.91
Department of Health,Guys and St Thomas NHS Foundation Trust,20/08/2021,(50522) Unqualified Nursing Staff,(id:41859) Acute & General Medicine,MSI GROUP LTD,id:14340701  , 910.80
Department of Health,Guys and St Thomas NHS Foundation Trust,13/08/2021,(81200) Medical Surgical Supplies & Equipment,(id:41859) Acute & General Medicine,NHS SUPPLY CHAIN (MAIDSTONE),id:14245807, 760.28
Department of Health,Guys and St Thomas NHS Foundation Trust,20/08/2021,(81200) Medical Surgical Supplies & Equipment,(id:41859) Acute & General Medicine,NHS SUPPLY CHAIN (MAIDSTONE),id:14342661, 272.20
Department of Health,Guys and St Thomas NHS Foundation Trust,13/08/2021,(82700) Uniforms & Clothing,(id:41858) Acute & General Medicine,NHS SUPPLY CHAIN (MAIDSTONE),id:14245807   , 105.94
Department of Health,Guys and St Thomas NHS Foundation Trust,13/08/2021,(82800) Bedding & Linen,(id:41858) Acute & General Medicine,NHS SUPPLY CHAIN (MAIDSTONE),id:14260687  , 183.27
Department of Health,Guys and St Thomas NHS Foundation Trust,20/08/2021,(81100) Dressings,(id:41858) Acute & General Medicine,NHS SUPPLY CHAIN (MAIDSTONE),id:14342661   , 823.29
Department of Health,Guys and St Thomas NHS Foundation Trust,13/08/2021,(81255) Medical Surgical Supplies & Equipment,(id:41858) Acute & General Medicine,NHS SUPPLY CHAIN (MAIDSTONE),id:14245807,  15.67
Department of Health,Guys and St Thomas NHS Foundation Trust,06/08/2021,(50522) Unqualified Nursing Staff,(id:41858) Acute & General Medicine,GLOBE LOCUMS LTD,id:14302852    , 222.60
Department of Health,Guys and St Thomas NHS Foundation Trust,13/08/2021,(50522) Unqualified Nursing Staff,(id:41858) Acute & General Medicine,MSI GROUP LTD,id:14322969  , 268.27
Department of Health,Guys and St Thomas NHS Foundation Trust,20/08/2021,(50522) Unqualified Nursing Staff,(id:41858) Acute & General Medicine,MSI GROUP LTD,id:14340773  , 258.37
Department of Health,Guys and St Thomas NHS Foundation Trust,13/08/2021,(81200) Medical Surgical Supplies & Equipment,(id:41858) Acute & General Medicine,NHS SUPPLY CHAIN (MAIDSTONE),id:14260687, 415.41
Department of Health,Guys and St Thomas NHS Foundation Trust,13/08/2021,(81225) Medical Surgical Supplies & Equipment,(id:41858) Acute & General Medicine,NHS SUPPLY CHAIN (MAIDSTONE),id:14279840,  14.55
Department of Health,Guys and St Thomas NHS Foundation Trust,27/08/2021,(81000) Surgical Appliances,(id:41872) Acute & General Medicine,TALAR MADE ORTHOTICS LTD,id:14348214  , 366.00
Department of Health,Guys and St Thomas NHS Foundation Trust,27/08/2021,(50552) Qualified Nursing Staff,(id:41872) Acute & General Medicine,FIRSTPOINT HEALTHCARE LTD,id:14342951  , 429.99
Department of Health,Guys and St Thomas NHS Foundation Trust,13/08/2021,(82600) Uniforms & Clothing,(id:41869) Acute & General Medicine,NHS SUPPLY CHAIN (MAIDSTONE),id:14279840   ,   9.54
Department of Health,Guys and St Thomas NHS Foundation Trust,13/08/2021,(82000) Provisions & Kitchens,(id:41869) Acute & General Medicine,NHS SUPPLY CHAIN (MAIDSTONE),id:14279840 , 552.12
Department of Health,Guys and St Thomas NHS Foundation Trust,06/08/2021,(84500) Establishment,(id:41869) Acute & General Medicine,WAGSTAFF INTERIORS GROUP,id:14287557   ,1416.00
Department of Health,Guys and St Thomas NHS Foundation Trust,06/08/2021,(84500) Establishment,(id:41869) Acute & General Medicine,KINGS COLLEGE LONDON:03529700,id:14301361   , 920.00
Department of Health,Guys and St Thomas NHS Foundation Trust,06/08/2021,(81200) Medical Surgical Supplies & Equipment,(id:41869) Acute & General Medicine,PROTECH MEDICAL LTD,id:14294650    ,1676.40
Department of Health,Guys and St Thomas NHS Foundation Trust,13/08/2021,(81700) Lab Equipment Purchase,(id:41869) Acute & General Medicine,NHS SUPPLY CHAIN (MAIDSTONE),id:14279840, 450.71
Department of Health,Guys and St Thomas NHS Foundation Trust,20/08/2021,(81700) Lab Equipment Purchase,(id:41869) Acute & General Medicine,NHS SUPPLY CHAIN (MAIDSTONE),id:14342661, 336.27
Department of Health,Guys and St Thomas NHS Foundation Trust,13/08/2021,(81200) Medical Surgical Supplies & Equipment,(id:41868) Acute & General Medicine,NHS SUPPLY CHAIN (MAIDSTONE),id:14260687, 406.13
Department of Health,Guys and St Thomas NHS Foundation Trust,20/08/2021,(81200) Medical Surgical Supplies & Equipment,(id:41868) Acute & General Medicine,NHS SUPPLY CHAIN (MAIDSTONE),id:14342661, 457.59
Department of Health,Guys and St Thomas NHS Foundation Trust,13/08/2021,(83400) Office Equipment,(id:41868) Acute & General Medicine,NHS SUPPLY CHAIN (MAIDSTONE),id:14245807 , 137.94
Department of Health,Guys and St Thomas NHS Foundation Trust,13/08/2021,(81700) Lab Equipment Purchase,(id:41868) Acute & General Medicine,NHS SUPPLY CHAIN (MAIDSTONE),id:14279840, 198.73
Department of Health,Guys and St Thomas NHS Foundation Trust,13/08/2021,(83400) Office Equipment,(id:41880) Acute & General Medicine,NHS SUPPLY CHAIN (MAIDSTONE),id:14245807 ,  89.61
Department of Health,Guys and St Thomas NHS Foundation Trust,13/08/2021,(81200) Medical Surgical Supplies & Equipment,(id:41880) Acute & General Medicine,NHS SUPPLY CHAIN (MAIDSTONE),id:14260687, 823.26
Department of Health,Guys and St Thomas NHS Foundation Trust,13/08/2021,(81200) Medical Surgical Supplies & Equipment,(id:41880) Acute & General Medicine,NHS SUPPLY CHAIN (MAIDSTONE),id:14245807, 676.82
Department of Health,Guys and St Thomas NHS Foundation Trust,20/08/2021,(50522) Unqualified Nursing Staff,(id:41880) Acute & General Medicine,CARE PROVIDERS HEALTHCARE,id:14340880, 207.03
Department of Health,Guys and St Thomas NHS Foundation Trust,13/08/2021,(82000) Provisions & Kitchens,(id:41879) Acute & General Medicine,NHS SUPPLY CHAIN (MAIDSTONE),id:14260687 , 160.27
Department of Health,Guys and St Thomas NHS Foundation Trust,13/08/2021,(83400) Office Equipment,(id:41879) Acute & General Medicine,NHS SUPPLY CHAIN (MAIDSTONE),id:14245807 , 110.40
Department of Health,Guys and St Thomas NHS Foundation Trust,13/08/2021,(81100) Dressings,(id:41879) Acute & General Medicine,NHS SUPPLY CHAIN (MAIDSTONE),id:14245807   , 519.17
Department of Health,Guys and St Thomas NHS Foundation Trust,06/08/2021,(50522) Unqualified Nursing Staff,(id:41879) Acute & General Medicine,CARE PROVIDERS HEALTHCARE,id:14302892,1101.57
Department of Health,Guys and St Thomas NHS Foundation Trust,06/08/2021,(50522) Unqualified Nursing Staff,(id:41879) Acute & General Medicine,GLOBE LOCUMS LTD,id:14302854    , 435.84
Department of Health,Guys and St Thomas NHS Foundation Trust,13/08/2021,(50522) Unqualified Nursing Staff,(id:41879) Acute & General Medicine,GLOBE LOCUMS LTD,id:14322975    , 217.87
Department of Health,Guys and St Thomas NHS Foundation Trust,13/08/2021,(83610) IT Costs,(id:41879) Acute & General Medicine,OFFICE DEPOT UK LTD,id:14272692   , 594.00
Department of Health,Guys and St Thomas NHS Foundation Trust,13/08/2021,(81200) Medical Surgical Supplies & Equipment,(id:41879) Acute & General Medicine,NHS SUPPLY CHAIN (MAIDSTONE),id:14279840, 542.97
Department of Health,Guys and St Thomas NHS Foundation Trust,20/08/2021,(82000) Provisions & Kitchens,(id:41878) Acute & General Medicine,NHS SUPPLY CHAIN (MAIDSTONE),id:14342661 , 274.06
Department of Health,Guys and St Thomas NHS Foundation Trust,13/08/2021,(82800) Bedding & Linen,(id:41878) Acute & General Medicine,NHS SUPPLY CHAIN (MAIDSTONE),id:14260687  , 193.54
Department of Health,Guys and St Thomas NHS Foundation Trust,13/08/2021,(50522) Unqualified Nursing Staff,(id:41878) Acute & General Medicine,MSI GROUP LTD,id:14322714  , 235.32
Department of Health,Guys and St Thomas NHS Foundation Trust,13/08/2021,(50522) Unqualified Nursing Staff,(id:41878) Acute & General Medicine,MSI GROUP LTD,id:14322530  , 746.40
Department of Health,Guys and St Thomas NHS Foundation Trust,13/08/2021,(50522) Unqualified Nursing Staff,(id:41878) Acute & General Medicine,GLOBE LOCUMS LTD,id:14322535    , 267.02
Department of Health,Guys and St Thomas NHS Foundation Trust,27/08/2021,(50522) Unqualified Nursing Staff,(id:41878) Acute & General Medicine,MSI GROUP LTD,id:14356742  , 235.32
Department of Health,Guys and St Thomas NHS Foundation Trust,13/08/2021,(81700) Lab Equipment Purchase,(id:41878) Acute & General Medicine,NHS SUPPLY CHAIN (MAIDSTONE),id:14279840,  49.66
Department of Health,Guys and St Thomas NHS Foundation Trust,20/08/2021,(83500) Furniture & Fittings,(id:41876) Acute & General Medicine,TECHNIBLINDS LTD,id:14327245    , 614.45
Department of Health,Guys and St Thomas NHS Foundation Trust,06/08/2021,(50200) Consultants,(id:41876) Acute & General Medicine,KINGS COLLEGE LONDON:03529700,id:14287114,3053.19
Department of Health,Guys and St Thomas NHS Foundation Trust,27/08/2021,(81000) Surgical Appliances,(id:41876) Acute & General Medicine,TALAR MADE ORTHOTICS LTD,id:14348035  ,  29.40
Department of Health,Guys and St Thomas NHS Foundation Trust,06/08/2021,(81000) Surgical Appliances,(id:41876) Acute & General Medicine,MEDI UK LTD,id:14291758, 146.30
Department of Health,Guys and St Thomas NHS Foundation Trust,13/08/2021,(81000) Surgical Appliances,(id:41876) Acute & General Medicine,TALAR MADE ORTHOTICS LTD,id:14317595  , 109.99
Department of Health,Guys and St Thomas NHS Foundation Trust,20/08/2021,(82000) Provisions & Kitchens,(id:41881) Acute & General Medicine,NHS SUPPLY CHAIN (MAIDSTONE),id:14342661 ,  31.20
Department of Health,Guys and St Thomas NHS Foundation Trust,13/08/2021,(83400) Office Equipment,(id:41881) Acute & General Medicine,NHS SUPPLY CHAIN (MAIDSTONE),id:14245807 ,  99.40
Department of Health,Guys and St Thomas NHS Foundation Trust,13/08/2021,(82800) Bedding & Linen,(id:41881) Acute & General Medicine,NHS SUPPLY CHAIN (MAIDSTONE),id:14245807  , 254.57
Department of Health,Guys and St Thomas NHS Foundation Trust,20/08/2021,(81100) Dressings,(id:41881) Acute & General Medicine,NHS SUPPLY CHAIN (MAIDSTONE),id:14342661   , 249.69
Department of Health,Guys and St Thomas NHS Foundation Trust,13/08/2021,(50552) Qualified Nursing Staff,(id:41881) Acute & General Medicine,CARE PROVIDERS HEALTHCARE,id:14322890  , 362.97
Department of Health,Guys and St Thomas NHS Foundation Trust,06/08/2021,(50522) Unqualified Nursing Staff,(id:41881) Acute & General Medicine,GLOBE LOCUMS LTD,id:14303073    , 222.60
Department of Health,Guys and St Thomas NHS Foundation Trust,27/08/2021,(50522) Unqualified Nursing Staff,(id:41881) Acute & General Medicine,MSI GROUP LTD,id:14356788  , 201.08
Department of Health,Guys and St Thomas NHS Foundation Trust,27/08/2021,(50522) Unqualified Nursing Staff,(id:41881) Acute & General Medicine,GLOBE LOCUMS LTD,id:14356500    , 246.10
Department of Health,Guys and St Thomas NHS Foundation Trust,13/08/2021,(81200) Medical Surgical Supplies & Equipment,(id:41881) Acute & General Medicine,NHS SUPPLY CHAIN (MAIDSTONE),id:14260687, 866.79
Department of Health,Guys and St Thomas NHS Foundation Trust,20/08/2021,(81225) Medical Surgical Supplies & Equipment,(id:41881) Acute & General Medicine,NHS SUPPLY CHAIN (MAIDSTONE),id:14342661,   4.85
Department of Health,Guys and St Thomas NHS Foundation Trust,20/08/2021,(83400) Office Equipment,(id:41968) Inpatient Services,GRANTLEIGH LTD,id:14326058 , 425.75
Department of Health,Guys and St Thomas NHS Foundation Trust,06/08/2021,(83410) Office Equipment,(id:41968) Inpatient Services,RICOH UK LTD,id:14302198   , 599.68
Department of Health,Guys and St Thomas NHS Foundation Trust,20/08/2021,(81100) Dressings,(id:42025) Dental Services,NHS SUPPLY CHAIN (MAIDSTONE),id:14342661  , 133.50
Department of Health,Guys and St Thomas NHS Foundation Trust,20/08/2021,(81200) Medical Surgical Supplies & Equipment,(id:42025) Dental Services,HENRY SCHEIN,id:14305594, 767.78
Department of Health,Guys and St Thomas NHS Foundation Trust,20/08/2021,(81200) Medical Surgical Supplies & Equipment,(id:42025) Dental Services,OPTIDENT LTD,id:14321074, 758.64
Department of Health,Guys and St Thomas NHS Foundation Trust,13/08/2021,(81200) Medical Surgical Supplies & Equipment,(id:42037) Dental Services,FORESTADENT LTD,id:14297554  , 741.48
Department of Health,Guys and St Thomas NHS Foundation Trust,20/08/2021,(81200) Medical Surgical Supplies & Equipment,(id:42037) Dental Services,GEISTLICH SONS LTD,id:14336758    , 973.92
Department of Health,Guys and St Thomas NHS Foundation Trust,20/08/2021,(81200) Medical Surgical Supplies & Equipment,(id:42037) Dental Services,HENRY SCHEIN,id:14325669, 855.89
Department of Health,Guys and St Thomas NHS Foundation Trust,20/08/2021,(81200) Medical Surgical Supplies & Equipment,(id:42037) Dental Services,HENRY SCHEIN,id:14305780, 821.16
Department of Health,Guys and St Thomas NHS Foundation Trust,20/08/2021,(81200) Medical Surgical Supplies & Equipment,(id:42037) Dental Services,DENTSPLY IH LTD,id:14335193  ,4179.60
Department of Health,Guys and St Thomas NHS Foundation Trust,06/08/2021,(81200) Medical Surgical Supplies & Equipment,(id:42037) Dental Services,QED - QUALITY ENDODONTIC DISTRIBUTORS LTD,id:14288466 , 783.60
Department of Health,Guys and St Thomas NHS Foundation Trust,13/08/2021,(81200) Medical Surgical Supplies & Equipment,(id:42037) Dental Services,STRAUMANN LTD,id:14276176    , 920.34
Department of Health,Guys and St Thomas NHS Foundation Trust,13/08/2021,(81400) Medical Surgical Supplies & Equipment,(id:42037) Dental Services,LAZERBEAM FIRE AND SECURITY LTD,id:14323576 , 464.00
Department of Health,Guys and St Thomas NHS Foundation Trust,13/08/2021,(81100) Dressings,(id:42037) Dental Services,NHS SUPPLY CHAIN (MAIDSTONE),id:14260687  ,  26.70
Department of Health,Guys and St Thomas NHS Foundation Trust,13/08/2021,(81100) Dressings,(id:42037) Dental Services,NHS SUPPLY CHAIN (MAIDSTONE),id:14245807  , 152.60
Department of Health,Guys and St Thomas NHS Foundation Trust,13/08/2021,(83400) Office Equipment,(id:42037) Dental Services,NHS SUPPLY CHAIN (MAIDSTONE),id:14260687, 130.98
Department of Health,Guys and St Thomas NHS Foundation Trust,06/08/2021,(50343) Other Medical Grades,(id:42007) Dental Services,KINGS COLLEGE LONDON:03529700,id:13932034,4703.80
Department of Health,Guys and St Thomas NHS Foundation Trust,13/08/2021,(81200) Medical Surgical Supplies & Equipment,(id:42007) Dental Services,NHS SUPPLY CHAIN (MAIDSTONE),id:14245807    ,5116.33
Department of Health,Guys and St Thomas NHS Foundation Trust,13/08/2021,(81200) Medical Surgical Supplies & Equipment,(id:42007) Dental Services,NHS SUPPLY CHAIN (MAIDSTONE),id:14279840    ,1975.00
Department of Health,Guys and St Thomas NHS Foundation Trust,13/08/2021,(81700) Lab Equipment Purchase,(id:42007) Dental Services,NHS SUPPLY CHAIN (MAIDSTONE),id:14260687    , 297.24
Department of Health,Guys and St Thomas NHS Foundation Trust,13/08/2021,(83400) Office Equipment,(id:42005) Dental Services,NHS SUPPLY CHAIN (MAIDSTONE),id:14279840,  62.25
Department of Health,Guys and St Thomas NHS Foundation Trust,13/08/2021,(81700) Lab Equipment Purchase,(id:42015) Dental Services,NHS SUPPLY CHAIN (MAIDSTONE),id:14279840    , 113.99
Department of Health,Guys and St Thomas NHS Foundation Trust,13/08/2021,(82600) Uniforms & Clothing,(id:42027) Dental Services,NHS SUPPLY CHAIN (MAIDSTONE),id:14245807  , 170.88
Department of Health,Guys and St Thomas NHS Foundation Trust,13/08/2021,(81200) Medical Surgical Supplies & Equipment,(id:42027) Dental Services,HENRY SCHEIN,id:14305779, 574.78
Department of Health,Guys and St Thomas NHS Foundation Trust,13/08/2021,(83400) Office Equipment,(id:42028) Dental Services,NHS SUPPLY CHAIN (MAIDSTONE),id:14279840,  32.28
Department of Health,Guys and St Thomas NHS Foundation Trust,13/08/2021,(81200) Medical Surgical Supplies & Equipment,(id:42016) Dental Services,DENTSPLY IH LTD,id:14291697  ,1002.22
Department of Health,Guys and St Thomas NHS Foundation Trust,06/08/2021,(81200) Medical Surgical Supplies & Equipment,(id:42016) Dental Services,DENTSPLY IH LTD,id:14293616  , 873.04
Department of Health,Guys and St Thomas NHS Foundation Trust,13/08/2021,(83400) Office Equipment,(id:42014) Dental Services,NHS SUPPLY CHAIN (MAIDSTONE),id:14260687, 129.01
Department of Health,Guys and St Thomas NHS Foundation Trust,20/08/2021,(81200) Medical Surgical Supplies & Equipment,(id:4622420) Dental Services,NHS SUPPLY CHAIN (MAIDSTONE),id:14342661  , 475.20
Department of Health,Guys and St Thomas NHS Foundation Trust,13/08/2021,(83410) Office Equipment,(id:42043) Dental Services,RICOH UK LTD,id:14301837 , 294.69
Department of Health,Guys and St Thomas NHS Foundation Trust,20/08/2021,(83500) Furniture & Fittings,(id:42035) Dental Services,GRANTLEIGH LTD,id:14319819, 790.00
Department of Health,Guys and St Thomas NHS Foundation Trust,13/08/2021,(81200) Medical Surgical Supplies & Equipment,(id:42035) Dental Services,DENTSPLY IH LTD,id:14318313  , 533.18
Department of Health,Guys and St Thomas NHS Foundation Trust,13/08/2021,(83410) Office Equipment,(id:42035) Dental Services,RICOH UK LTD,id:14301956 ,  84.70
Department of Health,Guys and St Thomas NHS Foundation Trust,06/08/2021,(83410) Office Equipment,(id:42035) Dental Services,RICOH UK LTD,id:14301942 , 663.67
Department of Health,Guys and St Thomas NHS Foundation Trust,06/08/2021,(89000) Other - Training courses and conferences,(id:42035) Dental Services,KINGS COLLEGE LONDON:03529700,id:14291634,2755.00
Department of Health,Guys and St Thomas NHS Foundation Trust,06/08/2021,(81200) Medical Surgical Supplies & Equipment,(id:1634433) Dental Services,HENRY SCHEIN,id:14282734   , 732.40
Department of Health,Guys and St Thomas NHS Foundation Trust,13/08/2021,(83400) Office Equipment,(id:1634429) Dental Services,NHS SUPPLY CHAIN (MAIDSTONE),id:14279840   , 128.22
Department of Health,Guys and St Thomas NHS Foundation Trust,20/08/2021,(81200) Medical Surgical Supplies & Equipment,(id:1634429) Dental Services,HENRY SCHEIN,id:14305774   , 613.46
Department of Health,Guys and St Thomas NHS Foundation Trust,13/08/2021,(81200) Medical Surgical Supplies & Equipment,(id:1634429) Dental Services,NHS SUPPLY CHAIN (MAIDSTONE),id:14245807  ,1052.24
Department of Health,Guys and St Thomas NHS Foundation Trust,20/08/2021,(82800) Bedding & Linen,(id:1634429) Dental Services,NHS SUPPLY CHAIN (MAIDSTONE),id:14342661    , 140.47
Department of Health,Guys and St Thomas NHS Foundation Trust,13/08/2021,(81100) Dressings,(id:1634429) Dental Services,NHS SUPPLY CHAIN (MAIDSTONE),id:14279840,  26.70
Department of Health,Guys and St Thomas NHS Foundation Trust,20/08/2021,(81200) Medical Surgical Supplies & Equipment,(id:1650420) Dental Services,DAVIS SCHOTTLANDER & DAVIS LTD,id:14331481, 518.70
Department of Health,Guys and St Thomas NHS Foundation Trust,13/08/2021,(81200) Medical Surgical Supplies & Equipment,(id:42193) Specialist Ambulatory Services,NHS SUPPLY CHAIN (MAIDSTONE),id:14245807    , 631.50
Department of Health,Guys and St Thomas NHS Foundation Trust,20/08/2021,(84656) Establishment,(id:42193) Specialist Ambulatory Services,DICT8 LIMITED,id:14329434   , 685.92
Department of Health,Guys and St Thomas NHS Foundation Trust,27/08/2021,(81000) Surgical Appliances,(id:42193) Specialist Ambulatory Services,LBG MEDICAL LTD,id:14347970, 897.84
Department of Health,Guys and St Thomas NHS Foundation Trust,13/08/2021,(81200) Medical Surgical Supplies & Equipment,(id:3608419) Specialist Ambulatory Services,NHS SUPPLY CHAIN (MAIDSTONE),id:14279840  ,  66.34
Department of Health,Guys and St Thomas NHS Foundation Trust,13/08/2021,(83400) Office Equipment,(id:3608419) Specialist Ambulatory Services,NHS SUPPLY CHAIN (MAIDSTONE),id:14279840   ,  31.19
Department of Health,Guys and St Thomas NHS Foundation Trust,20/08/2021,(83400) Office Equipment,(id:3607419) Specialist Ambulatory Services,NHS SUPPLY CHAIN (MAIDSTONE),id:14342661   ,  38.71
Department of Health,Guys and St Thomas NHS Foundation Trust,13/08/2021,(81200) Medical Surgical Supplies & Equipment,(id:255405) Specialist Ambulatory Services,NHS SUPPLY CHAIN (MAIDSTONE),id:14245807   ,  51.35
Department of Health,Guys and St Thomas NHS Foundation Trust,13/08/2021,(81200) Medical Surgical Supplies & Equipment,(id:42094) Specialist Ambulatory Services,NHS SUPPLY CHAIN (MAIDSTONE),id:14260687    ,1132.80
Department of Health,Guys and St Thomas NHS Foundation Trust,13/08/2021,(83400) Office Equipment,(id:42091) Specialist Ambulatory Services,NHS SUPPLY CHAIN (MAIDSTONE),id:14279840,   7.27
Department of Health,Guys and St Thomas NHS Foundation Trust,20/08/2021,(81100) Dressings,(id:42091) Specialist Ambulatory Services,NHS SUPPLY CHAIN (MAIDSTONE),id:14342661  ,  48.96
Department of Health,Guys and St Thomas NHS Foundation Trust,13/08/2021,(81200) Medical Surgical Supplies & Equipment,(id:42091) Specialist Ambulatory Services,NHS SUPPLY CHAIN (MAIDSTONE),id:14260687    ,1360.55
Department of Health,Guys and St Thomas NHS Foundation Trust,13/08/2021,(81200) Medical Surgical Supplies & Equipment,(id:42091) Specialist Ambulatory Services,NHS SUPPLY CHAIN (MAIDSTONE),id:14245807    ,1202.64
Department of Health,Guys and St Thomas NHS Foundation Trust,13/08/2021,(81100) Dressings,(id:42097) Specialist Ambulatory Services,NHS SUPPLY CHAIN (MAIDSTONE),id:14245807  , 133.26
Department of Health,Guys and St Thomas NHS Foundation Trust,20/08/2021,(81700) Lab Equipment Purchase,(id:42097) Specialist Ambulatory Services,NHS SUPPLY CHAIN (MAIDSTONE),id:14342661    ,  41.76
Department of Health,Guys and St Thomas NHS Foundation Trust,13/08/2021,(80010) Drug Costs,(id:42079) Specialist Ambulatory Services,THERAKOS (UK) LIMITED,id:14302510   ,-760.80
Department of Health,Guys and St Thomas NHS Foundation Trust,06/08/2021,(80010) Drug Costs,(id:42079) Specialist Ambulatory Services,THERAKOS (UK) LIMITED,id:14302513   ,    11412.00
Department of Health,Guys and St Thomas NHS Foundation Trust,06/08/2021,(80010) Drug Costs,(id:42079) Specialist Ambulatory Services,THERAKOS (UK) LIMITED,id:14302434   ,    22824.00
Department of Health,Guys and St Thomas NHS Foundation Trust,06/08/2021,(80010) Drug Costs,(id:42079) Specialist Ambulatory Services,THERAKOS (UK) LIMITED,id:14302378   ,-760.80
Department of Health,Guys and St Thomas NHS Foundation Trust,13/08/2021,(81700) Lab Equipment Purchase,(id:42079) Specialist Ambulatory Services,NHS SUPPLY CHAIN (MAIDSTONE),id:14279840    ,  23.93
Department of Health,Guys and St Thomas NHS Foundation Trust,13/08/2021,(83400) Office Equipment,(id:42079) Specialist Ambulatory Services,NHS SUPPLY CHAIN (MAIDSTONE),id:14245807,  19.56
Department of Health,Guys and St Thomas NHS Foundation Trust,13/08/2021,(81200) Medical Surgical Supplies & Equipment,(id:42066) Specialist Ambulatory Services,NHS SUPPLY CHAIN (MAIDSTONE),id:14245807    , 191.09
Department of Health,Guys and St Thomas NHS Foundation Trust,13/08/2021,(81700) Lab Equipment Purchase,(id:42064) Specialist Ambulatory Services,NHS SUPPLY CHAIN (MAIDSTONE),id:14245807    ,  64.80
Department of Health,Guys and St Thomas NHS Foundation Trust,06/08/2021,(83610) IT Costs,(id:42061) Specialist Ambulatory Services,COMPUTACENTER UK LTD,id:13958534 ,1116.19
Department of Health,Guys and St Thomas NHS Foundation Trust,06/08/2021,(83610) IT Costs,(id:42061) Specialist Ambulatory Services,COMPUTACENTER UK LTD,id:14294234 ,1119.99
Department of Health,Guys and St Thomas NHS Foundation Trust,13/08/2021,(82000) Provisions & Kitchens,(id:42057) Specialist Ambulatory Services,NHS SUPPLY CHAIN (MAIDSTONE),id:14279840,  23.58
Department of Health,Guys and St Thomas NHS Foundation Trust,20/08/2021,(81200) Medical Surgical Supplies & Equipment,(id:42050) Specialist Ambulatory Services,NHS SUPPLY CHAIN (MAIDSTONE),id:14342661    ,1064.45
Department of Health,Guys and St Thomas NHS Foundation Trust,24/08/2021,(53682) Pharmacists,(id:42165) Pharmacy,PRICEWATERHOUSECOOPERS LLP,id:14349054    ,4921.88
Department of Health,Guys and St Thomas NHS Foundation Trust,31/08/2021,(53682) Pharmacists,(id:42165) Pharmacy,PRICEWATERHOUSECOOPERS LLP,id:14368494    ,4746.70
Department of Health,Guys and St Thomas NHS Foundation Trust,13/08/2021,(83410) Office Equipment,(id:42165) Pharmacy,RICOH UK LTD,id:14302184   , 163.54
Department of Health,Guys and St Thomas NHS Foundation Trust,06/08/2021,(81200) Medical Surgical Supplies & Equipment,(id:581409) Pharmacy,ADDED PHARMA LTD,id:14288623  ,    13608.00
Department of Health,Guys and St Thomas NHS Foundation Trust,27/08/2021,(81200) Medical Surgical Supplies & Equipment,(id:581409) Pharmacy,DURBIN PLC,id:14351514   , 769.42
Department of Health,Guys and St Thomas NHS Foundation Trust,20/08/2021,(82600) Uniforms & Clothing,(id:581409) Pharmacy,NHS SUPPLY CHAIN (MAIDSTONE),id:14342661   ,  43.99
Department of Health,Guys and St Thomas NHS Foundation Trust,20/08/2021,(83400) Office Equipment,(id:581409) Pharmacy,NHS SUPPLY CHAIN (MAIDSTONE),id:14342661 ,  96.13
Department of Health,Guys and St Thomas NHS Foundation Trust,13/08/2021,(81200) Medical Surgical Supplies & Equipment,(id:42159) Pharmacy,SOCOTEC UK LTD,id:14306944, 540.00
Department of Health,Guys and St Thomas NHS Foundation Trust,20/08/2021,(84657) Establishment,(id:42159) Pharmacy,WICKHAM LABORATORIES LTD,id:14315656    ,1827.50
Department of Health,Guys and St Thomas NHS Foundation Trust,20/08/2021,(55102) Admin & Clerical,(id:42159) Pharmacy,HYPER RECRUITMENT SOLUTIONS LTD,id:14305623    ,2722.50
Department of Health,Guys and St Thomas NHS Foundation Trust,27/08/2021,(55122) Admin & Clerical,(id:42159) Pharmacy,HYPER RECRUITMENT SOLUTIONS LTD,id:14342895    ,1704.00
Department of Health,Guys and St Thomas NHS Foundation Trust,27/08/2021,(55122) Admin & Clerical,(id:42159) Pharmacy,HYPER RECRUITMENT SOLUTIONS LTD,id:14342938    ,5112.00
Department of Health,Guys and St Thomas NHS Foundation Trust,13/08/2021,(83410) Office Equipment,(id:42160) Pharmacy,RICOH UK LTD,id:14302184   ,  68.07
Department of Health,Guys and St Thomas NHS Foundation Trust,24/08/2021,(53642) Pharmacists,(id:42160) Pharmacy,PRICEWATERHOUSECOOPERS LLP,id:14349234    ,1478.86
Department of Health,Guys and St Thomas NHS Foundation Trust,27/08/2021,(80010) Drug Costs,(id:42156) Pharmacy,HELAPET LTD.,id:14349802    ,1129.30
Department of Health,Guys and St Thomas NHS Foundation Trust,13/08/2021,(83410) Office Equipment,(id:42167) Pharmacy,RICOH UK LTD,id:14301956   ,  39.46
Department of Health,Guys and St Thomas NHS Foundation Trust,24/08/2021,(53672) Pharmacists,(id:42164) Pharmacy,PRICEWATERHOUSECOOPERS LLP,id:14349374    ,1354.75
Department of Health,Guys and St Thomas NHS Foundation Trust,24/08/2021,(53672) Pharmacists,(id:42164) Pharmacy,PRICEWATERHOUSECOOPERS LLP,id:14349735    ,1354.75
Department of Health,Guys and St Thomas NHS Foundation Trust,13/08/2021,(83410) Office Equipment,(id:41974) Medical Specialties,RICOH UK LTD,id:14302184  ,  54.19
Department of Health,Guys and St Thomas NHS Foundation Trust,27/08/2021,(81000) Surgical Appliances,(id:42171) Medical Specialties,TALAR MADE ORTHOTICS LTD,id:14353974  ,  46.50
Department of Health,Guys and St Thomas NHS Foundation Trust,13/08/2021,(82000) Provisions & Kitchens,(id:42217) Medical Specialties,NHS SUPPLY CHAIN (MAIDSTONE),id:14260687 , 105.84
Department of Health,Guys and St Thomas NHS Foundation Trust,13/08/2021,(81200) Medical Surgical Supplies & Equipment,(id:42217) Medical Specialties,NHS SUPPLY CHAIN (MAIDSTONE),id:14260687, 181.77
Department of Health,Guys and St Thomas NHS Foundation Trust,24/08/2021,(51262) Dieticians,(id:42251) Medical Specialties,PRICEWATERHOUSECOOPERS LLP,id:14349054    ,3564.15
Department of Health,Guys and St Thomas NHS Foundation Trust,13/08/2021,(83410) Office Equipment,(id:42251) Medical Specialties,RICOH UK LTD,id:14301956  , 405.62
Department of Health,Guys and St Thomas NHS Foundation Trust,24/08/2021,(51262) Dieticians,(id:42249) Medical Specialties,PRICEWATERHOUSECOOPERS LLP,id:14349054    ,1134.20
Department of Health,Guys and St Thomas NHS Foundation Trust,13/08/2021,(82600) Uniforms & Clothing,(id:42224) Medical Specialties,MEDITELLE LTD,id:14275074   ,2820.00
Department of Health,Guys and St Thomas NHS Foundation Trust,20/08/2021,(83765) Rent,(id:42224) Medical Specialties,COMMUNITY HEALTH PARTNERSHIPS,id:14325509  , 261.47
Department of Health,Guys and St Thomas NHS Foundation Trust,13/08/2021,(81200) Medical Surgical Supplies & Equipment,(id:42223) Medical Specialties,NHS SUPPLY CHAIN (MAIDSTONE),id:14245807, 149.96
Department of Health,Guys and St Thomas NHS Foundation Trust,13/08/2021,(81200) Medical Surgical Supplies & Equipment,(id:42223) Medical Specialties,DORC LTD,id:14307233, 625.20
Department of Health,Guys and St Thomas NHS Foundation Trust,13/08/2021,(81200) Medical Surgical Supplies & Equipment,(id:42223) Medical Specialties,OCURA HEALTHCARE FURNITURE,id:14306614  ,1859.76
Department of Health,Guys and St Thomas NHS Foundation Trust,20/08/2021,(81200) Medical Surgical Supplies & Equipment,(id:42223) Medical Specialties,MAINLINE INSTRUMENTS LTD,id:14317241    , 972.00
Department of Health,Guys and St Thomas NHS Foundation Trust,20/08/2021,(81200) Medical Surgical Supplies & Equipment,(id:42223) Medical Specialties,ULTRAVISION CLPL,id:14305934  ,3597.14
Department of Health,Guys and St Thomas NHS Foundation Trust,13/08/2021,(83400) Office Equipment,(id:42223) Medical Specialties,NHS SUPPLY CHAIN (MAIDSTONE),id:14245807 ,  18.59
Department of Health,Guys and St Thomas NHS Foundation Trust,13/08/2021,(83410) Office Equipment,(id:42223) Medical Specialties,RICOH UK LTD,id:14302184  , 614.54
Department of Health,Guys and St Thomas NHS Foundation Trust,24/08/2021,(50202) Consultants,(id:42223) Medical Specialties,PRICEWATERHOUSECOOPERS LLP,id:14349054   ,2900.46
Department of Health,Guys and St Thomas NHS Foundation Trust,13/08/2021,(81700) Lab Equipment Purchase,(id:42223) Medical Specialties,NHS SUPPLY CHAIN (MAIDSTONE),id:14260687,  33.98
Department of Health,Guys and St Thomas NHS Foundation Trust,27/08/2021,(81200) Medical Surgical Supplies & Equipment,(id:42222) Medical Specialties,BEAVER-VISITEC INTERNATIONAL (SALES) LTD,id:14353837   ,4356.00
Department of Health,Guys and St Thomas NHS Foundation Trust,06/08/2021,(81200) Medical Surgical Supplies & Equipment,(id:42221) Medical Specialties,JOHNSON & JOHNSON MEDICAL LTD,id:14248973    ,2669.93
Department of Health,Guys and St Thomas NHS Foundation Trust,20/08/2021,(81200) Medical Surgical Supplies & Equipment,(id:42221) Medical Specialties,JOHNSON & JOHNSON MEDICAL LTD,id:14287293    , 734.22
Department of Health,Guys and St Thomas NHS Foundation Trust,13/08/2021,(81200) Medical Surgical Supplies & Equipment,(id:42221) Medical Specialties,NHS SUPPLY CHAIN (MAIDSTONE),id:14279840,4189.81
Department of Health,Guys and St Thomas NHS Foundation Trust,20/08/2021,(82000) Provisions & Kitchens,(id:42213) Medical Specialties,NHS SUPPLY CHAIN (MAIDSTONE),id:14342661 ,  20.28
Department of Health,Guys and St Thomas NHS Foundation Trust,13/08/2021,(83410) Office Equipment,(id:42213) Medical Specialties,RICOH UK LTD,id:14302184  , 162.88
Department of Health,Guys and St Thomas NHS Foundation Trust,27/08/2021,(81000) Surgical Appliances,(id:42213) Medical Specialties,TALAR MADE ORTHOTICS LTD,id:14348035  , 350.40
Department of Health,Guys and St Thomas NHS Foundation Trust,27/08/2021,(81000) Surgical Appliances,(id:42213) Medical Specialties,TALAR MADE ORTHOTICS LTD,id:14353998  , 847.80
Department of Health,Guys and St Thomas NHS Foundation Trust,27/08/2021,(81000) Surgical Appliances,(id:42213) Medical Specialties,TALAR MADE ORTHOTICS LTD,id:14353994  , 282.90
Department of Health,Guys and St Thomas NHS Foundation Trust,06/08/2021,(81200) Medical Surgical Supplies & Equipment,(id:42209) Medical Specialties,MEDTRONIC LTD,id:14259295, 850.50
Department of Health,Guys and St Thomas NHS Foundation Trust,13/08/2021,(83410) Office Equipment,(id:42209) Medical Specialties,RICOH UK LTD,id:14301956  ,  94.06
Department of Health,Guys and St Thomas NHS Foundation Trust,13/08/2021,(83410) Office Equipment,(id:42209) Medical Specialties,RICOH UK LTD,id:14301837  ,  94.07
Department of Health,Guys and St Thomas NHS Foundation Trust,13/08/2021,(81000) Surgical Appliances,(id:42209) Medical Specialties,TALAR MADE ORTHOTICS LTD,id:14317595  ,  46.50
Department of Health,Guys and St Thomas NHS Foundation Trust,13/08/2021,(81200) Medical Surgical Supplies & Equipment,(id:42208) Medical Specialties,MEDTRONIC LTD,id:14320187, 567.00
Department of Health,Guys and St Thomas NHS Foundation Trust,13/08/2021,(81200) Medical Surgical Supplies & Equipment,(id:42208) Medical Specialties,MEDTRONIC LTD,id:14200195, 588.00
Department of Health,Guys and St Thomas NHS Foundation Trust,13/08/2021,(81200) Medical Surgical Supplies & Equipment,(id:42208) Medical Specialties,MEDTRONIC LTD,id:14259457, 787.15
Department of Health,Guys and St Thomas NHS Foundation Trust,13/08/2021,(81200) Medical Surgical Supplies & Equipment,(id:42208) Medical Specialties,MEDTRONIC LTD,id:14259461, 780.70
Department of Health,Guys and St Thomas NHS Foundation Trust,13/08/2021,(81200) Medical Surgical Supplies & Equipment,(id:42208) Medical Specialties,AIR LIQUIDE (HOMECARE) LTD,id:14307232  ,3366.00
Department of Health,Guys and St Thomas NHS Foundation Trust,20/08/2021,(81200) Medical Surgical Supplies & Equipment,(id:42208) Medical Specialties,INSULET INTERNATIONAL LTD,id:14294933   , 712.08
Department of Health,Guys and St Thomas NHS Foundation Trust,20/08/2021,(81200) Medical Surgical Supplies & Equipment,(id:42208) Medical Specialties,INSULET INTERNATIONAL LTD,id:14294936   , 712.08
Department of Health,Guys and St Thomas NHS Foundation Trust,20/08/2021,(81200) Medical Surgical Supplies & Equipment,(id:42208) Medical Specialties,DEXCOM INTERNATIONAL LTD,id:14337004    , 600.00
Department of Health,Guys and St Thomas NHS Foundation Trust,20/08/2021,(81200) Medical Surgical Supplies & Equipment,(id:42208) Medical Specialties,DEXCOM INTERNATIONAL LTD,id:14307203    , 600.00
Department of Health,Guys and St Thomas NHS Foundation Trust,20/08/2021,(81200) Medical Surgical Supplies & Equipment,(id:42208) Medical Specialties,DEXCOM INTERNATIONAL LTD,id:14327378    , 600.00
Department of Health,Guys and St Thomas NHS Foundation Trust,20/08/2021,(81200) Medical Surgical Supplies & Equipment,(id:42208) Medical Specialties,INSULET INTERNATIONAL LTD,id:14294673   , 712.08
Department of Health,Guys and St Thomas NHS Foundation Trust,20/08/2021,(81200) Medical Surgical Supplies & Equipment,(id:42208) Medical Specialties,DEXCOM INTERNATIONAL LTD,id:14327387    , 600.00
Department of Health,Guys and St Thomas NHS Foundation Trust,20/08/2021,(81200) Medical Surgical Supplies & Equipment,(id:42208) Medical Specialties,DEXCOM INTERNATIONAL LTD,id:14327394    , 600.00
Department of Health,Guys and St Thomas NHS Foundation Trust,20/08/2021,(81200) Medical Surgical Supplies & Equipment,(id:42208) Medical Specialties,INSULET INTERNATIONAL LTD,id:14294666   , 712.08
Department of Health,Guys and St Thomas NHS Foundation Trust,20/08/2021,(81200) Medical Surgical Supplies & Equipment,(id:42208) Medical Specialties,DEXCOM INTERNATIONAL LTD,id:14293884    , 600.00
Department of Health,Guys and St Thomas NHS Foundation Trust,20/08/2021,(81200) Medical Surgical Supplies & Equipment,(id:42208) Medical Specialties,DEXCOM INTERNATIONAL LTD,id:14289067    , 600.00
Department of Health,Guys and St Thomas NHS Foundation Trust,20/08/2021,(81200) Medical Surgical Supplies & Equipment,(id:42208) Medical Specialties,MEDTRONIC LTD,id:14320375,3766.80
Department of Health,Guys and St Thomas NHS Foundation Trust,20/08/2021,(81200) Medical Surgical Supplies & Equipment,(id:42208) Medical Specialties,INSULET INTERNATIONAL LTD,id:14319372   , 928.74
Department of Health,Guys and St Thomas NHS Foundation Trust,20/08/2021,(81200) Medical Surgical Supplies & Equipment,(id:42208) Medical Specialties,CAMDIAB LTD,id:14277115  ,1008.00
Department of Health,Guys and St Thomas NHS Foundation Trust,20/08/2021,(81200) Medical Surgical Supplies & Equipment,(id:42208) Medical Specialties,DEXCOM INTERNATIONAL LTD,id:14327406    , 600.00
Department of Health,Guys and St Thomas NHS Foundation Trust,20/08/2021,(81200) Medical Surgical Supplies & Equipment,(id:42208) Medical Specialties,DEXCOM INTERNATIONAL LTD,id:14327407    , 600.00
Department of Health,Guys and St Thomas NHS Foundation Trust,20/08/2021,(81200) Medical Surgical Supplies & Equipment,(id:42208) Medical Specialties,DEXCOM INTERNATIONAL LTD,id:14327427    , 600.00
Department of Health,Guys and St Thomas NHS Foundation Trust,20/08/2021,(81200) Medical Surgical Supplies & Equipment,(id:42208) Medical Specialties,DEXCOM INTERNATIONAL LTD,id:14327428    , 600.00
Department of Health,Guys and St Thomas NHS Foundation Trust,27/08/2021,(81200) Medical Surgical Supplies & Equipment,(id:42208) Medical Specialties,AIR LIQUIDE (HOMECARE) LTD,id:14354014  , 583.20
Department of Health,Guys and St Thomas NHS Foundation Trust,27/08/2021,(81200) Medical Surgical Supplies & Equipment,(id:42208) Medical Specialties,DEXCOM INTERNATIONAL LTD,id:14336518    , 600.00
Department of Health,Guys and St Thomas NHS Foundation Trust,13/08/2021,(81000) Surgical Appliances,(id:42204) Medical Specialties,TALAR MADE ORTHOTICS LTD,id:14313314  ,  12.00
Department of Health,Guys and St Thomas NHS Foundation Trust,13/08/2021,(81000) Surgical Appliances,(id:42204) Medical Specialties,TALAR MADE ORTHOTICS LTD,id:14314875  , 390.82
Department of Health,Guys and St Thomas NHS Foundation Trust,06/08/2021,(81200) Medical Surgical Supplies & Equipment,(id:42202) Medical Specialties,NORTH BRISTOL NHS TRUST,id:13747555,2498.00
Department of Health,Guys and St Thomas NHS Foundation Trust,06/08/2021,(81000) Surgical Appliances,(id:42199) Medical Specialties,TALAR MADE ORTHOTICS LTD,id:14294077  , 946.42
Department of Health,Guys and St Thomas NHS Foundation Trust,13/08/2021,(81000) Surgical Appliances,(id:42199) Medical Specialties,TALAR MADE ORTHOTICS LTD,id:14315815  , 160.82
Department of Health,Guys and St Thomas NHS Foundation Trust,20/08/2021,(89000) Other - Training courses and conferences,(id:42190) Medical Specialties,IN PROFESSIONAL DEVELOPMENT,id:14331629   , 945.00
Department of Health,Guys and St Thomas NHS Foundation Trust,06/08/2021,(81200) Medical Surgical Supplies & Equipment,(id:41937) Medical Specialties,MED FIT UK LTD,id:14287606    ,2988.60
Department of Health,Guys and St Thomas NHS Foundation Trust,13/08/2021,(81200) Medical Surgical Supplies & Equipment,(id:41937) Medical Specialties,ENEURA (UK) LTD,id:14319539   ,1612.00
Department of Health,Guys and St Thomas NHS Foundation Trust,20/08/2021,(81200) Medical Surgical Supplies & Equipment,(id:41937) Medical Specialties,NHS SUPPLY CHAIN (MAIDSTONE),id:14342661, 713.60
Department of Health,Guys and St Thomas NHS Foundation Trust,24/08/2021,(52062) Radiographers,(id:41937) Medical Specialties,PRICEWATERHOUSECOOPERS LLP,id:14349374 ,1003.65
Department of Health,Guys and St Thomas NHS Foundation Trust,13/08/2021,(81225) Medical Surgical Supplies & Equipment,(id:41937) Medical Specialties,ENEURA (UK) LTD,id:14319583   ,1612.00
Department of Health,Guys and St Thomas NHS Foundation Trust,27/08/2021,(50200) Consultants,(id:41937) Medical Specialties,KINGS COLLEGE LONDON:03529700,id:14287015,3545.84
Department of Health,Guys and St Thomas NHS Foundation Trust,13/08/2021,(82700) Uniforms & Clothing,(id:41937) Medical Specialties,NHS SUPPLY CHAIN (MAIDSTONE),id:14279840   ,  63.36
Department of Health,Guys and St Thomas NHS Foundation Trust,24/08/2021,(51872) Physiotherapists,(id:42234) Therapies and Rehabilitation,PRICEWATERHOUSECOOPERS LLP,id:14349735    ,2630.85
Department of Health,Guys and St Thomas NHS Foundation Trust,24/08/2021,(51872) Physiotherapists,(id:42234) Therapies and Rehabilitation,PRICEWATERHOUSECOOPERS LLP,id:14349054    ,1353.61
Department of Health,Guys and St Thomas NHS Foundation Trust,24/08/2021,(51872) Physiotherapists,(id:42234) Therapies and Rehabilitation,PRICEWATERHOUSECOOPERS LLP,id:14349374    ,1452.02
Department of Health,Guys and St Thomas NHS Foundation Trust,13/08/2021,(81200) Medical Surgical Supplies & Equipment,(id:42232) Therapies and Rehabilitation,NHS SUPPLY CHAIN (MAIDSTONE),id:14279840 , 510.02
Department of Health,Guys and St Thomas NHS Foundation Trust,13/08/2021,(81200) Medical Surgical Supplies & Equipment,(id:42232) Therapies and Rehabilitation,NHS SUPPLY CHAIN (MAIDSTONE),id:14245807 , 240.00
Department of Health,Guys and St Thomas NHS Foundation Trust,13/08/2021,(81225) Medical Surgical Supplies & Equipment,(id:42232) Therapies and Rehabilitation,NHS SUPPLY CHAIN (MAIDSTONE),id:14260687 , 431.28
Department of Health,Guys and St Thomas NHS Foundation Trust,13/08/2021,(81200) Medical Surgical Supplies & Equipment,(id:42231) Therapies and Rehabilitation,NHS SUPPLY CHAIN (MAIDSTONE),id:14260687 , 435.30
Department of Health,Guys and St Thomas NHS Foundation Trust,13/08/2021,(83410) Office Equipment,(id:42230) Therapies and Rehabilitation,RICOH UK LTD,id:14301956   , 220.85
Department of Health,Guys and St Thomas NHS Foundation Trust,13/08/2021,(83400) Office Equipment,(id:42239) Therapies and Rehabilitation,NHS SUPPLY CHAIN (MAIDSTONE),id:14260687  ,  33.97
Department of Health,Guys and St Thomas NHS Foundation Trust,13/08/2021,(83400) Office Equipment,(id:590530) Therapies and Rehabilitation,NHS SUPPLY CHAIN (MAIDSTONE),id:14279840 ,  56.84
Department of Health,Guys and St Thomas NHS Foundation Trust,13/08/2021,(81100) Dressings,(id:590530) Therapies and Rehabilitation,NHS SUPPLY CHAIN (MAIDSTONE),id:14260687   ,  48.46
Department of Health,Guys and St Thomas NHS Foundation Trust,13/08/2021,(81100) Dressings,(id:590530) Therapies and Rehabilitation,BAILEY INSTRUMENTS LIMITED,id:14305741, 594.00
Department of Health,Guys and St Thomas NHS Foundation Trust,20/08/2021,(81100) Dressings,(id:590490) Therapies and Rehabilitation,NHS SUPPLY CHAIN (MAIDSTONE),id:14342661   , 617.37
Department of Health,Guys and St Thomas NHS Foundation Trust,20/08/2021,(82000) Provisions & Kitchens,(id:590490) Therapies and Rehabilitation,NHS SUPPLY CHAIN (MAIDSTONE),id:14342661 ,   9.22
Department of Health,Guys and St Thomas NHS Foundation Trust,06/08/2021,(83410) Office Equipment,(id:42243) Therapies and Rehabilitation,RICOH UK LTD,id:14301794   ,-459.22
Department of Health,Guys and St Thomas NHS Foundation Trust,27/08/2021,(81200) Medical Surgical Supplies & Equipment,(id:590499) Therapies and Rehabilitation,INVACARE LTD,id:14359204 ,1556.40
Department of Health,Guys and St Thomas NHS Foundation Trust,27/08/2021,(81200) Medical Surgical Supplies & Equipment,(id:590499) Therapies and Rehabilitation,INVACARE LTD,id:14359196 ,3013.20
Department of Health,Guys and St Thomas NHS Foundation Trust,20/08/2021,(81225) Medical Surgical Supplies & Equipment,(id:590499) Therapies and Rehabilitation,GBL WHEELCHAIR SERVICES LTD,id:14343184 ,4149.00
Department of Health,Guys and St Thomas NHS Foundation Trust,27/08/2021,(81225) Medical Surgical Supplies & Equipment,(id:590499) Therapies and Rehabilitation,RMS (REHABILITATION MANUFACTURING SERVICES LTD),id:14343782 , 564.00
Department of Health,Guys and St Thomas NHS Foundation Trust,06/08/2021,(81225) Medical Surgical Supplies & Equipment,(id:590498) Therapies and Rehabilitation,ALLARD SUPPORT LTD,id:14260638, 752.40
Department of Health,Guys and St Thomas NHS Foundation Trust,06/08/2021,(81225) Medical Surgical Supplies & Equipment,(id:590498) Therapies and Rehabilitation,JANE SAUNDERS & MANNING LTD,id:14260769 ,1038.51
Department of Health,Guys and St Thomas NHS Foundation Trust,27/08/2021,(81225) Medical Surgical Supplies & Equipment,(id:590498) Therapies and Rehabilitation,JANE SAUNDERS & MANNING LTD,id:14349801 , 776.25
Department of Health,Guys and St Thomas NHS Foundation Trust,27/08/2021,(81225) Medical Surgical Supplies & Equipment,(id:590498) Therapies and Rehabilitation,JANE SAUNDERS & MANNING LTD,id:14349806 , 854.01
Department of Health,Guys and St Thomas NHS Foundation Trust,27/08/2021,(81225) Medical Surgical Supplies & Equipment,(id:590498) Therapies and Rehabilitation,JANE SAUNDERS & MANNING LTD,id:14349816 , 875.83
Department of Health,Guys and St Thomas NHS Foundation Trust,27/08/2021,(81225) Medical Surgical Supplies & Equipment,(id:590498) Therapies and Rehabilitation,JANE SAUNDERS & MANNING LTD,id:14349775 , 899.13
Department of Health,Guys and St Thomas NHS Foundation Trust,27/08/2021,(81225) Medical Surgical Supplies & Equipment,(id:590498) Therapies and Rehabilitation,BEAGLE ORTHOPAEDIC LTD,id:14351741 ,1238.40
Department of Health,Guys and St Thomas NHS Foundation Trust,27/08/2021,(81225) Medical Surgical Supplies & Equipment,(id:590498) Therapies and Rehabilitation,DJO UK LTD,id:14350156   ,2710.80
Department of Health,Guys and St Thomas NHS Foundation Trust,27/08/2021,(81225) Medical Surgical Supplies & Equipment,(id:590498) Therapies and Rehabilitation,JANE SAUNDERS & MANNING LTD,id:14349815 , 614.82
Department of Health,Guys and St Thomas NHS Foundation Trust,06/08/2021,(81225) Medical Surgical Supplies & Equipment,(id:590498) Therapies and Rehabilitation,OSSUR UK LTD:42113800,id:14260477  , 525.54
Department of Health,Guys and St Thomas NHS Foundation Trust,06/08/2021,(81225) Medical Surgical Supplies & Equipment,(id:590498) Therapies and Rehabilitation,REED MEDICAL LIMITED,id:14260538   , 585.77
Department of Health,Guys and St Thomas NHS Foundation Trust,06/08/2021,(81000) Surgical Appliances,(id:590498) Therapies and Rehabilitation,KENWARD ORTHOPAEDIC LTD,id:14260463   ,    25049.52
Department of Health,Guys and St Thomas NHS Foundation Trust,06/08/2021,(81400) Medical Surgical Supplies & Equipment,(id:590498) Therapies and Rehabilitation,NPD ORTHOTICS LTD,id:14260459 , 524.69
Department of Health,Guys and St Thomas NHS Foundation Trust,13/08/2021,(81100) Dressings,(id:590498) Therapies and Rehabilitation,NHS SUPPLY CHAIN (MAIDSTONE),id:14245807   ,1766.88
Department of Health,Guys and St Thomas NHS Foundation Trust,13/08/2021,(81100) Dressings,(id:1042419) Therapies and Rehabilitation,NHS SUPPLY CHAIN (MAIDSTONE),id:14279840  , 237.67
Department of Health,Guys and St Thomas NHS Foundation Trust,13/08/2021,(82000) Provisions & Kitchens,(id:1042419) Therapies and Rehabilitation,NHS SUPPLY CHAIN (MAIDSTONE),id:14260687,  43.80
Department of Health,Guys and St Thomas NHS Foundation Trust,13/08/2021,(82000) Provisions & Kitchens,(id:1042419) Therapies and Rehabilitation,NHS SUPPLY CHAIN (MAIDSTONE),id:14245807,   6.26
Department of Health,Guys and St Thomas NHS Foundation Trust,13/08/2021,(83400) Office Equipment,(id:1042419) Therapies and Rehabilitation,NHS SUPPLY CHAIN (MAIDSTONE),id:14260687,  44.04
Department of Health,Guys and St Thomas NHS Foundation Trust,24/08/2021,(52072) Radiographers,(id:42368) Clinical Imaging & Med Physics,PRICEWATERHOUSECOOPERS LLP,id:14349234,    15294.77
Department of Health,Guys and St Thomas NHS Foundation Trust,24/08/2021,(52072) Radiographers,(id:42368) Clinical Imaging & Med Physics,PRICEWATERHOUSECOOPERS LLP,id:14349735,9577.97
Department of Health,Guys and St Thomas NHS Foundation Trust,24/08/2021,(52072) Radiographers,(id:42368) Clinical Imaging & Med Physics,PRICEWATERHOUSECOOPERS LLP,id:14349374,    10893.13
Department of Health,Guys and St Thomas NHS Foundation Trust,24/08/2021,(52062) Radiographers,(id:42368) Clinical Imaging & Med Physics,PRICEWATERHOUSECOOPERS LLP,id:14349054,1449.04
Department of Health,Guys and St Thomas NHS Foundation Trust,13/08/2021,(83400) Office Equipment,(id:42367) Clinical Imaging & Med Physics,NHS SUPPLY CHAIN (MAIDSTONE),id:14279840, 238.73
Department of Health,Guys and St Thomas NHS Foundation Trust,13/08/2021,(82800) Bedding & Linen,(id:42367) Clinical Imaging & Med Physics,NHS SUPPLY CHAIN (MAIDSTONE),id:14279840 , 517.38
Department of Health,Guys and St Thomas NHS Foundation Trust,20/08/2021,(81240) Medical Surgical Supplies & Equipment,(id:42367) Clinical Imaging & Med Physics,NHS SUPPLY CHAIN (MAIDSTONE),id:14342661    ,2112.00
Department of Health,Guys and St Thomas NHS Foundation Trust,20/08/2021,(82700) Uniforms & Clothing,(id:42367) Clinical Imaging & Med Physics,NHS SUPPLY CHAIN (MAIDSTONE),id:14342661  ,  31.68
Department of Health,Guys and St Thomas NHS Foundation Trust,13/08/2021,(81255) Medical Surgical Supplies & Equipment,(id:42367) Clinical Imaging & Med Physics,NHS SUPPLY CHAIN (MAIDSTONE),id:14260687    ,   3.70
Department of Health,Guys and St Thomas NHS Foundation Trust,06/08/2021,(81200) Medical Surgical Supplies & Equipment,(id:42367) Clinical Imaging & Med Physics,BARD LTD,id:14263988    , 624.00
Department of Health,Guys and St Thomas NHS Foundation Trust,06/08/2021,(81200) Medical Surgical Supplies & Equipment,(id:42367) Clinical Imaging & Med Physics,BOSTON SCIENTIFIC LTD,id:14263827 ,2640.00
Department of Health,Guys and St Thomas NHS Foundation Trust,06/08/2021,(81200) Medical Surgical Supplies & Equipment,(id:42367) Clinical Imaging & Med Physics,ABBOTT MEDICAL UK LTD,id:14288117 , 696.00
Department of Health,Guys and St Thomas NHS Foundation Trust,27/08/2021,(81200) Medical Surgical Supplies & Equipment,(id:42367) Clinical Imaging & Med Physics,MEDTRONIC LTD,id:14319051    , 600.00
Department of Health,Guys and St Thomas NHS Foundation Trust,27/08/2021,(81200) Medical Surgical Supplies & Equipment,(id:42367) Clinical Imaging & Med Physics,VOLCANO EUROPE BVBA/SPRL,id:14341352   , 834.00
Department of Health,Guys and St Thomas NHS Foundation Trust,27/08/2021,(81200) Medical Surgical Supplies & Equipment,(id:42367) Clinical Imaging & Med Physics,BOSTON SCIENTIFIC LTD,id:14324131 , 900.00
Department of Health,Guys and St Thomas NHS Foundation Trust,27/08/2021,(81200) Medical Surgical Supplies & Equipment,(id:42367) Clinical Imaging & Med Physics,MEDTRONIC LTD,id:14318720    ,1890.00
Department of Health,Guys and St Thomas NHS Foundation Trust,06/08/2021,(81200) Medical Surgical Supplies & Equipment,(id:42367) Clinical Imaging & Med Physics,BOSTON SCIENTIFIC LTD,id:14259361 ,9600.00
Department of Health,Guys and St Thomas NHS Foundation Trust,13/08/2021,(81200) Medical Surgical Supplies & Equipment,(id:42367) Clinical Imaging & Med Physics,TELEFLEX MEDICAL,id:14272637 , 600.00
Department of Health,Guys and St Thomas NHS Foundation Trust,13/08/2021,(81200) Medical Surgical Supplies & Equipment,(id:42367) Clinical Imaging & Med Physics,ABBOTT MEDICAL UK LTD,id:14307224 , 696.00
Department of Health,Guys and St Thomas NHS Foundation Trust,06/08/2021,(81235) Medical Surgical Supplies & Equipment,(id:42367) Clinical Imaging & Med Physics,BOSTON SCIENTIFIC LTD,id:14263822 , 270.00
Department of Health,Guys and St Thomas NHS Foundation Trust,06/08/2021,(81235) Medical Surgical Supplies & Equipment,(id:42367) Clinical Imaging & Med Physics,BOSTON SCIENTIFIC LTD,id:14301632 , 306.00
Department of Health,Guys and St Thomas NHS Foundation Trust,13/08/2021,(81235) Medical Surgical Supplies & Equipment,(id:42367) Clinical Imaging & Med Physics,BOSTON SCIENTIFIC LTD,id:14272730 ,  84.00
Department of Health,Guys and St Thomas NHS Foundation Trust,13/08/2021,(81235) Medical Surgical Supplies & Equipment,(id:42367) Clinical Imaging & Med Physics,BOSTON SCIENTIFIC LTD,id:14269682 , 102.00
Department of Health,Guys and St Thomas NHS Foundation Trust,06/08/2021,(81230) Medical Surgical Supplies & Equipment,(id:42367) Clinical Imaging & Med Physics,BOSTON SCIENTIFIC LTD,id:14248913 , 712.80
Department of Health,Guys and St Thomas NHS Foundation Trust,27/08/2021,(81230) Medical Surgical Supplies & Equipment,(id:42367) Clinical Imaging & Med Physics,COOK UK LTD,id:14318762 , 996.00
Department of Health,Guys and St Thomas NHS Foundation Trust,13/08/2021,(81225) Medical Surgical Supplies & Equipment,(id:42367) Clinical Imaging & Med Physics,NHS SUPPLY CHAIN (MAIDSTONE),id:14245807    ,  69.79
Department of Health,Guys and St Thomas NHS Foundation Trust,13/08/2021,(81500) X Ray Equipment Purchase,(id:42367) Clinical Imaging & Med Physics,BAYER PLC,id:14320474 ,2131.20
Department of Health,Guys and St Thomas NHS Foundation Trust,13/08/2021,(81700) Lab Equipment Purchase,(id:42367) Clinical Imaging & Med Physics,NHS SUPPLY CHAIN (MAIDSTONE),id:14260687    ,  16.39
Department of Health,Guys and St Thomas NHS Foundation Trust,20/08/2021,(81200) Medical Surgical Supplies & Equipment,(id:42366) Clinical Imaging & Med Physics,NHS SUPPLY CHAIN (MAIDSTONE),id:14342661    , 942.81
Department of Health,Guys and St Thomas NHS Foundation Trust,13/08/2021,(83410) Office Equipment,(id:42366) Clinical Imaging & Med Physics,RICOH UK LTD,id:14302184 , 133.67
Department of Health,Guys and St Thomas NHS Foundation Trust,13/08/2021,(83400) Office Equipment,(id:42366) Clinical Imaging & Med Physics,NHS SUPPLY CHAIN (MAIDSTONE),id:14245807, 662.82
Department of Health,Guys and St Thomas NHS Foundation Trust,20/08/2021,(83400) Office Equipment,(id:4187419) Clinical Imaging & Med Physics,BAYER PLC,id:14303774  ,2112.00
Department of Health,Guys and St Thomas NHS Foundation Trust,20/08/2021,(83400) Office Equipment,(id:4187419) Clinical Imaging & Med Physics,BAYER PLC,id:14320234  ,2112.00
Department of Health,Guys and St Thomas NHS Foundation Trust,20/08/2021,(83400) Office Equipment,(id:4187419) Clinical Imaging & Med Physics,BAYER PLC,id:14260611  ,2112.00
Department of Health,Guys and St Thomas NHS Foundation Trust,27/08/2021,(83400) Office Equipment,(id:4187419) Clinical Imaging & Med Physics,BAYER PLC,id:14343438  ,2112.00
Department of Health,Guys and St Thomas NHS Foundation Trust,27/08/2021,(83400) Office Equipment,(id:4187419) Clinical Imaging & Med Physics,BAYER PLC,id:14343814  ,2112.00
Department of Health,Guys and St Thomas NHS Foundation Trust,20/08/2021,(81500) X Ray Equipment Purchase,(id:4187419) Clinical Imaging & Med Physics,ADVANCED ACCELERATOR APPLICATIONS (UK & IRELAND) LTD,id:14315840 ,    16690.50
Department of Health,Guys and St Thomas NHS Foundation Trust,13/08/2021,(82600) Uniforms & Clothing,(id:42372) Clinical Imaging & Med Physics,NHS SUPPLY CHAIN (MAIDSTONE),id:14279840  , 210.00
Department of Health,Guys and St Thomas NHS Foundation Trust,13/08/2021,(81100) Dressings,(id:42372) Clinical Imaging & Med Physics,NHS SUPPLY CHAIN (MAIDSTONE),id:14260687  ,   5.14
Department of Health,Guys and St Thomas NHS Foundation Trust,13/08/2021,(83410) Office Equipment,(id:42372) Clinical Imaging & Med Physics,RICOH UK LTD,id:14301837 , 303.51
Department of Health,Guys and St Thomas NHS Foundation Trust,13/08/2021,(81275) Medical Surgical Supplies & Equipment,(id:42372) Clinical Imaging & Med Physics,GE HEALTHCARE (50652318),id:14233455   ,2016.00
Department of Health,Guys and St Thomas NHS Foundation Trust,13/08/2021,(81275) Medical Surgical Supplies & Equipment,(id:42372) Clinical Imaging & Med Physics,GE HEALTHCARE (50652318),id:14323668   ,4680.00
Department of Health,Guys and St Thomas NHS Foundation Trust,20/08/2021,(81275) Medical Surgical Supplies & Equipment,(id:42372) Clinical Imaging & Med Physics,GE HEALTHCARE (50652318),id:14323707   ,2016.00
Department of Health,Guys and St Thomas NHS Foundation Trust,20/08/2021,(81500) X Ray Equipment Purchase,(id:42372) Clinical Imaging & Med Physics,1ST BIOTECH LIMITED,id:14261342 ,2744.16
Department of Health,Guys and St Thomas NHS Foundation Trust,06/08/2021,(81500) X Ray Equipment Purchase,(id:42372) Clinical Imaging & Med Physics,CURIUM PHARMA UK LTD,id:14290014,1934.40
Department of Health,Guys and St Thomas NHS Foundation Trust,06/08/2021,(81500) X Ray Equipment Purchase,(id:42372) Clinical Imaging & Med Physics,CURIUM PHARMA UK LTD,id:14288925,1934.40
Department of Health,Guys and St Thomas NHS Foundation Trust,06/08/2021,(81500) X Ray Equipment Purchase,(id:42372) Clinical Imaging & Med Physics,CURIUM PHARMA UK LTD,id:14278802,1934.40
Department of Health,Guys and St Thomas NHS Foundation Trust,06/08/2021,(81500) X Ray Equipment Purchase,(id:42372) Clinical Imaging & Med Physics,CURIUM PHARMA UK LTD,id:14292574, 880.00
Department of Health,Guys and St Thomas NHS Foundation Trust,13/08/2021,(81200) Medical Surgical Supplies & Equipment,(id:42379) Clinical Imaging & Med Physics,NHS SUPPLY CHAIN (MAIDSTONE),id:14245807    ,  46.25
Department of Health,Guys and St Thomas NHS Foundation Trust,13/08/2021,(83410) Office Equipment,(id:42375) Clinical Imaging & Med Physics,RICOH UK LTD,id:14301837 , 169.50
Department of Health,Guys and St Thomas NHS Foundation Trust,13/08/2021,(83410) Office Equipment,(id:42373) Clinical Imaging & Med Physics,RICOH UK LTD,id:14301956 , 105.66
Department of Health,Guys and St Thomas NHS Foundation Trust,13/08/2021,(81250) Medical Surgical Supplies & Equipment,(id:1348419) Clinical Imaging & Med Physics,AQUILANT LTD,id:14302613   ,2088.00
Department of Health,Guys and St Thomas NHS Foundation Trust,13/08/2021,(81230) Medical Surgical Supplies & Equipment,(id:1348419) Clinical Imaging & Med Physics,NHS SUPPLY CHAIN (MAIDSTONE),id:14260687  , 216.00
Department of Health,Guys and St Thomas NHS Foundation Trust,13/08/2021,(83410) Office Equipment,(id:662460) Integrated Local Services,RICOH UK LTD,id:14301956,  48.52
Department of Health,Guys and St Thomas NHS Foundation Trust,13/08/2021,(81200) Medical Surgical Supplies & Equipment,(id:42255) Integrated Local Services,NHS SUPPLY CHAIN (MAIDSTONE),id:14245807    ,  27.34
Department of Health,Guys and St Thomas NHS Foundation Trust,06/08/2021,(81200) Medical Surgical Supplies & Equipment,(id:42255) Integrated Local Services,SELDOC LTD,id:14266720  ,5700.00
Department of Health,Guys and St Thomas NHS Foundation Trust,13/08/2021,(83410) Office Equipment,(id:590598) Integrated Local Services,RICOH UK LTD,id:14301778, 874.33
Department of Health,Guys and St Thomas NHS Foundation Trust,13/08/2021,(82000) Provisions & Kitchens,(id:590595) Integrated Local Services,NHS SUPPLY CHAIN (MAIDSTONE),id:14260687    ,  31.20
Department of Health,Guys and St Thomas NHS Foundation Trust,06/08/2021,(83410) Office Equipment,(id:590595) Integrated Local Services,RICOH UK LTD,id:14302191, 923.48
Department of Health,Guys and St Thomas NHS Foundation Trust,06/08/2021,(83410) Office Equipment,(id:590585) Integrated Local Services,RICOH UK LTD,id:14301738, 941.53
Department of Health,Guys and St Thomas NHS Foundation Trust,06/08/2021,(83410) Office Equipment,(id:590469) Integrated Local Services,RICOH UK LTD,id:14301992, 598.45
Department of Health,Guys and St Thomas NHS Foundation Trust,06/08/2021,(83410) Office Equipment,(id:590464) Integrated Local Services,RICOH UK LTD,id:14301936, 633.89
Department of Health,Guys and St Thomas NHS Foundation Trust,06/08/2021,(83500) Furniture & Fittings,(id:590464) Integrated Local Services,H C SLINGSBY PLC,id:14294296  , 715.20
Department of Health,Guys and St Thomas NHS Foundation Trust,24/08/2021,(51832) Physiotherapists,(id:699422) Integrated Local Services,PRICEWATERHOUSECOOPERS LLP,id:14349054 ,4294.92
Department of Health,Guys and St Thomas NHS Foundation Trust,13/08/2021,(50552) Qualified Nursing Staff,(id:590523) Integrated Local Services,MSI GROUP LTD,id:14322601  ,1081.09
Department of Health,Guys and St Thomas NHS Foundation Trust,27/08/2021,(50200) Consultants,(id:590492) Integrated Local Services,KING'S COLLEGE HOSPITAL NHS FOUNDATION TRUST,id:14354777   ,    -3887.03
Department of Health,Guys and St Thomas NHS Foundation Trust,20/08/2021,(81225) Medical Surgical Supplies & Equipment,(id:2357419) Integrated Local Services,NHS SUPPLY CHAIN (MAIDSTONE),id:14342661  ,   7.98
Department of Health,Guys and St Thomas NHS Foundation Trust,13/08/2021,(81225) Medical Surgical Supplies & Equipment,(id:2357419) Integrated Local Services,NHS SUPPLY CHAIN (MAIDSTONE),id:14260687  , 244.80
Department of Health,Guys and St Thomas NHS Foundation Trust,24/08/2021,(50202) Consultants,(id:2357419) Integrated Local Services,PRICEWATERHOUSECOOPERS LLP,id:14349234,2658.42
Department of Health,Guys and St Thomas NHS Foundation Trust,31/08/2021,(50202) Consultants,(id:2357419) Integrated Local Services,PRICEWATERHOUSECOOPERS LLP,id:14368494,2658.42
Department of Health,Guys and St Thomas NHS Foundation Trust,24/08/2021,(51462) Occupational Therapists,(id:1913419) Integrated Local Services,PRICEWATERHOUSECOOPERS LLP,id:14349735   ,3544.40
Department of Health,Guys and St Thomas NHS Foundation Trust,13/08/2021,(83400) Office Equipment,(id:684420) Integrated Local Services,NHS SUPPLY CHAIN (MAIDSTONE),id:14279840    ,  12.27
Department of Health,Guys and St Thomas NHS Foundation Trust,20/08/2021,(83610) IT Costs,(id:590504) Integrated Local Services,APPLE RETAIL UK LTD,id:14340648 ,1728.00
Department of Health,Guys and St Thomas NHS Foundation Trust,31/08/2021,(51862) Physiotherapists,(id:684419) Integrated Local Services,PRICEWATERHOUSECOOPERS LLP,id:14368494 ,3301.83
Department of Health,Guys and St Thomas NHS Foundation Trust,06/08/2021,(83410) Office Equipment,(id:590503) Integrated Local Services,RICOH UK LTD,id:14301994, 467.72
Department of Health,Guys and St Thomas NHS Foundation Trust,13/08/2021,(81100) Dressings,(id:590522) Integrated Local Services,NHS SUPPLY CHAIN (MAIDSTONE),id:14245807 , 186.00
Department of Health,Guys and St Thomas NHS Foundation Trust,13/08/2021,(81100) Dressings,(id:590522) Integrated Local Services,NHS SUPPLY CHAIN (MAIDSTONE),id:14279840 , 101.41
Department of Health,Guys and St Thomas NHS Foundation Trust,27/08/2021,(50552) Qualified Nursing Staff,(id:590522) Integrated Local Services,MSI GROUP LTD,id:14356534  ,1224.12
Department of Health,Guys and St Thomas NHS Foundation Trust,13/08/2021,(50552) Qualified Nursing Staff,(id:590521) Integrated Local Services,NURSING 2000 LTD,id:14322549    , 420.13
Department of Health,Guys and St Thomas NHS Foundation Trust,13/08/2021,(81100) Dressings,(id:590520) Integrated Local Services,NHS SUPPLY CHAIN (MAIDSTONE),id:14279840 , 168.97
Department of Health,Guys and St Thomas NHS Foundation Trust,13/08/2021,(82800) Bedding & Linen,(id:590520) Integrated Local Services,NHS SUPPLY CHAIN (MAIDSTONE),id:14260687, 163.34
Department of Health,Guys and St Thomas NHS Foundation Trust,13/08/2021,(82000) Provisions & Kitchens,(id:590520) Integrated Local Services,NHS SUPPLY CHAIN (MAIDSTONE),id:14260687    ,  16.10
Department of Health,Guys and St Thomas NHS Foundation Trust,20/08/2021,(81100) Dressings,(id:590473) Integrated Local Services,NHS SUPPLY CHAIN (MAIDSTONE),id:14342661 , 124.37
Department of Health,Guys and St Thomas NHS Foundation Trust,13/08/2021,(81700) Lab Equipment Purchase,(id:590473) Integrated Local Services,NHS SUPPLY CHAIN (MAIDSTONE),id:14245807   , 103.06
Department of Health,Guys and St Thomas NHS Foundation Trust,13/08/2021,(81200) Medical Surgical Supplies & Equipment,(id:590471) Integrated Local Services,NHS SUPPLY CHAIN (MAIDSTONE),id:14279840   ,  18.36
Department of Health,Guys and St Thomas NHS Foundation Trust,13/08/2021,(81200) Medical Surgical Supplies & Equipment,(id:590535) Integrated Local Services,NHS SUPPLY CHAIN (MAIDSTONE),id:14260687   , 475.92
Department of Health,Guys and St Thomas NHS Foundation Trust,13/08/2021,(81200) Medical Surgical Supplies & Equipment,(id:590477) Integrated Local Services,NHS SUPPLY CHAIN (MAIDSTONE),id:14260687   ,  16.20
Department of Health,Guys and St Thomas NHS Foundation Trust,13/08/2021,(86300) Healthcare from non-NHS bodies,(id:590477) Integrated Local Services,NHS SUPPLY CHAIN (MAIDSTONE),id:14274014,3166.28
Department of Health,Guys and St Thomas NHS Foundation Trust,13/08/2021,(86300) Healthcare from non-NHS bodies,(id:590477) Integrated Local Services,NHS SUPPLY CHAIN (MAIDSTONE),id:14274254, 714.09
Department of Health,Guys and St Thomas NHS Foundation Trust,13/08/2021,(86300) Healthcare from non-NHS bodies,(id:590477) Integrated Local Services,NHS SUPPLY CHAIN (MAIDSTONE),id:14274774,1060.60
Department of Health,Guys and St Thomas NHS Foundation Trust,13/08/2021,(81200) Medical Surgical Supplies & Equipment,(id:590463) Integrated Local Services,NHS SUPPLY CHAIN (MAIDSTONE),id:14279840   , 312.54
Department of Health,Guys and St Thomas NHS Foundation Trust,27/08/2021,(50562) Qualified Nursing Staff,(id:590463) Integrated Local Services,COYLE PERSONNEL PLC,id:14356761 ,1750.00
Department of Health,Guys and St Thomas NHS Foundation Trust,06/08/2021,(50562) Qualified Nursing Staff,(id:590463) Integrated Local Services,COYLE PERSONNEL PLC,id:14303075 ,1750.00
Department of Health,Guys and St Thomas NHS Foundation Trust,13/08/2021,(83400) Office Equipment,(id:590527) Integrated Local Services,NHS SUPPLY CHAIN (MAIDSTONE),id:14245807    ,  16.75
Department of Health,Guys and St Thomas NHS Foundation Trust,13/08/2021,(81200) Medical Surgical Supplies & Equipment,(id:590527) Integrated Local Services,NHS SUPPLY CHAIN (MAIDSTONE),id:14279840   , 239.76
Department of Health,Guys and St Thomas NHS Foundation Trust,20/08/2021,(81200) Medical Surgical Supplies & Equipment,(id:590527) Integrated Local Services,NHS SUPPLY CHAIN (MAIDSTONE),id:14342661   , 138.75
Department of Health,Guys and St Thomas NHS Foundation Trust,06/08/2021,(83500) Furniture & Fittings,(id:590527) Integrated Local Services,SHUTTLEWORTH MEDICAL LTD,id:14285417    ,6393.60
Department of Health,Guys and St Thomas NHS Foundation Trust,13/08/2021,(83410) Office Equipment,(id:590526) Integrated Local Services,RICOH UK LTD,id:14302184,  96.02
Department of Health,Guys and St Thomas NHS Foundation Trust,13/08/2021,(82800) Bedding & Linen,(id:903421) Integrated Local Services,NHS SUPPLY CHAIN (MAIDSTONE),id:14245807,  10.66
Department of Health,Guys and St Thomas NHS Foundation Trust,13/08/2021,(83410) Office Equipment,(id:903421) Integrated Local Services,RICOH UK LTD,id:14301778,  17.00
Department of Health,Guys and St Thomas NHS Foundation Trust,06/08/2021,(50552) Qualified Nursing Staff,(id:4263423) Integrated Local Services,NURSING 2000 LTD,id:14268743   ,1379.05
Department of Health,Guys and St Thomas NHS Foundation Trust,13/08/2021,(83400) Office Equipment,(id:42518) Evelina Womens Services,NHS SUPPLY CHAIN (MAIDSTONE),id:14245807  ,   6.48
Department of Health,Guys and St Thomas NHS Foundation Trust,27/08/2021,(50562) Qualified Nursing Staff,(id:42518) Evelina Womens Services,GLOBE LOCUMS LTD,id:14356542  , 442.26
Department of Health,Guys and St Thomas NHS Foundation Trust,13/08/2021,(81200) Medical Surgical Supplies & Equipment,(id:42518) Evelina Womens Services,NHS SUPPLY CHAIN (MAIDSTONE),id:14260687 , 194.83
Department of Health,Guys and St Thomas NHS Foundation Trust,13/08/2021,(83400) Office Equipment,(id:42517) Evelina Womens Services,NHS SUPPLY CHAIN (MAIDSTONE),id:14245807  , 218.53
Department of Health,Guys and St Thomas NHS Foundation Trust,13/08/2021,(81100) Dressings,(id:42517) Evelina Womens Services,NHS SUPPLY CHAIN (MAIDSTONE),id:14245807    , 165.84
Department of Health,Guys and St Thomas NHS Foundation Trust,20/08/2021,(84500) Establishment,(id:42517) Evelina Womens Services,OFFICE DEPOT UK LTD,id:14295929    , 421.93
Department of Health,Guys and St Thomas NHS Foundation Trust,12/08/2021,(81200) Medical Surgical Supplies & Equipment,(id:42517) Evelina Womens Services,FUJIFILM EUROPE B.V,id:14322456,7440.00
Department of Health,Guys and St Thomas NHS Foundation Trust,20/08/2021,(81200) Medical Surgical Supplies & Equipment,(id:42517) Evelina Womens Services,ARGON MEDICAL DEVICES UK LTD,id:14334500 ,2280.96
Department of Health,Guys and St Thomas NHS Foundation Trust,13/08/2021,(81700) Lab Equipment Purchase,(id:42517) Evelina Womens Services,NHS SUPPLY CHAIN (MAIDSTONE),id:14260687 , 178.04
Department of Health,Guys and St Thomas NHS Foundation Trust,13/08/2021,(81700) Lab Equipment Purchase,(id:42517) Evelina Womens Services,NHS SUPPLY CHAIN (MAIDSTONE),id:14245807 ,  56.04
Department of Health,Guys and St Thomas NHS Foundation Trust,13/08/2021,(83410) Office Equipment,(id:42514) Evelina Womens Services,RICOH UK LTD,id:14302184   , 174.31
Department of Health,Guys and St Thomas NHS Foundation Trust,20/08/2021,(83400) Office Equipment,(id:42513) Evelina Womens Services,NHS SUPPLY CHAIN (MAIDSTONE),id:14342661  ,  42.00
Department of Health,Guys and St Thomas NHS Foundation Trust,13/08/2021,(83400) Office Equipment,(id:42513) Evelina Womens Services,NHS SUPPLY CHAIN (MAIDSTONE),id:14279840  , 100.50
Department of Health,Guys and St Thomas NHS Foundation Trust,13/08/2021,(81100) Dressings,(id:42513) Evelina Womens Services,NHS SUPPLY CHAIN (MAIDSTONE),id:14245807    , 135.38
Department of Health,Guys and St Thomas NHS Foundation Trust,13/08/2021,(81100) Dressings,(id:42513) Evelina Womens Services,NHS SUPPLY CHAIN (MAIDSTONE),id:14279840    ,  88.13
Department of Health,Guys and St Thomas NHS Foundation Trust,13/08/2021,(81255) Medical Surgical Supplies & Equipment,(id:42513) Evelina Womens Services,NHS SUPPLY CHAIN (MAIDSTONE),id:14260687 ,   3.12
Department of Health,Guys and St Thomas NHS Foundation Trust,13/08/2021,(82000) Provisions & Kitchens,(id:42513) Evelina Womens Services,NHS SUPPLY CHAIN (MAIDSTONE),id:14279840  , 151.22
Department of Health,Guys and St Thomas NHS Foundation Trust,13/08/2021,(81200) Medical Surgical Supplies & Equipment,(id:42511) Evelina Womens Services,NHS SUPPLY CHAIN (MAIDSTONE),id:14279840 , 300.00
Department of Health,Guys and St Thomas NHS Foundation Trust,20/08/2021,(81200) Medical Surgical Supplies & Equipment,(id:42511) Evelina Womens Services,NHS SUPPLY CHAIN (MAIDSTONE),id:14342661 , 540.86
Department of Health,Guys and St Thomas NHS Foundation Trust,20/08/2021,(81200) Medical Surgical Supplies & Equipment,(id:42511) Evelina Womens Services,CRYOLIFE EUROPA LTD,id:14326114,2520.00
Department of Health,Guys and St Thomas NHS Foundation Trust,20/08/2021,(81200) Medical Surgical Supplies & Equipment,(id:42510) Evelina Womens Services,NHS SUPPLY CHAIN (MAIDSTONE),id:14342661 ,  33.07
Department of Health,Guys and St Thomas NHS Foundation Trust,13/08/2021,(50522) Unqualified Nursing Staff,(id:42509) Evelina Womens Services,GLOBE LOCUMS LTD,id:14322538, 252.92
Department of Health,Guys and St Thomas NHS Foundation Trust,20/08/2021,(81700) Lab Equipment Purchase,(id:42486) Evelina Womens Services,QUEEN MARY UNIVERSITY OF LONDON,id:14335422   ,1783.50
Department of Health,Guys and St Thomas NHS Foundation Trust,13/08/2021,(83410) Office Equipment,(id:42486) Evelina Womens Services,RICOH UK LTD,id:14301956   , 178.33
Department of Health,Guys and St Thomas NHS Foundation Trust,13/08/2021,(82800) Bedding & Linen,(id:42486) Evelina Womens Services,NHS SUPPLY CHAIN (MAIDSTONE),id:14279840   ,  20.10
Department of Health,Guys and St Thomas NHS Foundation Trust,13/08/2021,(81225) Medical Surgical Supplies & Equipment,(id:42486) Evelina Womens Services,NHS SUPPLY CHAIN (MAIDSTONE),id:14245807 ,   6.29
Department of Health,Guys and St Thomas NHS Foundation Trust,20/08/2021,(82800) Bedding & Linen,(id:42488) Evelina Womens Services,NHS SUPPLY CHAIN (MAIDSTONE),id:14342661   , 202.37
Department of Health,Guys and St Thomas NHS Foundation Trust,13/08/2021,(81200) Medical Surgical Supplies & Equipment,(id:42488) Evelina Womens Services,NHS SUPPLY CHAIN (MAIDSTONE),id:14279840 , 244.01
Department of Health,Guys and St Thomas NHS Foundation Trust,20/08/2021,(81200) Medical Surgical Supplies & Equipment,(id:42488) Evelina Womens Services,NHS SUPPLY CHAIN (MAIDSTONE),id:14342661 ,  37.87
Department of Health,Guys and St Thomas NHS Foundation Trust,13/08/2021,(50562) Qualified Nursing Staff,(id:42497) Evelina Womens Services,CARE PROVIDERS HEALTHCARE,id:14322887   ,1417.37
Department of Health,Guys and St Thomas NHS Foundation Trust,06/08/2021,(50562) Qualified Nursing Staff,(id:42497) Evelina Womens Services,GLOBE LOCUMS LTD,id:14302853  , 435.97
Department of Health,Guys and St Thomas NHS Foundation Trust,13/08/2021,(81200) Medical Surgical Supplies & Equipment,(id:42496) Evelina Womens Services,NHS SUPPLY CHAIN (MAIDSTONE),id:14260687 , 160.73
Department of Health,Guys and St Thomas NHS Foundation Trust,13/08/2021,(81100) Dressings,(id:42496) Evelina Womens Services,NHS SUPPLY CHAIN (MAIDSTONE),id:14245807    ,   7.55
Department of Health,Guys and St Thomas NHS Foundation Trust,13/08/2021,(82700) Uniforms & Clothing,(id:42493) Evelina Womens Services,NHS SUPPLY CHAIN (MAIDSTONE),id:14279840    ,  43.68
Department of Health,Guys and St Thomas NHS Foundation Trust,13/08/2021,(82000) Provisions & Kitchens,(id:42493) Evelina Womens Services,NHS SUPPLY CHAIN (MAIDSTONE),id:14279840  ,  14.69
Department of Health,Guys and St Thomas NHS Foundation Trust,20/08/2021,(81100) Dressings,(id:42493) Evelina Womens Services,NHS SUPPLY CHAIN (MAIDSTONE),id:14342661    , 103.01
Department of Health,Guys and St Thomas NHS Foundation Trust,13/08/2021,(81275) Medical Surgical Supplies & Equipment,(id:42493) Evelina Womens Services,NHS SUPPLY CHAIN (MAIDSTONE),id:14245807 ,  17.79
Department of Health,Guys and St Thomas NHS Foundation Trust,13/08/2021,(81275) Medical Surgical Supplies & Equipment,(id:42493) Evelina Womens Services,NHS SUPPLY CHAIN (MAIDSTONE),id:14260687 ,  11.86
Department of Health,Guys and St Thomas NHS Foundation Trust,13/08/2021,(82600) Uniforms & Clothing,(id:42492) Evelina Womens Services,NHS SUPPLY CHAIN (MAIDSTONE),id:14245807    , 129.62
Department of Health,Guys and St Thomas NHS Foundation Trust,13/08/2021,(82000) Provisions & Kitchens,(id:42492) Evelina Womens Services,NHS SUPPLY CHAIN (MAIDSTONE),id:14279840  ,  36.54
Department of Health,Guys and St Thomas NHS Foundation Trust,06/08/2021,(81200) Medical Surgical Supplies & Equipment,(id:42492) Evelina Womens Services,COOK UK LTD,id:14259428   , 628.80
Department of Health,Guys and St Thomas NHS Foundation Trust,13/08/2021,(81200) Medical Surgical Supplies & Equipment,(id:42492) Evelina Womens Services,NHS SUPPLY CHAIN (MAIDSTONE),id:14260687 ,8322.91
Department of Health,Guys and St Thomas NHS Foundation Trust,13/08/2021,(81225) Medical Surgical Supplies & Equipment,(id:42492) Evelina Womens Services,NHS SUPPLY CHAIN (MAIDSTONE),id:14279840 , 104.38
Department of Health,Guys and St Thomas NHS Foundation Trust,13/08/2021,(81275) Medical Surgical Supplies & Equipment,(id:42492) Evelina Womens Services,NHS SUPPLY CHAIN (MAIDSTONE),id:14279840 ,  11.86
Department of Health,Guys and St Thomas NHS Foundation Trust,06/08/2021,(50562) Qualified Nursing Staff,(id:42492) Evelina Womens Services,CARE PROVIDERS HEALTHCARE,id:14303034   , 865.45
Department of Health,Guys and St Thomas NHS Foundation Trust,20/08/2021,(83400) Office Equipment,(id:42491) Evelina Womens Services,NHS SUPPLY CHAIN (MAIDSTONE),id:14342661  ,  21.78
Department of Health,Guys and St Thomas NHS Foundation Trust,20/08/2021,(83500) Furniture & Fittings,(id:42491) Evelina Womens Services,OCURA HEALTHCARE FURNITURE,id:14333957,2716.73
Department of Health,Guys and St Thomas NHS Foundation Trust,13/08/2021,(80010) Drug Costs,(id:42491) Evelina Womens Services,NHS SUPPLY CHAIN (MAIDSTONE),id:14245807   ,  18.00
Department of Health,Guys and St Thomas NHS Foundation Trust,13/08/2021,(81225) Medical Surgical Supplies & Equipment,(id:42491) Evelina Womens Services,NHS SUPPLY CHAIN (MAIDSTONE),id:14279840 ,   3.60
Department of Health,Guys and St Thomas NHS Foundation Trust,20/08/2021,(81700) Lab Equipment Purchase,(id:42491) Evelina Womens Services,NHS SUPPLY CHAIN (MAIDSTONE),id:14342661 ,  27.19
Department of Health,Guys and St Thomas NHS Foundation Trust,13/08/2021,(81700) Lab Equipment Purchase,(id:42348) Evelina Central,NHS SUPPLY CHAIN (MAIDSTONE),id:14245807    ,  53.67
Department of Health,Guys and St Thomas NHS Foundation Trust,13/08/2021,(82800) Bedding & Linen,(id:42331) Evelina Central,NHS SUPPLY CHAIN (MAIDSTONE),id:14279840 ,  48.75
Department of Health,Guys and St Thomas NHS Foundation Trust,13/08/2021,(83410) Office Equipment,(id:42331) Evelina Central,RICOH UK LTD,id:14301956 , 126.38
Department of Health,Guys and St Thomas NHS Foundation Trust,13/08/2021,(82000) Provisions & Kitchens,(id:42331) Evelina Central,NHS SUPPLY CHAIN (MAIDSTONE),id:14245807,  81.38
Department of Health,Guys and St Thomas NHS Foundation Trust,13/08/2021,(81275) Medical Surgical Supplies & Equipment,(id:42325) Evelina Central,RADIOMETER LTD,id:14305875   , 648.82
Department of Health,Guys and St Thomas NHS Foundation Trust,13/08/2021,(81275) Medical Surgical Supplies & Equipment,(id:42325) Evelina Central,RADIOMETER LTD,id:14305895   , 895.46
Department of Health,Guys and St Thomas NHS Foundation Trust,20/08/2021,(89280) Other - Consultancy costs,(id:4198419) Evelina Central,ST GEORGE'S UNIVERSITY HOSPITALS NHS FOUNDATION TRUST,id:14024560    ,1575.22
Department of Health,Guys and St Thomas NHS Foundation Trust,13/08/2021,(81200) Medical Surgical Supplies & Equipment,(id:42319) Evelina Central,NHS SUPPLY CHAIN (MAIDSTONE),id:14260687    , 163.86
Department of Health,Guys and St Thomas NHS Foundation Trust,13/08/2021,(83400) Office Equipment,(id:42319) Evelina Central,NHS SUPPLY CHAIN (MAIDSTONE),id:14245807,  14.52
Department of Health,Guys and St Thomas NHS Foundation Trust,13/08/2021,(83410) Office Equipment,(id:42316) Evelina Central,RICOH UK LTD,id:14301778 , 190.66
Department of Health,Guys and St Thomas NHS Foundation Trust,27/08/2021,(89000) Other - Training courses and conferences,(id:42316) Evelina Central,CIVIL EYES RESEARCH LTD,id:14356322 ,    10000.00
Department of Health,Guys and St Thomas NHS Foundation Trust,13/08/2021,(81225) Medical Surgical Supplies & Equipment,(id:590444) Evelina Community Services,NHS SUPPLY CHAIN (MAIDSTONE),id:14245807  , 314.64
Department of Health,Guys and St Thomas NHS Foundation Trust,06/08/2021,(81225) Medical Surgical Supplies & Equipment,(id:590550) Evelina Community Services,JENX LTD,id:14294538  ,2470.80
Department of Health,Guys and St Thomas NHS Foundation Trust,27/08/2021,(81225) Medical Surgical Supplies & Equipment,(id:590450) Evelina Community Services,R82 UK LTD,id:14350315,1447.20
Department of Health,Guys and St Thomas NHS Foundation Trust,13/08/2021,(83410) Office Equipment,(id:590551) Evelina Community Services,RICOH UK LTD,id:14301956    , 142.04
Department of Health,Guys and St Thomas NHS Foundation Trust,06/08/2021,(82600) Uniforms & Clothing,(id:590451) Evelina Community Services,LJA MIERS & CO LTD,id:14294600, 506.40
Department of Health,Guys and St Thomas NHS Foundation Trust,13/08/2021,(83410) Office Equipment,(id:590451) Evelina Community Services,RICOH UK LTD,id:14301837    , 340.37
Department of Health,Guys and St Thomas NHS Foundation Trust,13/08/2021,(82000) Provisions & Kitchens,(id:1831419) Evelina Community Services,NHS SUPPLY CHAIN (MAIDSTONE),id:14260687  , 813.18
Department of Health,Guys and St Thomas NHS Foundation Trust,13/08/2021,(82000) Provisions & Kitchens,(id:1831419) Evelina Community Services,NHS SUPPLY CHAIN (MAIDSTONE),id:14245807  , 791.70
Department of Health,Guys and St Thomas NHS Foundation Trust,13/08/2021,(82800) Bedding & Linen,(id:590557) Evelina Community Services,NHS SUPPLY CHAIN (MAIDSTONE),id:14279840    ,  41.88
Department of Health,Guys and St Thomas NHS Foundation Trust,20/08/2021,(83400) Office Equipment,(id:590446) Evelina Community Services,DICT8 LIMITED,id:14340354   ,3410.04
Department of Health,Guys and St Thomas NHS Foundation Trust,13/08/2021,(50562) Qualified Nursing Staff,(id:590541) Evelina Community Services,MSI GROUP LTD,id:14322972 ,1001.10
Department of Health,Guys and St Thomas NHS Foundation Trust,27/08/2021,(50562) Qualified Nursing Staff,(id:590541) Evelina Community Services,MSI GROUP LTD,id:14359634 ,1001.10
Department of Health,Guys and St Thomas NHS Foundation Trust,13/08/2021,(50562) Qualified Nursing Staff,(id:590539) Evelina Community Services,ARTHUR RAI MEDICAL SERVICES LTD,id:14322712   ,1053.60
Department of Health,Guys and St Thomas NHS Foundation Trust,27/08/2021,(50562) Qualified Nursing Staff,(id:590539) Evelina Community Services,ARTHUR RAI MEDICAL SERVICES LTD,id:14359639   , 790.20
Department of Health,Guys and St Thomas NHS Foundation Trust,13/08/2021,(50562) Qualified Nursing Staff,(id:590542) Evelina Community Services,ARTHUR RAI MEDICAL SERVICES LTD,id:14322526   ,1053.60
Department of Health,Guys and St Thomas NHS Foundation Trust,27/08/2021,(50562) Qualified Nursing Staff,(id:590542) Evelina Community Services,ARTHUR RAI MEDICAL SERVICES LTD,id:14359631   ,1053.60
Department of Health,Guys and St Thomas NHS Foundation Trust,27/08/2021,(81200) Medical Surgical Supplies & Equipment,(id:2356419) Evelina Medicine & Neonatology,GBUK ENTERAL UK,id:14356198, 794.40
Department of Health,Guys and St Thomas NHS Foundation Trust,20/08/2021,(89000) Other - Training courses and conferences,(id:1681419) Evelina Medicine & Neonatology,BRITISH PAEDIATRIC SERVICES LTD,id:13816854 ,1400.00
Department of Health,Guys and St Thomas NHS Foundation Trust,13/08/2021,(81200) Medical Surgical Supplies & Equipment,(id:1196422) Evelina Medicine & Neonatology,OLYMPUS KEYMED,id:14318142 ,2208.00
Department of Health,Guys and St Thomas NHS Foundation Trust,13/08/2021,(81200) Medical Surgical Supplies & Equipment,(id:2499420) Evelina Medicine & Neonatology,MEDTRONIC LTD,id:14272741  , 504.00
Department of Health,Guys and St Thomas NHS Foundation Trust,13/08/2021,(81200) Medical Surgical Supplies & Equipment,(id:42350) Evelina Medicine & Neonatology,NHS SUPPLY CHAIN (MAIDSTONE),id:14260687    , 345.60
Department of Health,Guys and St Thomas NHS Foundation Trust,13/08/2021,(81100) Dressings,(id:42350) Evelina Medicine & Neonatology,NHS SUPPLY CHAIN (MAIDSTONE),id:14260687  ,   8.88
Department of Health,Guys and St Thomas NHS Foundation Trust,13/08/2021,(81100) Dressings,(id:42350) Evelina Medicine & Neonatology,NHS SUPPLY CHAIN (MAIDSTONE),id:14279840  ,  12.96
Department of Health,Guys and St Thomas NHS Foundation Trust,20/08/2021,(81200) Medical Surgical Supplies & Equipment,(id:42349) Evelina Medicine & Neonatology,BOSTON SCIENTIFIC LTD,id:14217999 , 619.75
Department of Health,Guys and St Thomas NHS Foundation Trust,27/08/2021,(81100) Dressings,(id:42349) Evelina Medicine & Neonatology,JOHNSON & JOHNSON MEDICAL LTD,id:13762237 , 259.26
Department of Health,Guys and St Thomas NHS Foundation Trust,10/08/2021,(50200) Consultants,(id:42335) Evelina Medicine & Neonatology,KINGS COLLEGE LONDON:03529700,id:14216999    ,    22298.79
Department of Health,Guys and St Thomas NHS Foundation Trust,13/08/2021,(81200) Medical Surgical Supplies & Equipment,(id:42335) Evelina Medicine & Neonatology,NHS SUPPLY CHAIN (MAIDSTONE),id:14245807    ,    19832.65
Department of Health,Guys and St Thomas NHS Foundation Trust,20/08/2021,(81200) Medical Surgical Supplies & Equipment,(id:42335) Evelina Medicine & Neonatology,NHS SUPPLY CHAIN (MAIDSTONE),id:14342661    ,4451.76
Department of Health,Guys and St Thomas NHS Foundation Trust,20/08/2021,(89595) Non-Healthcare from Foundation Trusts,(id:42335) Evelina Medicine & Neonatology,KING'S COLLEGE HOSPITAL NHS FOUNDATION TRUST,id:14337012   ,    -2437.43
Department of Health,Guys and St Thomas NHS Foundation Trust,27/08/2021,(84656) Establishment,(id:42335) Evelina Medicine & Neonatology,DICT8 LIMITED,id:14330794   , 705.48
Department of Health,Guys and St Thomas NHS Foundation Trust,24/08/2021,(81000) Surgical Appliances,(id:42335) Evelina Medicine & Neonatology,JOHN FLORENCE LTD,id:14349821   , 893.84
Department of Health,Guys and St Thomas NHS Foundation Trust,13/08/2021,(82000) Provisions & Kitchens,(id:42327) Evelina Medicine & Neonatology,NHS SUPPLY CHAIN (MAIDSTONE),id:14245807,  49.78
Department of Health,Guys and St Thomas NHS Foundation Trust,20/08/2021,(82000) Provisions & Kitchens,(id:42327) Evelina Medicine & Neonatology,NHS SUPPLY CHAIN (MAIDSTONE),id:14342661,  66.07
Department of Health,Guys and St Thomas NHS Foundation Trust,20/08/2021,(82800) Bedding & Linen,(id:42327) Evelina Medicine & Neonatology,NHS SUPPLY CHAIN (MAIDSTONE),id:14342661 ,  92.44
Department of Health,Guys and St Thomas NHS Foundation Trust,13/08/2021,(81200) Medical Surgical Supplies & Equipment,(id:42327) Evelina Medicine & Neonatology,NHS SUPPLY CHAIN (MAIDSTONE),id:14279840    ,5981.68
Department of Health,Guys and St Thomas NHS Foundation Trust,10/08/2021,(50203) Consultants,(id:42327) Evelina Medicine & Neonatology,KINGS COLLEGE LONDON:03529700,id:14216999    ,5346.24
Department of Health,Guys and St Thomas NHS Foundation Trust,13/08/2021,(83400) Office Equipment,(id:42327) Evelina Medicine & Neonatology,NHS SUPPLY CHAIN (MAIDSTONE),id:14260687, 214.17
Department of Health,Guys and St Thomas NHS Foundation Trust,13/08/2021,(81700) Lab Equipment Purchase,(id:42327) Evelina Medicine & Neonatology,NHS SUPPLY CHAIN (MAIDSTONE),id:14279840    ,  73.42
Department of Health,Guys and St Thomas NHS Foundation Trust,13/08/2021,(81700) Lab Equipment Purchase,(id:42327) Evelina Medicine & Neonatology,NHS SUPPLY CHAIN (MAIDSTONE),id:14245807    ,  32.62
Department of Health,Guys and St Thomas NHS Foundation Trust,20/08/2021,(81200) Medical Surgical Supplies & Equipment,(id:1196420) Evelina Medicine & Neonatology,MEDTRONIC LTD,id:14227160  ,1261.26
Department of Health,Guys and St Thomas NHS Foundation Trust,27/08/2021,(80010) Drug Costs,(id:1196420) Evelina Medicine & Neonatology,INSULET INTERNATIONAL LTD,id:14329855  , 928.74
Department of Health,Guys and St Thomas NHS Foundation Trust,20/08/2021,(50542) Unqualified Nursing Staff,(id:2983419) Evelina Medicine & Neonatology,BRITISH PAEDIATRIC SERVICES LTD,id:14215136 ,1680.00
Department of Health,Guys and St Thomas NHS Foundation Trust,13/08/2021,(81200) Medical Surgical Supplies & Equipment,(id:2496419) Evelina Medicine & Neonatology,NHS SUPPLY CHAIN (MAIDSTONE),id:14279840  ,1178.45
Department of Health,Guys and St Thomas NHS Foundation Trust,20/08/2021,(81200) Medical Surgical Supplies & Equipment,(id:2496419) Evelina Medicine & Neonatology,NHS SUPPLY CHAIN (MAIDSTONE),id:14342661  , 612.17
Department of Health,Guys and St Thomas NHS Foundation Trust,20/08/2021,(81700) Lab Equipment Purchase,(id:2496419) Evelina Medicine & Neonatology,NHS SUPPLY CHAIN (MAIDSTONE),id:14342661  ,   5.93
Department of Health,Guys and St Thomas NHS Foundation Trust,20/08/2021,(82000) Provisions & Kitchens,(id:2496419) Evelina Medicine & Neonatology,NHS SUPPLY CHAIN (MAIDSTONE),id:14342661   ,  61.36
Department of Health,Guys and St Thomas NHS Foundation Trust,13/08/2021,(81200) Medical Surgical Supplies & Equipment,(id:2981419) Evelina Medicine & Neonatology,NHS SUPPLY CHAIN (MAIDSTONE),id:14245807  , 179.15
Department of Health,Guys and St Thomas NHS Foundation Trust,13/08/2021,(82700) Uniforms & Clothing,(id:41874) Evelina Medicine & Neonatology,NHS SUPPLY CHAIN (MAIDSTONE),id:14245807  ,   5.43
Department of Health,Guys and St Thomas NHS Foundation Trust,20/08/2021,(50552) Qualified Nursing Staff,(id:41874) Evelina Medicine & Neonatology,HAYS HEALTHCARE LTD,id:14342955  , 658.10
Department of Health,Guys and St Thomas NHS Foundation Trust,27/08/2021,(50552) Qualified Nursing Staff,(id:41874) Evelina Medicine & Neonatology,CONTINENTAL NURSE LTD,id:14356593,1997.93
Department of Health,Guys and St Thomas NHS Foundation Trust,13/08/2021,(81200) Medical Surgical Supplies & Equipment,(id:41874) Evelina Medicine & Neonatology,NHS SUPPLY CHAIN (MAIDSTONE),id:14260687    ,  63.59
Department of Health,Guys and St Thomas NHS Foundation Trust,13/08/2021,(81700) Lab Equipment Purchase,(id:41874) Evelina Medicine & Neonatology,NHS SUPPLY CHAIN (MAIDSTONE),id:14245807    ,  19.54
Department of Health,Guys and St Thomas NHS Foundation Trust,13/08/2021,(81100) Dressings,(id:41874) Evelina Medicine & Neonatology,NHS SUPPLY CHAIN (MAIDSTONE),id:14279840  ,  43.77
Department of Health,Guys and St Thomas NHS Foundation Trust,13/08/2021,(83410) Office Equipment,(id:41874) Evelina Medicine & Neonatology,RICOH UK LTD,id:14301956 , 178.37
Department of Health,Guys and St Thomas NHS Foundation Trust,13/08/2021,(81100) Dressings,(id:2495419) Evelina Medicine & Neonatology,NHS SUPPLY CHAIN (MAIDSTONE),id:14260687,  22.80
Department of Health,Guys and St Thomas NHS Foundation Trust,27/08/2021,(89595) Non-Healthcare from Foundation Trusts,(id:42326) Evelina Medicine & Neonatology,GREAT ORMOND STREET HOSPITAL FOR CHILDREN NHS FOUNDATION TRUST,id:14235274,2093.86
Department of Health,Guys and St Thomas NHS Foundation Trust,13/08/2021,(81700) Lab Equipment Purchase,(id:42323) Evelina Medicine & Neonatology,NHS SUPPLY CHAIN (MAIDSTONE),id:14245807    ,  17.57
Department of Health,Guys and St Thomas NHS Foundation Trust,13/08/2021,(81100) Dressings,(id:42315) Evelina Medicine & Neonatology,NHS SUPPLY CHAIN (MAIDSTONE),id:14260687  , 226.11
Department of Health,Guys and St Thomas NHS Foundation Trust,13/08/2021,(81100) Dressings,(id:42315) Evelina Medicine & Neonatology,NHS SUPPLY CHAIN (MAIDSTONE),id:14245807  ,  74.45
Department of Health,Guys and St Thomas NHS Foundation Trust,20/08/2021,(81700) Lab Equipment Purchase,(id:42058) Evelina Medicine & Neonatology,BIO DIAGNOSTICS LTD,id:14099129   ,1817.94
Department of Health,Guys and St Thomas NHS Foundation Trust,13/08/2021,(83410) Office Equipment,(id:42058) Evelina Medicine & Neonatology,RICOH UK LTD,id:14301837 , 188.37
Department of Health,Guys and St Thomas NHS Foundation Trust,13/08/2021,(81700) Lab Equipment Purchase,(id:4082419) Evelina Surgery Theatres & PICU,NHS SUPPLY CHAIN (MAIDSTONE),id:14260687 ,   3.24
Department of Health,Guys and St Thomas NHS Foundation Trust,13/08/2021,(81700) Lab Equipment Purchase,(id:4082419) Evelina Surgery Theatres & PICU,NHS SUPPLY CHAIN (MAIDSTONE),id:14245807 ,  17.80
Department of Health,Guys and St Thomas NHS Foundation Trust,20/08/2021,(81200) Medical Surgical Supplies & Equipment,(id:4082419) Evelina Surgery Theatres & PICU,NHS SUPPLY CHAIN (MAIDSTONE),id:14342661 , 433.65
Department of Health,Guys and St Thomas NHS Foundation Trust,13/08/2021,(81200) Medical Surgical Supplies & Equipment,(id:4082419) Evelina Surgery Theatres & PICU,NHS SUPPLY CHAIN (MAIDSTONE),id:14260687 , 280.37
Department of Health,Guys and St Thomas NHS Foundation Trust,13/08/2021,(83400) Office Equipment,(id:4082419) Evelina Surgery Theatres & PICU,NHS SUPPLY CHAIN (MAIDSTONE),id:14245807  ,  28.70
Department of Health,Guys and St Thomas NHS Foundation Trust,13/08/2021,(81100) Dressings,(id:4082419) Evelina Surgery Theatres & PICU,NHS SUPPLY CHAIN (MAIDSTONE),id:14279840    ,   6.60
Department of Health,Guys and St Thomas NHS Foundation Trust,27/08/2021,(81200) Medical Surgical Supplies & Equipment,(id:42312) Evelina Surgery Theatres & PICU,MEDTRONIC LTD,id:14303914   ,2784.00
Department of Health,Guys and St Thomas NHS Foundation Trust,13/08/2021,(81200) Medical Surgical Supplies & Equipment,(id:42312) Evelina Surgery Theatres & PICU,NHS SUPPLY CHAIN (MAIDSTONE),id:14245807   , 595.68
Department of Health,Guys and St Thomas NHS Foundation Trust,24/08/2021,(52032) Radiographers,(id:42312) Evelina Surgery Theatres & PICU,PRICEWATERHOUSECOOPERS LLP,id:14349234    , 125.50
Department of Health,Guys and St Thomas NHS Foundation Trust,13/08/2021,(81230) Medical Surgical Supplies & Equipment,(id:42312) Evelina Surgery Theatres & PICU,COOK UK LTD,id:14277624, 210.00
Department of Health,Guys and St Thomas NHS Foundation Trust,13/08/2021,(81230) Medical Surgical Supplies & Equipment,(id:42312) Evelina Surgery Theatres & PICU,COOK UK LTD,id:14030117, 319.20
Department of Health,Guys and St Thomas NHS Foundation Trust,13/08/2021,(89640) Non-Healthcare from NHS Trusts,(id:42312) Evelina Surgery Theatres & PICU,SURREY AND SUSSEX HEALTHCARE NHS TRUST,id:14268994,7046.88
Department of Health,Guys and St Thomas NHS Foundation Trust,27/08/2021,(81250) Medical Surgical Supplies & Equipment,(id:42312) Evelina Surgery Theatres & PICU,BENTLEY INNOMED GMBH,id:14346294 ,4975.00
Department of Health,Guys and St Thomas NHS Foundation Trust,13/08/2021,(83410) Office Equipment,(id:42351) Evelina Surgery Theatres & PICU,RICOH UK LTD,id:14301956, 305.12
Department of Health,Guys and St Thomas NHS Foundation Trust,13/08/2021,(82000) Provisions & Kitchens,(id:41914) Evelina Surgery Theatres & PICU,NHS SUPPLY CHAIN (MAIDSTONE),id:14260687    ,  19.74
Department of Health,Guys and St Thomas NHS Foundation Trust,13/08/2021,(83400) Office Equipment,(id:41914) Evelina Surgery Theatres & PICU,NHS SUPPLY CHAIN (MAIDSTONE),id:14260687    , 580.09
Department of Health,Guys and St Thomas NHS Foundation Trust,20/08/2021,(81200) Medical Surgical Supplies & Equipment,(id:41914) Evelina Surgery Theatres & PICU,MEDTRONIC LTD,id:14298982   , 648.00
Department of Health,Guys and St Thomas NHS Foundation Trust,13/08/2021,(81100) Dressings,(id:41914) Evelina Surgery Theatres & PICU,NHS SUPPLY CHAIN (MAIDSTONE),id:14279840 , 243.23
Department of Health,Guys and St Thomas NHS Foundation Trust,13/08/2021,(81100) Dressings,(id:41914) Evelina Surgery Theatres & PICU,NHS SUPPLY CHAIN (MAIDSTONE),id:14245807 , 232.83
Department of Health,Guys and St Thomas NHS Foundation Trust,13/08/2021,(81100) Dressings,(id:41914) Evelina Surgery Theatres & PICU,NHS SUPPLY CHAIN (MAIDSTONE),id:14260687 ,  82.56
Department of Health,Guys and St Thomas NHS Foundation Trust,20/08/2021,(81100) Dressings,(id:41914) Evelina Surgery Theatres & PICU,NHS SUPPLY CHAIN (MAIDSTONE),id:14342661 , 179.60
Department of Health,Guys and St Thomas NHS Foundation Trust,13/08/2021,(82800) Bedding & Linen,(id:41910) Evelina Surgery Theatres & PICU,NHS SUPPLY CHAIN (MAIDSTONE),id:14245807,  18.60
Department of Health,Guys and St Thomas NHS Foundation Trust,13/08/2021,(81200) Medical Surgical Supplies & Equipment,(id:41910) Evelina Surgery Theatres & PICU,NHS SUPPLY CHAIN (MAIDSTONE),id:14260687   ,1890.48
Department of Health,Guys and St Thomas NHS Foundation Trust,20/08/2021,(81200) Medical Surgical Supplies & Equipment,(id:41910) Evelina Surgery Theatres & PICU,NHS SUPPLY CHAIN (MAIDSTONE),id:14342661   ,2018.27
Department of Health,Guys and St Thomas NHS Foundation Trust,27/08/2021,(81200) Medical Surgical Supplies & Equipment,(id:41910) Evelina Surgery Theatres & PICU,BARD LTD,id:14307675   , 728.72
Department of Health,Guys and St Thomas NHS Foundation Trust,13/08/2021,(81100) Dressings,(id:41910) Evelina Surgery Theatres & PICU,NHS SUPPLY CHAIN (MAIDSTONE),id:14260687 , 127.82
Department of Health,Guys and St Thomas NHS Foundation Trust,13/08/2021,(82600) Uniforms & Clothing,(id:41910) Evelina Surgery Theatres & PICU,NHS SUPPLY CHAIN (MAIDSTONE),id:14245807 ,  12.96
Department of Health,Guys and St Thomas NHS Foundation Trust,13/08/2021,(81200) Medical Surgical Supplies & Equipment,(id:1196421) Evelina Surgery Theatres & PICU,NUVASIVE UK LTD,id:14294595    ,5574.36
Department of Health,Guys and St Thomas NHS Foundation Trust,13/08/2021,(81200) Medical Surgical Supplies & Equipment,(id:1196421) Evelina Surgery Theatres & PICU,NUVASIVE UK LTD,id:14307954    ,    10200.00
Department of Health,Guys and St Thomas NHS Foundation Trust,13/08/2021,(81200) Medical Surgical Supplies & Equipment,(id:1196421) Evelina Surgery Theatres & PICU,NUVASIVE UK LTD,id:14294581    ,9271.80
Department of Health,Guys and St Thomas NHS Foundation Trust,13/08/2021,(81100) Dressings,(id:2498419) Evelina Surgery Theatres & PICU,NHS SUPPLY CHAIN (MAIDSTONE),id:14260687    ,  33.36
Department of Health,Guys and St Thomas NHS Foundation Trust,27/08/2021,(81200) Medical Surgical Supplies & Equipment,(id:431409) Evelina Surgery Theatres & PICU,ORTHOPEDIATRICS EU LIMITED,id:14354354    ,1864.44
Department of Health,Guys and St Thomas NHS Foundation Trust,27/08/2021,(81200) Medical Surgical Supplies & Equipment,(id:431409) Evelina Surgery Theatres & PICU,STRYKER UK LTD,id:14329794 , 551.04
Department of Health,Guys and St Thomas NHS Foundation Trust,06/08/2021,(81000) Surgical Appliances,(id:431409) Evelina Surgery Theatres & PICU,JOHN FLORENCE LTD,id:14293933 , 848.14
Department of Health,Guys and St Thomas NHS Foundation Trust,06/08/2021,(81000) Surgical Appliances,(id:431409) Evelina Surgery Theatres & PICU,JOHN FLORENCE LTD,id:14293987 , 899.99
Department of Health,Guys and St Thomas NHS Foundation Trust,06/08/2021,(81000) Surgical Appliances,(id:431409) Evelina Surgery Theatres & PICU,JOHN FLORENCE LTD,id:14293936 , 970.86
Department of Health,Guys and St Thomas NHS Foundation Trust,13/08/2021,(81000) Surgical Appliances,(id:431409) Evelina Surgery Theatres & PICU,NHS SUPPLY CHAIN (MAIDSTONE),id:14279840, 284.76
Department of Health,Guys and St Thomas NHS Foundation Trust,24/08/2021,(81000) Surgical Appliances,(id:431409) Evelina Surgery Theatres & PICU,JOHN FLORENCE LTD,id:14350134 , 848.17
Department of Health,Guys and St Thomas NHS Foundation Trust,24/08/2021,(81000) Surgical Appliances,(id:431409) Evelina Surgery Theatres & PICU,JOHN FLORENCE LTD,id:14350160 , 938.84
Department of Health,Guys and St Thomas NHS Foundation Trust,27/08/2021,(81000) Surgical Appliances,(id:431409) Evelina Surgery Theatres & PICU,TALAR MADE ORTHOTICS LTD,id:14348081    ,  93.00
Department of Health,Guys and St Thomas NHS Foundation Trust,13/08/2021,(83410) Office Equipment,(id:431409) Evelina Surgery Theatres & PICU,RICOH UK LTD,id:14302184    ,  83.38
Department of Health,Guys and St Thomas NHS Foundation Trust,13/08/2021,(81200) Medical Surgical Supplies & Equipment,(id:468409) Evelina Surgery Theatres & PICU,T J SMITH & NEPHEW LTD,id:14307177   , 731.28
Department of Health,Guys and St Thomas NHS Foundation Trust,13/08/2021,(81225) Medical Surgical Supplies & Equipment,(id:468409) Evelina Surgery Theatres & PICU,NHS SUPPLY CHAIN (MAIDSTONE),id:14279840  ,  60.90
Department of Health,Guys and St Thomas NHS Foundation Trust,13/08/2021,(83400) Office Equipment,(id:2495421) Evelina Surgery Theatres & PICU,NHS SUPPLY CHAIN (MAIDSTONE),id:14260687  ,  63.15
Department of Health,Guys and St Thomas NHS Foundation Trust,13/08/2021,(81100) Dressings,(id:2495421) Evelina Surgery Theatres & PICU,NHS SUPPLY CHAIN (MAIDSTONE),id:14279840    ,  74.50
Department of Health,Guys and St Thomas NHS Foundation Trust,20/08/2021,(81200) Medical Surgical Supplies & Equipment,(id:2495421) Evelina Surgery Theatres & PICU,NHS SUPPLY CHAIN (MAIDSTONE),id:14342661 ,1531.58
Department of Health,Guys and St Thomas NHS Foundation Trust,13/08/2021,(50552) Qualified Nursing Staff,(id:2495421) Evelina Surgery Theatres & PICU,CONTINENTAL NURSE LTD,id:14322789  , 628.99
Department of Health,Guys and St Thomas NHS Foundation Trust,13/08/2021,(81200) Medical Surgical Supplies & Equipment,(id:42347) Evelina Surgery Theatres & PICU,NHS SUPPLY CHAIN (MAIDSTONE),id:14260687   ,3223.43
Department of Health,Guys and St Thomas NHS Foundation Trust,20/08/2021,(82000) Provisions & Kitchens,(id:42339) Evelina Surgery Theatres & PICU,NHS SUPPLY CHAIN (MAIDSTONE),id:14342661    , 104.79
Department of Health,Guys and St Thomas NHS Foundation Trust,13/08/2021,(82000) Provisions & Kitchens,(id:42339) Evelina Surgery Theatres & PICU,NHS SUPPLY CHAIN (MAIDSTONE),id:14245807    , 145.98
Department of Health,Guys and St Thomas NHS Foundation Trust,06/08/2021,(80100) Drug Costs,(id:42339) Evelina Surgery Theatres & PICU,BOC LTD :02107500,id:14260437 , 840.00
Department of Health,Guys and St Thomas NHS Foundation Trust,20/08/2021,(80100) Drug Costs,(id:42339) Evelina Surgery Theatres & PICU,BOC LTD :02107500,id:14291671 ,4738.86
Department of Health,Guys and St Thomas NHS Foundation Trust,27/08/2021,(81200) Medical Surgical Supplies & Equipment,(id:42339) Evelina Surgery Theatres & PICU,B.BRAUN MEDICAL LTD,id:14353654  , 594.90
Department of Health,Guys and St Thomas NHS Foundation Trust,06/08/2021,(81200) Medical Surgical Supplies & Equipment,(id:42339) Evelina Surgery Theatres & PICU,MEDTRONIC LTD,id:14259458   , 832.32
Department of Health,Guys and St Thomas NHS Foundation Trust,20/08/2021,(89280) Other - Consultancy costs,(id:42339) Evelina Surgery Theatres & PICU,BRITISH PAEDIATRIC SERVICES LTD,id:14326583  ,1680.00
Department of Health,Guys and St Thomas NHS Foundation Trust,13/08/2021,(81225) Medical Surgical Supplies & Equipment,(id:42339) Evelina Surgery Theatres & PICU,NHS SUPPLY CHAIN (MAIDSTONE),id:14245807   ,  17.66
Department of Health,Guys and St Thomas NHS Foundation Trust,20/08/2021,(81225) Medical Surgical Supplies & Equipment,(id:42339) Evelina Surgery Theatres & PICU,NHS SUPPLY CHAIN (MAIDSTONE),id:14342661   ,  18.42
Department of Health,Guys and St Thomas NHS Foundation Trust,13/08/2021,(81275) Medical Surgical Supplies & Equipment,(id:42339) Evelina Surgery Theatres & PICU,NHS SUPPLY CHAIN (MAIDSTONE),id:14260687   ,  14.40
Department of Health,Guys and St Thomas NHS Foundation Trust,13/08/2021,(81700) Lab Equipment Purchase,(id:42339) Evelina Surgery Theatres & PICU,NHS SUPPLY CHAIN (MAIDSTONE),id:14279840   ,  80.29
Department of Health,Guys and St Thomas NHS Foundation Trust,13/08/2021,(81200) Medical Surgical Supplies & Equipment,(id:42134) Pathology,NHS SUPPLY CHAIN (MAIDSTONE),id:14260687, 100.76
Department of Health,Guys and St Thomas NHS Foundation Trust,13/08/2021,(81100) Dressings,(id:1127419) Cardiovascular Services,NHS SUPPLY CHAIN (MAIDSTONE),id:14279840  ,  19.73
Department of Health,Guys and St Thomas NHS Foundation Trust,20/08/2021,(81225) Medical Surgical Supplies & Equipment,(id:780420) Cardiovascular Services,NHS SUPPLY CHAIN (MAIDSTONE),id:14342661,   4.85
Department of Health,Guys and St Thomas NHS Foundation Trust,13/08/2021,(81200) Medical Surgical Supplies & Equipment,(id:780420) Cardiovascular Services,NHS SUPPLY CHAIN (MAIDSTONE),id:14279840, 871.69
Department of Health,Guys and St Thomas NHS Foundation Trust,13/08/2021,(82000) Provisions & Kitchens,(id:780420) Cardiovascular Services,NHS SUPPLY CHAIN (MAIDSTONE),id:14279840 ,  50.59
Department of Health,Guys and St Thomas NHS Foundation Trust,20/08/2021,(82000) Provisions & Kitchens,(id:780420) Cardiovascular Services,NHS SUPPLY CHAIN (MAIDSTONE),id:14342661 ,   2.72
Department of Health,Guys and St Thomas NHS Foundation Trust,13/08/2021,(50552) Qualified Nursing Staff,(id:780420) Cardiovascular Services,CARE PROVIDERS HEALTHCARE,id:14322890  , 728.14
Department of Health,Guys and St Thomas NHS Foundation Trust,20/08/2021,(82800) Bedding & Linen,(id:780420) Cardiovascular Services,NHS SUPPLY CHAIN (MAIDSTONE),id:14342661  , 113.09
Department of Health,Guys and St Thomas NHS Foundation Trust,13/08/2021,(82800) Bedding & Linen,(id:780420) Cardiovascular Services,NHS SUPPLY CHAIN (MAIDSTONE),id:14260687  , 180.56
Department of Health,Guys and St Thomas NHS Foundation Trust,20/08/2021,(81250) Medical Surgical Supplies & Equipment,(id:639421) Cardiovascular Services,COOK UK LTD,id:14259431  ,    19200.00
Department of Health,Guys and St Thomas NHS Foundation Trust,06/08/2021,(81200) Medical Surgical Supplies & Equipment,(id:639421) Cardiovascular Services,BENTLEY INNOMED GMBH,id:14288919   ,2040.00
Department of Health,Guys and St Thomas NHS Foundation Trust,06/08/2021,(81200) Medical Surgical Supplies & Equipment,(id:639421) Cardiovascular Services,COOK UK LTD,id:14263776  ,1980.00
Department of Health,Guys and St Thomas NHS Foundation Trust,13/08/2021,(81200) Medical Surgical Supplies & Equipment,(id:639421) Cardiovascular Services,BOSTON SCIENTIFIC LTD,id:14324130  ,3120.00
Department of Health,Guys and St Thomas NHS Foundation Trust,20/08/2021,(81200) Medical Surgical Supplies & Equipment,(id:639421) Cardiovascular Services,SPECTRANETICS UK,id:14341477  ,1620.00
Department of Health,Guys and St Thomas NHS Foundation Trust,20/08/2021,(81200) Medical Surgical Supplies & Equipment,(id:639421) Cardiovascular Services,BOSTON SCIENTIFIC LTD,id:14342366  , 780.00
Department of Health,Guys and St Thomas NHS Foundation Trust,20/08/2021,(81200) Medical Surgical Supplies & Equipment,(id:639421) Cardiovascular Services,BOSTON SCIENTIFIC LTD,id:14342365  , 780.00
Department of Health,Guys and St Thomas NHS Foundation Trust,20/08/2021,(81200) Medical Surgical Supplies & Equipment,(id:639421) Cardiovascular Services,BOSTON SCIENTIFIC LTD,id:14332510  ,5460.00
Department of Health,Guys and St Thomas NHS Foundation Trust,20/08/2021,(81200) Medical Surgical Supplies & Equipment,(id:639421) Cardiovascular Services,WL GORE & ASSOCIATES (UK) LTD,id:14289723    ,    15720.00
Department of Health,Guys and St Thomas NHS Foundation Trust,20/08/2021,(81200) Medical Surgical Supplies & Equipment,(id:639421) Cardiovascular Services,MEDTRONIC LTD,id:14289653,3000.00
Department of Health,Guys and St Thomas NHS Foundation Trust,06/08/2021,(81200) Medical Surgical Supplies & Equipment,(id:639421) Cardiovascular Services,WL GORE & ASSOCIATES (UK) LTD,id:14265594    , 300.00
Department of Health,Guys and St Thomas NHS Foundation Trust,13/08/2021,(82000) Provisions & Kitchens,(id:41952) Cardiovascular Services,NHS SUPPLY CHAIN (MAIDSTONE),id:14245807  , 176.18
Department of Health,Guys and St Thomas NHS Foundation Trust,13/08/2021,(82800) Bedding & Linen,(id:41952) Cardiovascular Services,NHS SUPPLY CHAIN (MAIDSTONE),id:14245807   ,  18.55
Department of Health,Guys and St Thomas NHS Foundation Trust,20/08/2021,(82800) Bedding & Linen,(id:41952) Cardiovascular Services,NHS SUPPLY CHAIN (MAIDSTONE),id:14342661   ,  88.81
Department of Health,Guys and St Thomas NHS Foundation Trust,13/08/2021,(81700) Lab Equipment Purchase,(id:41952) Cardiovascular Services,NHS SUPPLY CHAIN (MAIDSTONE),id:14279840 ,   5.93
Department of Health,Guys and St Thomas NHS Foundation Trust,20/08/2021,(81400) Medical Surgical Supplies & Equipment,(id:41952) Cardiovascular Services,NHS SUPPLY CHAIN (MAIDSTONE),id:14342661 , 209.55
Department of Health,Guys and St Thomas NHS Foundation Trust,13/08/2021,(81100) Dressings,(id:41952) Cardiovascular Services,NHS SUPPLY CHAIN (MAIDSTONE),id:14245807    ,3692.18
Department of Health,Guys and St Thomas NHS Foundation Trust,13/08/2021,(81100) Dressings,(id:41952) Cardiovascular Services,NHS SUPPLY CHAIN (MAIDSTONE),id:14279840    , 666.64
Department of Health,Guys and St Thomas NHS Foundation Trust,20/08/2021,(83400) Office Equipment,(id:41952) Cardiovascular Services,NHS SUPPLY CHAIN (MAIDSTONE),id:14342661  ,  55.58
Department of Health,Guys and St Thomas NHS Foundation Trust,13/08/2021,(81200) Medical Surgical Supplies & Equipment,(id:41950) Cardiovascular Services,NHS SUPPLY CHAIN (MAIDSTONE),id:14245807 ,2532.11
Department of Health,Guys and St Thomas NHS Foundation Trust,13/08/2021,(81200) Medical Surgical Supplies & Equipment,(id:41950) Cardiovascular Services,MERIT MEDICAL UK LTD,id:14309334    , 553.92
Department of Health,Guys and St Thomas NHS Foundation Trust,13/08/2021,(81200) Medical Surgical Supplies & Equipment,(id:41950) Cardiovascular Services,ABBOTT MEDICAL UK LTD,id:14288536   ,1584.00
Department of Health,Guys and St Thomas NHS Foundation Trust,20/08/2021,(81200) Medical Surgical Supplies & Equipment,(id:41950) Cardiovascular Services,AQUILANT LTD,id:14302622  , 990.00
Department of Health,Guys and St Thomas NHS Foundation Trust,06/08/2021,(81200) Medical Surgical Supplies & Equipment,(id:41950) Cardiovascular Services,COOK UK LTD,id:14263957   , 819.60
Department of Health,Guys and St Thomas NHS Foundation Trust,20/08/2021,(81230) Medical Surgical Supplies & Equipment,(id:41950) Cardiovascular Services,COOK UK LTD,id:14287324   , 624.00
Department of Health,Guys and St Thomas NHS Foundation Trust,27/08/2021,(81235) Medical Surgical Supplies & Equipment,(id:41950) Cardiovascular Services,BARD LTD,id:14359764 , 741.46
Department of Health,Guys and St Thomas NHS Foundation Trust,13/08/2021,(81100) Dressings,(id:41950) Cardiovascular Services,NHS SUPPLY CHAIN (MAIDSTONE),id:14245807    ,1108.89
Department of Health,Guys and St Thomas NHS Foundation Trust,20/08/2021,(81200) Medical Surgical Supplies & Equipment,(id:3923419) Cardiovascular Services,NHS SUPPLY CHAIN (MAIDSTONE),id:14342661    ,1200.96
Department of Health,Guys and St Thomas NHS Foundation Trust,20/08/2021,(83400) Office Equipment,(id:3923419) Cardiovascular Services,NHS SUPPLY CHAIN (MAIDSTONE),id:14342661, 138.79
Department of Health,Guys and St Thomas NHS Foundation Trust,24/08/2021,(54062) Technical Officers,(id:42303) Cardiovascular Services,PRICEWATERHOUSECOOPERS LLP,id:14349054  ,1735.76
Department of Health,Guys and St Thomas NHS Foundation Trust,24/08/2021,(54052) Technical Officers,(id:42303) Cardiovascular Services,PRICEWATERHOUSECOOPERS LLP,id:14349374  , 831.07
Department of Health,Guys and St Thomas NHS Foundation Trust,24/08/2021,(54072) Technical Officers,(id:42303) Cardiovascular Services,PRICEWATERHOUSECOOPERS LLP,id:14349735  ,6895.56
Department of Health,Guys and St Thomas NHS Foundation Trust,31/08/2021,(54072) Technical Officers,(id:42303) Cardiovascular Services,PRICEWATERHOUSECOOPERS LLP,id:14368494  ,5922.88
Department of Health,Guys and St Thomas NHS Foundation Trust,06/08/2021,(83400) Office Equipment,(id:42302) Cardiovascular Services,EDWARDS LIFESCIENCES LTD,id:14285174 ,    25530.00
Department of Health,Guys and St Thomas NHS Foundation Trust,06/08/2021,(83400) Office Equipment,(id:42302) Cardiovascular Services,EDWARDS LIFESCIENCES LTD,id:14289138 ,    25530.00
Department of Health,Guys and St Thomas NHS Foundation Trust,06/08/2021,(83400) Office Equipment,(id:42302) Cardiovascular Services,EDWARDS LIFESCIENCES LTD,id:14285294 ,    25530.00
Department of Health,Guys and St Thomas NHS Foundation Trust,06/08/2021,(83400) Office Equipment,(id:42302) Cardiovascular Services,EDWARDS LIFESCIENCES LTD,id:14285295 ,    25530.00
Department of Health,Guys and St Thomas NHS Foundation Trust,06/08/2021,(83400) Office Equipment,(id:42302) Cardiovascular Services,EDWARDS LIFESCIENCES LTD,id:14289259 ,    25530.00
Department of Health,Guys and St Thomas NHS Foundation Trust,13/08/2021,(81280) Medical Surgical Supplies & Equipment,(id:42302) Cardiovascular Services,NHS SUPPLY CHAIN (MAIDSTONE),id:14279840 ,   127650.00
Department of Health,Guys and St Thomas NHS Foundation Trust,06/08/2021,(81200) Medical Surgical Supplies & Equipment,(id:42302) Cardiovascular Services,BRACCO UK LTD,id:14288106 , 720.00
Department of Health,Guys and St Thomas NHS Foundation Trust,06/08/2021,(81200) Medical Surgical Supplies & Equipment,(id:42302) Cardiovascular Services,BRACCO UK LTD,id:14288107 , 720.00
Department of Health,Guys and St Thomas NHS Foundation Trust,06/08/2021,(81200) Medical Surgical Supplies & Equipment,(id:42302) Cardiovascular Services,BOSTON SCIENTIFIC LTD,id:14253981   , 990.00
Department of Health,Guys and St Thomas NHS Foundation Trust,27/08/2021,(81200) Medical Surgical Supplies & Equipment,(id:42302) Cardiovascular Services,BOSTON SCIENTIFIC LTD,id:14307607   ,3570.00
Department of Health,Guys and St Thomas NHS Foundation Trust,27/08/2021,(81200) Medical Surgical Supplies & Equipment,(id:42302) Cardiovascular Services,VOLCANO EUROPE BVBA/SPRL,id:14341348,2160.00
Department of Health,Guys and St Thomas NHS Foundation Trust,27/08/2021,(81200) Medical Surgical Supplies & Equipment,(id:42302) Cardiovascular Services,BOSTON SCIENTIFIC LTD,id:14318663   ,4320.00
Department of Health,Guys and St Thomas NHS Foundation Trust,13/08/2021,(83410) Office Equipment,(id:42302) Cardiovascular Services,RICOH UK LTD,id:14302184   , 132.08
Department of Health,Guys and St Thomas NHS Foundation Trust,13/08/2021,(83400) Office Equipment,(id:42301) Cardiovascular Services,NHS SUPPLY CHAIN (MAIDSTONE),id:14245807  ,  66.48
Department of Health,Guys and St Thomas NHS Foundation Trust,13/08/2021,(81700) Lab Equipment Purchase,(id:42301) Cardiovascular Services,NHS SUPPLY CHAIN (MAIDSTONE),id:14260687 ,  16.38
Department of Health,Guys and St Thomas NHS Foundation Trust,13/08/2021,(82800) Bedding & Linen,(id:42300) Cardiovascular Services,NHS SUPPLY CHAIN (MAIDSTONE),id:14260687   , 119.37
Department of Health,Guys and St Thomas NHS Foundation Trust,20/08/2021,(82800) Bedding & Linen,(id:42300) Cardiovascular Services,NHS SUPPLY CHAIN (MAIDSTONE),id:14342661   ,  63.26
Department of Health,Guys and St Thomas NHS Foundation Trust,13/08/2021,(81225) Medical Surgical Supplies & Equipment,(id:42300) Cardiovascular Services,NHS SUPPLY CHAIN (MAIDSTONE),id:14245807 ,  17.55
Department of Health,Guys and St Thomas NHS Foundation Trust,13/08/2021,(81225) Medical Surgical Supplies & Equipment,(id:42300) Cardiovascular Services,NHS SUPPLY CHAIN (MAIDSTONE),id:14279840 ,   4.85
Department of Health,Guys and St Thomas NHS Foundation Trust,20/08/2021,(81200) Medical Surgical Supplies & Equipment,(id:42300) Cardiovascular Services,NHS SUPPLY CHAIN (MAIDSTONE),id:14342661 , 398.82
Department of Health,Guys and St Thomas NHS Foundation Trust,27/08/2021,(50552) Qualified Nursing Staff,(id:42300) Cardiovascular Services,CARE PROVIDERS HEALTHCARE,id:14356615   , 318.21
Department of Health,Guys and St Thomas NHS Foundation Trust,13/08/2021,(50552) Qualified Nursing Staff,(id:42300) Cardiovascular Services,CARE PROVIDERS HEALTHCARE,id:14322953   , 318.21
Department of Health,Guys and St Thomas NHS Foundation Trust,13/08/2021,(81255) Medical Surgical Supplies & Equipment,(id:42300) Cardiovascular Services,NHS SUPPLY CHAIN (MAIDSTONE),id:14279840 ,   4.80
Department of Health,Guys and St Thomas NHS Foundation Trust,06/08/2021,(81200) Medical Surgical Supplies & Equipment,(id:42298) Cardiovascular Services,JOHNSON & JOHNSON MEDICAL LTD,id:14263887,1792.22
Department of Health,Guys and St Thomas NHS Foundation Trust,06/08/2021,(81200) Medical Surgical Supplies & Equipment,(id:42298) Cardiovascular Services,MEDTRONIC LTD,id:14251364 , 960.00
Department of Health,Guys and St Thomas NHS Foundation Trust,06/08/2021,(81200) Medical Surgical Supplies & Equipment,(id:42298) Cardiovascular Services,MEDTRONIC LTD,id:14259274 , 960.00
Department of Health,Guys and St Thomas NHS Foundation Trust,13/08/2021,(81200) Medical Surgical Supplies & Equipment,(id:42298) Cardiovascular Services,NHS SUPPLY CHAIN (MAIDSTONE),id:14260687 ,4894.95
Department of Health,Guys and St Thomas NHS Foundation Trust,13/08/2021,(81200) Medical Surgical Supplies & Equipment,(id:42298) Cardiovascular Services,MEDTRONIC LTD,id:14277603 , 504.00
Department of Health,Guys and St Thomas NHS Foundation Trust,13/08/2021,(81200) Medical Surgical Supplies & Equipment,(id:42298) Cardiovascular Services,TELEFLEX MEDICAL,id:14277553   , 720.00
Department of Health,Guys and St Thomas NHS Foundation Trust,13/08/2021,(81200) Medical Surgical Supplies & Equipment,(id:42298) Cardiovascular Services,JOHNSON & JOHNSON MEDICAL LTD,id:14277581,5084.56
Department of Health,Guys and St Thomas NHS Foundation Trust,13/08/2021,(81200) Medical Surgical Supplies & Equipment,(id:42298) Cardiovascular Services,MEDTRONIC LTD,id:14320360 , 960.00
Department of Health,Guys and St Thomas NHS Foundation Trust,13/08/2021,(81200) Medical Surgical Supplies & Equipment,(id:42298) Cardiovascular Services,MEDTRONIC LTD,id:14320385 , 960.00
Department of Health,Guys and St Thomas NHS Foundation Trust,13/08/2021,(81200) Medical Surgical Supplies & Equipment,(id:42298) Cardiovascular Services,ABBOTT MEDICAL UK LTD,id:14288495   , 516.00
Department of Health,Guys and St Thomas NHS Foundation Trust,13/08/2021,(81200) Medical Surgical Supplies & Equipment,(id:42298) Cardiovascular Services,ABBOTT MEDICAL UK LTD,id:14307228   , 316.80
Department of Health,Guys and St Thomas NHS Foundation Trust,13/08/2021,(81200) Medical Surgical Supplies & Equipment,(id:42298) Cardiovascular Services,JOHNSON & JOHNSON MEDICAL LTD,id:14277560,4500.00
Department of Health,Guys and St Thomas NHS Foundation Trust,20/08/2021,(81200) Medical Surgical Supplies & Equipment,(id:42298) Cardiovascular Services,NHS SUPPLY CHAIN (MAIDSTONE),id:14342661 ,2232.31
Department of Health,Guys and St Thomas NHS Foundation Trust,20/08/2021,(81200) Medical Surgical Supplies & Equipment,(id:42298) Cardiovascular Services,BOSTON SCIENTIFIC LTD,id:14269680   ,1234.20
Department of Health,Guys and St Thomas NHS Foundation Trust,20/08/2021,(81200) Medical Surgical Supplies & Equipment,(id:42298) Cardiovascular Services,TELEFLEX MEDICAL,id:14299455   ,7560.00
Department of Health,Guys and St Thomas NHS Foundation Trust,20/08/2021,(81200) Medical Surgical Supplies & Equipment,(id:42298) Cardiovascular Services,JOHNSON & JOHNSON MEDICAL LTD,id:14292048,2274.00
Department of Health,Guys and St Thomas NHS Foundation Trust,27/08/2021,(81200) Medical Surgical Supplies & Equipment,(id:42298) Cardiovascular Services,MERIT MEDICAL UK LTD,id:14354539    , 565.68
Department of Health,Guys and St Thomas NHS Foundation Trust,27/08/2021,(81200) Medical Surgical Supplies & Equipment,(id:42298) Cardiovascular Services,ABBOTT MEDICAL UK LTD,id:14331682   , 108.00
Department of Health,Guys and St Thomas NHS Foundation Trust,27/08/2021,(81200) Medical Surgical Supplies & Equipment,(id:42298) Cardiovascular Services,TELEFLEX MEDICAL,id:14320369   ,1236.00
Department of Health,Guys and St Thomas NHS Foundation Trust,13/08/2021,(81200) Medical Surgical Supplies & Equipment,(id:42298) Cardiovascular Services,JOHNSON & JOHNSON MEDICAL LTD,id:14283076,6000.00
Department of Health,Guys and St Thomas NHS Foundation Trust,20/08/2021,(81100) Dressings,(id:42298) Cardiovascular Services,NHS SUPPLY CHAIN (MAIDSTONE),id:14342661    ,  86.82
Department of Health,Guys and St Thomas NHS Foundation Trust,06/08/2021,(81230) Medical Surgical Supplies & Equipment,(id:42298) Cardiovascular Services,GETINGE LTD,id:14288554   , 681.60
Department of Health,Guys and St Thomas NHS Foundation Trust,13/08/2021,(81230) Medical Surgical Supplies & Equipment,(id:42298) Cardiovascular Services,ABBOTT MEDICAL UK LTD,id:14307228   , 350.40
Department of Health,Guys and St Thomas NHS Foundation Trust,13/08/2021,(82800) Bedding & Linen,(id:42298) Cardiovascular Services,NHS SUPPLY CHAIN (MAIDSTONE),id:14260687   , 108.00
Department of Health,Guys and St Thomas NHS Foundation Trust,13/08/2021,(81265) Medical Surgical Supplies & Equipment,(id:42298) Cardiovascular Services,NHS SUPPLY CHAIN (MAIDSTONE),id:14260687 ,    14904.00
Department of Health,Guys and St Thomas NHS Foundation Trust,13/08/2021,(81265) Medical Surgical Supplies & Equipment,(id:42298) Cardiovascular Services,MEDTRONIC LTD,id:14320290 ,1800.00
Department of Health,Guys and St Thomas NHS Foundation Trust,13/08/2021,(81265) Medical Surgical Supplies & Equipment,(id:42298) Cardiovascular Services,MEDTRONIC LTD,id:14320275 ,3600.00
Department of Health,Guys and St Thomas NHS Foundation Trust,06/08/2021,(81240) Medical Surgical Supplies & Equipment,(id:42298) Cardiovascular Services,MEDTRONIC LTD,id:14263924 ,1620.00
Department of Health,Guys and St Thomas NHS Foundation Trust,13/08/2021,(81240) Medical Surgical Supplies & Equipment,(id:42298) Cardiovascular Services,NHS SUPPLY CHAIN (MAIDSTONE),id:14245807 ,    12804.00
Department of Health,Guys and St Thomas NHS Foundation Trust,20/08/2021,(81240) Medical Surgical Supplies & Equipment,(id:42298) Cardiovascular Services,MEDTRONIC LTD,id:14296039 ,1620.00
Department of Health,Guys and St Thomas NHS Foundation Trust,27/08/2021,(81240) Medical Surgical Supplies & Equipment,(id:42298) Cardiovascular Services,MEDTRONIC LTD,id:14303910 ,3000.00
Department of Health,Guys and St Thomas NHS Foundation Trust,13/08/2021,(83400) Office Equipment,(id:42291) Cardiovascular Services,NHS SUPPLY CHAIN (MAIDSTONE),id:14260687  ,  33.31
Department of Health,Guys and St Thomas NHS Foundation Trust,13/08/2021,(50522) Unqualified Nursing Staff,(id:42291) Cardiovascular Services,GLOBE LOCUMS LTD,id:14322723, 247.07
Department of Health,Guys and St Thomas NHS Foundation Trust,13/08/2021,(50522) Unqualified Nursing Staff,(id:42291) Cardiovascular Services,MEDICSPRO LTD,id:14322833   , 616.40
Department of Health,Guys and St Thomas NHS Foundation Trust,20/08/2021,(81700) Lab Equipment Purchase,(id:42291) Cardiovascular Services,NHS SUPPLY CHAIN (MAIDSTONE),id:14342661 ,  41.60
Department of Health,Guys and St Thomas NHS Foundation Trust,20/08/2021,(82000) Provisions & Kitchens,(id:42291) Cardiovascular Services,NHS SUPPLY CHAIN (MAIDSTONE),id:14342661  , 126.15
Department of Health,Guys and St Thomas NHS Foundation Trust,20/08/2021,(81255) Medical Surgical Supplies & Equipment,(id:42291) Cardiovascular Services,NHS SUPPLY CHAIN (MAIDSTONE),id:14342661 ,   2.49
Department of Health,Guys and St Thomas NHS Foundation Trust,13/08/2021,(82600) Uniforms & Clothing,(id:42290) Cardiovascular Services,NHS SUPPLY CHAIN (MAIDSTONE),id:14245807    ,  42.11
Department of Health,Guys and St Thomas NHS Foundation Trust,13/08/2021,(82700) Uniforms & Clothing,(id:42290) Cardiovascular Services,NHS SUPPLY CHAIN (MAIDSTONE),id:14245807    , 137.33
Department of Health,Guys and St Thomas NHS Foundation Trust,20/08/2021,(82700) Uniforms & Clothing,(id:42290) Cardiovascular Services,NHS SUPPLY CHAIN (MAIDSTONE),id:14342661    ,  31.68
Department of Health,Guys and St Thomas NHS Foundation Trust,13/08/2021,(82000) Provisions & Kitchens,(id:42290) Cardiovascular Services,NHS SUPPLY CHAIN (MAIDSTONE),id:14279840  ,   8.48
Department of Health,Guys and St Thomas NHS Foundation Trust,13/08/2021,(81100) Dressings,(id:42290) Cardiovascular Services,NHS SUPPLY CHAIN (MAIDSTONE),id:14279840    , 153.51
Department of Health,Guys and St Thomas NHS Foundation Trust,13/08/2021,(50522) Unqualified Nursing Staff,(id:42290) Cardiovascular Services,GLOBE LOCUMS LTD,id:14322792, 252.92
Department of Health,Guys and St Thomas NHS Foundation Trust,13/08/2021,(81225) Medical Surgical Supplies & Equipment,(id:42290) Cardiovascular Services,NHS SUPPLY CHAIN (MAIDSTONE),id:14279840 ,  45.87
Department of Health,Guys and St Thomas NHS Foundation Trust,13/08/2021,(81700) Lab Equipment Purchase,(id:42290) Cardiovascular Services,NHS SUPPLY CHAIN (MAIDSTONE),id:14260687 ,  68.11
Department of Health,Guys and St Thomas NHS Foundation Trust,20/08/2021,(81700) Lab Equipment Purchase,(id:42290) Cardiovascular Services,NHS SUPPLY CHAIN (MAIDSTONE),id:14342661 ,  11.01
Department of Health,Guys and St Thomas NHS Foundation Trust,20/08/2021,(83400) Office Equipment,(id:42293) Cardiovascular Services,NHS SUPPLY CHAIN (MAIDSTONE),id:14342661  , 333.30
Department of Health,Guys and St Thomas NHS Foundation Trust,13/08/2021,(81225) Medical Surgical Supplies & Equipment,(id:42293) Cardiovascular Services,NHS SUPPLY CHAIN (MAIDSTONE),id:14260687 ,  14.55
Department of Health,Guys and St Thomas NHS Foundation Trust,06/08/2021,(81200) Medical Surgical Supplies & Equipment,(id:42293) Cardiovascular Services,ATRICURE EUROPE BV(DO NOT RAISE ORDERS IN EUROS),id:14266705 , 816.00
Department of Health,Guys and St Thomas NHS Foundation Trust,06/08/2021,(81200) Medical Surgical Supplies & Equipment,(id:42293) Cardiovascular Services,VASCUTEK LTD,id:14154454  ,1319.40
Department of Health,Guys and St Thomas NHS Foundation Trust,20/08/2021,(81200) Medical Surgical Supplies & Equipment,(id:42293) Cardiovascular Services,BARD LTD,id:14269748 ,1442.40
Department of Health,Guys and St Thomas NHS Foundation Trust,20/08/2021,(81200) Medical Surgical Supplies & Equipment,(id:42293) Cardiovascular Services,OMEGA SURGICAL INSTRUMENTS LTD,id:14086555    , 972.00
Department of Health,Guys and St Thomas NHS Foundation Trust,20/08/2021,(81200) Medical Surgical Supplies & Equipment,(id:42293) Cardiovascular Services,LIVANOVA UK LTD,id:14343324    ,2940.00
Department of Health,Guys and St Thomas NHS Foundation Trust,27/08/2021,(81200) Medical Surgical Supplies & Equipment,(id:42293) Cardiovascular Services,DOT MEDICAL LTD,id:14351162    ,2126.40
Department of Health,Guys and St Thomas NHS Foundation Trust,13/08/2021,(81200) Medical Surgical Supplies & Equipment,(id:42293) Cardiovascular Services,AQUILANT LTD,id:14302615  , 922.80
Department of Health,Guys and St Thomas NHS Foundation Trust,06/08/2021,(81280) Medical Surgical Supplies & Equipment,(id:42293) Cardiovascular Services,EDWARDS LIFESCIENCES LTD,id:14292834,1752.00
Department of Health,Guys and St Thomas NHS Foundation Trust,20/08/2021,(81280) Medical Surgical Supplies & Equipment,(id:42293) Cardiovascular Services,CRYOLIFE EUROPA LTD,id:14341332,1440.00
Department of Health,Guys and St Thomas NHS Foundation Trust,20/08/2021,(81280) Medical Surgical Supplies & Equipment,(id:42293) Cardiovascular Services,EDWARDS LIFESCIENCES LTD,id:14341172,1440.00
Department of Health,Guys and St Thomas NHS Foundation Trust,13/08/2021,(81280) Medical Surgical Supplies & Equipment,(id:42293) Cardiovascular Services,EDWARDS LIFESCIENCES LTD,id:14325715,3420.00
Department of Health,Guys and St Thomas NHS Foundation Trust,13/08/2021,(81280) Medical Surgical Supplies & Equipment,(id:42293) Cardiovascular Services,EDWARDS LIFESCIENCES LTD,id:14299218,5640.00
Department of Health,Guys and St Thomas NHS Foundation Trust,20/08/2021,(81200) Medical Surgical Supplies & Equipment,(id:42292) Cardiovascular Services,LIVANOVA UK LTD,id:14338402    , 540.00
Department of Health,Guys and St Thomas NHS Foundation Trust,20/08/2021,(81200) Medical Surgical Supplies & Equipment,(id:42292) Cardiovascular Services,WERFEN LIMITED,id:14311194,1583.00
Department of Health,Guys and St Thomas NHS Foundation Trust,06/08/2021,(81200) Medical Surgical Supplies & Equipment,(id:42292) Cardiovascular Services,LIVANOVA UK LTD,id:14298615    , 810.29
Department of Health,Guys and St Thomas NHS Foundation Trust,06/08/2021,(81200) Medical Surgical Supplies & Equipment,(id:42292) Cardiovascular Services,LIVANOVA UK LTD,id:14301671    ,1576.22
Department of Health,Guys and St Thomas NHS Foundation Trust,06/08/2021,(81200) Medical Surgical Supplies & Equipment,(id:42292) Cardiovascular Services,TERUMO UK LTD,id:14295153 , 672.00
Department of Health,Guys and St Thomas NHS Foundation Trust,06/08/2021,(81200) Medical Surgical Supplies & Equipment,(id:42292) Cardiovascular Services,KLS MARTIN UK LTD,id:14288562  ,3417.88
Department of Health,Guys and St Thomas NHS Foundation Trust,13/08/2021,(81100) Dressings,(id:42292) Cardiovascular Services,GETINGE LTD,id:14318260 ,1098.00
Department of Health,Guys and St Thomas NHS Foundation Trust,13/08/2021,(81270) Medical Surgical Supplies & Equipment,(id:42292) Cardiovascular Services,GETINGE LTD,id:14318258   , 540.00
Department of Health,Guys and St Thomas NHS Foundation Trust,27/08/2021,(81270) Medical Surgical Supplies & Equipment,(id:42292) Cardiovascular Services,GETINGE LTD,id:14353505   , 180.00
Department of Health,Guys and St Thomas NHS Foundation Trust,13/08/2021,(82700) Uniforms & Clothing,(id:42287) Cardiovascular Services,NHS SUPPLY CHAIN (MAIDSTONE),id:14245807    , 155.60
Department of Health,Guys and St Thomas NHS Foundation Trust,13/08/2021,(82000) Provisions & Kitchens,(id:42287) Cardiovascular Services,NHS SUPPLY CHAIN (MAIDSTONE),id:14279840  , 240.12
Department of Health,Guys and St Thomas NHS Foundation Trust,20/08/2021,(83400) Office Equipment,(id:42287) Cardiovascular Services,NHS SUPPLY CHAIN (MAIDSTONE),id:14342661  ,  60.13
Department of Health,Guys and St Thomas NHS Foundation Trust,13/08/2021,(82800) Bedding & Linen,(id:42287) Cardiovascular Services,NHS SUPPLY CHAIN (MAIDSTONE),id:14260687   , 197.43
Department of Health,Guys and St Thomas NHS Foundation Trust,20/08/2021,(81100) Dressings,(id:42287) Cardiovascular Services,NHS SUPPLY CHAIN (MAIDSTONE),id:14342661    ,  67.56
Department of Health,Guys and St Thomas NHS Foundation Trust,13/08/2021,(50522) Unqualified Nursing Staff,(id:42287) Cardiovascular Services,GLOBE LOCUMS LTD,id:14322667, 267.32
Department of Health,Guys and St Thomas NHS Foundation Trust,20/08/2021,(81200) Medical Surgical Supplies & Equipment,(id:41863) PACCS,RESMED (UK) LTD,id:14336536  , 864.00
Department of Health,Guys and St Thomas NHS Foundation Trust,20/08/2021,(81200) Medical Surgical Supplies & Equipment,(id:41863) PACCS,RESMED (UK) LTD,id:14336512  , 960.00
Department of Health,Guys and St Thomas NHS Foundation Trust,27/08/2021,(81200) Medical Surgical Supplies & Equipment,(id:41863) PACCS,RESMED (UK) LTD,id:14327255  ,1680.00
Department of Health,Guys and St Thomas NHS Foundation Trust,27/08/2021,(81200) Medical Surgical Supplies & Equipment,(id:41863) PACCS,RESMED (UK) LTD,id:14336515  ,2400.00
Department of Health,Guys and St Thomas NHS Foundation Trust,13/08/2021,(81200) Medical Surgical Supplies & Equipment,(id:41863) PACCS,NHS SUPPLY CHAIN (MAIDSTONE),id:14260687    ,1021.80
Department of Health,Guys and St Thomas NHS Foundation Trust,06/08/2021,(81255) Medical Surgical Supplies & Equipment,(id:41863) PACCS,PHILIPS HEALTHCARE,id:14301376    , 664.18
Department of Health,Guys and St Thomas NHS Foundation Trust,13/08/2021,(50562) Qualified Nursing Staff,(id:41935) PACCS,JUST NURSES (NURSCO HEALTHCARE LIMITED),id:14322982  , 461.24
Department of Health,Guys and St Thomas NHS Foundation Trust,27/08/2021,(50562) Qualified Nursing Staff,(id:41935) PACCS,AMC PROFESSIONAL LTD,id:14356452 , 449.16
Department of Health,Guys and St Thomas NHS Foundation Trust,13/08/2021,(81200) Medical Surgical Supplies & Equipment,(id:41935) PACCS,NHS SUPPLY CHAIN (MAIDSTONE),id:14245807    ,1883.24
Department of Health,Guys and St Thomas NHS Foundation Trust,27/08/2021,(81200) Medical Surgical Supplies & Equipment,(id:41935) PACCS,RESMED (UK) LTD,id:14336519  ,1466.76
Department of Health,Guys and St Thomas NHS Foundation Trust,27/08/2021,(81200) Medical Surgical Supplies & Equipment,(id:41935) PACCS,LOEWENSTEIN MEDICAL UK LTD,id:14337217 ,    14424.00
Department of Health,Guys and St Thomas NHS Foundation Trust,13/08/2021,(83410) Office Equipment,(id:41935) PACCS,RICOH UK LTD,id:14301837 , 129.17
Department of Health,Guys and St Thomas NHS Foundation Trust,06/08/2021,(81255) Medical Surgical Supplies & Equipment,(id:41935) PACCS,RESPIRONICS UK,id:14294543   , 675.60
Department of Health,Guys and St Thomas NHS Foundation Trust,20/08/2021,(81225) Medical Surgical Supplies & Equipment,(id:41935) PACCS,NHS SUPPLY CHAIN (MAIDSTONE),id:14342661    ,  36.84
Department of Health,Guys and St Thomas NHS Foundation Trust,13/08/2021,(81000) Surgical Appliances,(id:41935) PACCS,TALAR MADE ORTHOTICS LTD,id:14314875 ,  93.00
Department of Health,Guys and St Thomas NHS Foundation Trust,13/08/2021,(81700) Lab Equipment Purchase,(id:41935) PACCS,NHS SUPPLY CHAIN (MAIDSTONE),id:14245807    ,  40.64
Department of Health,Guys and St Thomas NHS Foundation Trust,13/08/2021,(83400) Office Equipment,(id:2545419) PACCS,NHS SUPPLY CHAIN (MAIDSTONE),id:14245807   ,  19.47
Department of Health,Guys and St Thomas NHS Foundation Trust,13/08/2021,(81200) Medical Surgical Supplies & Equipment,(id:2545419) PACCS,NHS SUPPLY CHAIN (MAIDSTONE),id:14245807  , 736.54
Department of Health,Guys and St Thomas NHS Foundation Trust,13/08/2021,(82600) Uniforms & Clothing,(id:2545419) PACCS,NHS SUPPLY CHAIN (MAIDSTONE),id:14260687,   9.36
Department of Health,Guys and St Thomas NHS Foundation Trust,20/08/2021,(82800) Bedding & Linen,(id:2121419) PACCS,NHS SUPPLY CHAIN (MAIDSTONE),id:14342661    ,   4.49
Department of Health,Guys and St Thomas NHS Foundation Trust,13/08/2021,(82800) Bedding & Linen,(id:2121419) PACCS,NHS SUPPLY CHAIN (MAIDSTONE),id:14279840    ,  39.64
Department of Health,Guys and St Thomas NHS Foundation Trust,13/08/2021,(82800) Bedding & Linen,(id:2121419) PACCS,NHS SUPPLY CHAIN (MAIDSTONE),id:14245807    ,  22.04
Department of Health,Guys and St Thomas NHS Foundation Trust,13/08/2021,(82700) Uniforms & Clothing,(id:1842421) PACCS,NHS SUPPLY CHAIN (MAIDSTONE),id:14279840,  52.20
Department of Health,Guys and St Thomas NHS Foundation Trust,13/08/2021,(81100) Dressings,(id:1842421) PACCS,NHS SUPPLY CHAIN (MAIDSTONE),id:14279840, 287.84
Department of Health,Guys and St Thomas NHS Foundation Trust,20/08/2021,(81100) Dressings,(id:1842421) PACCS,NHS SUPPLY CHAIN (MAIDSTONE),id:14342661, 220.62
Department of Health,Guys and St Thomas NHS Foundation Trust,13/08/2021,(82000) Provisions & Kitchens,(id:1842421) PACCS,NHS SUPPLY CHAIN (MAIDSTONE),id:14279840   , 193.50
Department of Health,Guys and St Thomas NHS Foundation Trust,13/08/2021,(83400) Office Equipment,(id:1842421) PACCS,NHS SUPPLY CHAIN (MAIDSTONE),id:14260687   ,  40.12
Department of Health,Guys and St Thomas NHS Foundation Trust,06/08/2021,(50562) Qualified Nursing Staff,(id:1842421) PACCS,AMC PROFESSIONAL LTD,id:14302685    , 449.16
Department of Health,Guys and St Thomas NHS Foundation Trust,06/08/2021,(50562) Qualified Nursing Staff,(id:1842421) PACCS,AMC PROFESSIONAL LTD,id:14302788    , 449.16
Department of Health,Guys and St Thomas NHS Foundation Trust,06/08/2021,(50562) Qualified Nursing Staff,(id:1842421) PACCS,PULSE HEALTHCARE LIMITED,id:14291354, 464.26
Department of Health,Guys and St Thomas NHS Foundation Trust,06/08/2021,(50562) Qualified Nursing Staff,(id:1842421) PACCS,MEDICSPRO LTD,id:14303053 , 484.28
Department of Health,Guys and St Thomas NHS Foundation Trust,13/08/2021,(50562) Qualified Nursing Staff,(id:1842421) PACCS,JUST NURSES (NURSCO HEALTHCARE LIMITED),id:14322678, 484.28
Department of Health,Guys and St Thomas NHS Foundation Trust,13/08/2021,(50562) Qualified Nursing Staff,(id:1842421) PACCS,AMC PROFESSIONAL LTD,id:14322921    , 735.20
Department of Health,Guys and St Thomas NHS Foundation Trust,20/08/2021,(50562) Qualified Nursing Staff,(id:1842421) PACCS,URGENT STAFFING LTD,id:14340854, 461.24
Department of Health,Guys and St Thomas NHS Foundation Trust,27/08/2021,(81230) Medical Surgical Supplies & Equipment,(id:863419) PACCS,MEDTRONIC LTD,id:14307554   , 330.00
Department of Health,Guys and St Thomas NHS Foundation Trust,06/08/2021,(81200) Medical Surgical Supplies & Equipment,(id:863419) PACCS,KLS MARTIN UK LTD,id:14288559    ,2663.28
Department of Health,Guys and St Thomas NHS Foundation Trust,20/08/2021,(81200) Medical Surgical Supplies & Equipment,(id:863419) PACCS,MEDTRONIC LTD,id:14292051   ,8640.00
Department of Health,Guys and St Thomas NHS Foundation Trust,20/08/2021,(50522) Unqualified Nursing Staff,(id:41931) PACCS,CARE PROVIDERS HEALTHCARE,id:14342859    , 516.74
Department of Health,Guys and St Thomas NHS Foundation Trust,13/08/2021,(81225) Medical Surgical Supplies & Equipment,(id:41931) PACCS,NHS SUPPLY CHAIN (MAIDSTONE),id:14245807    ,  76.13
Department of Health,Guys and St Thomas NHS Foundation Trust,13/08/2021,(81225) Medical Surgical Supplies & Equipment,(id:41931) PACCS,NHS SUPPLY CHAIN (MAIDSTONE),id:14279840    ,   5.08
Department of Health,Guys and St Thomas NHS Foundation Trust,13/08/2021,(81700) Lab Equipment Purchase,(id:41931) PACCS,NHS SUPPLY CHAIN (MAIDSTONE),id:14245807    ,  57.18
Department of Health,Guys and St Thomas NHS Foundation Trust,27/08/2021,(50562) Qualified Nursing Staff,(id:41931) PACCS,URGENT STAFFING LTD,id:14358794  ,-458.22
Department of Health,Guys and St Thomas NHS Foundation Trust,13/08/2021,(82000) Provisions & Kitchens,(id:41928) PACCS,NHS SUPPLY CHAIN (MAIDSTONE),id:14245807, 263.93
Department of Health,Guys and St Thomas NHS Foundation Trust,20/08/2021,(83400) Office Equipment,(id:41928) PACCS,NHS SUPPLY CHAIN (MAIDSTONE),id:14342661,  80.74
Department of Health,Guys and St Thomas NHS Foundation Trust,13/08/2021,(83500) Furniture & Fittings,(id:41928) PACCS,OCURA HEALTHCARE FURNITURE,id:14323417   ,2560.32
Department of Health,Guys and St Thomas NHS Foundation Trust,13/08/2021,(82800) Bedding & Linen,(id:41928) PACCS,NHS SUPPLY CHAIN (MAIDSTONE),id:14260687 , 820.41
Department of Health,Guys and St Thomas NHS Foundation Trust,13/08/2021,(82800) Bedding & Linen,(id:41928) PACCS,NHS SUPPLY CHAIN (MAIDSTONE),id:14279840 , 972.98
Department of Health,Guys and St Thomas NHS Foundation Trust,13/08/2021,(81200) Medical Surgical Supplies & Equipment,(id:41928) PACCS,NHS SUPPLY CHAIN (MAIDSTONE),id:14279840    ,    13425.16
Department of Health,Guys and St Thomas NHS Foundation Trust,13/08/2021,(81200) Medical Surgical Supplies & Equipment,(id:41928) PACCS,STRYKER UK LTD,id:14318314   , 576.00
Department of Health,Guys and St Thomas NHS Foundation Trust,20/08/2021,(81200) Medical Surgical Supplies & Equipment,(id:41928) PACCS,NHS SUPPLY CHAIN (MAIDSTONE),id:14342661    ,2171.16
Department of Health,Guys and St Thomas NHS Foundation Trust,20/08/2021,(81200) Medical Surgical Supplies & Equipment,(id:41928) PACCS,GBUK HEALTHCARE,id:14327017  , 578.52
Department of Health,Guys and St Thomas NHS Foundation Trust,20/08/2021,(81200) Medical Surgical Supplies & Equipment,(id:41928) PACCS,FISHER & PAYKEL HEALTHCARE LTD,id:14341060  ,2240.64
Department of Health,Guys and St Thomas NHS Foundation Trust,27/08/2021,(81200) Medical Surgical Supplies & Equipment,(id:41928) PACCS,HAMILTON MEDICAL UK (A DIVISION OF HAMILTON SALES & SERVICE UK LTD),id:14351254,2460.00
Department of Health,Guys and St Thomas NHS Foundation Trust,13/08/2021,(83410) Office Equipment,(id:41928) PACCS,RICOH UK LTD,id:14301837 , 346.03
Department of Health,Guys and St Thomas NHS Foundation Trust,06/08/2021,(50522) Unqualified Nursing Staff,(id:41928) PACCS,GLOBE LOCUMS LTD,id:14303158   , 401.68
Department of Health,Guys and St Thomas NHS Foundation Trust,13/08/2021,(81255) Medical Surgical Supplies & Equipment,(id:41928) PACCS,NHS SUPPLY CHAIN (MAIDSTONE),id:14260687    ,   8.42
Department of Health,Guys and St Thomas NHS Foundation Trust,13/08/2021,(81255) Medical Surgical Supplies & Equipment,(id:41928) PACCS,NHS SUPPLY CHAIN (MAIDSTONE),id:14245807    ,  10.86
Department of Health,Guys and St Thomas NHS Foundation Trust,13/08/2021,(81700) Lab Equipment Purchase,(id:41928) PACCS,NHS SUPPLY CHAIN (MAIDSTONE),id:14279840    , 438.95
Department of Health,Guys and St Thomas NHS Foundation Trust,13/08/2021,(81700) Lab Equipment Purchase,(id:41928) PACCS,NHS SUPPLY CHAIN (MAIDSTONE),id:14245807    , 217.98
Department of Health,Guys and St Thomas NHS Foundation Trust,20/08/2021,(81700) Lab Equipment Purchase,(id:41928) PACCS,WERFEN LIMITED,id:14326248   ,3093.89
Department of Health,Guys and St Thomas NHS Foundation Trust,06/08/2021,(50562) Qualified Nursing Staff,(id:41928) PACCS,MEDICSPRO LTD,id:14302660   , 449.16
Department of Health,Guys and St Thomas NHS Foundation Trust,06/08/2021,(50562) Qualified Nursing Staff,(id:41928) PACCS,AMC PROFESSIONAL LTD,id:14303163 , 449.16
